{"text_format":"1","workbook":"xlsx","n_sheets":7,"sheets":["Screening","Answers","Checklist","Tables","Figures","Other Resources","NOD"],"not_rendered":{"charts":0,"images":10,"macros":1,"external_links":0,"defined_names":1,"comments":0,"pivot_tables":0},"unopened":[],"bounds":{"document_bytes":16777216,"sheet_cells":100000,"rows_first":2000,"rows_last":500,"rows_between":2000,"halvings":0,"cell_chars":16384,"cell_head_chars":4096},"cells_cut":0,"cells_raw":0,"read":"whole","date_system":"1900"}

{"sheet":"Screening","index":0,"n_rows":54,"n_cols":28,"rows_kept":54,"cut":false,"hidden":false,"merged":[]}
["The TCEQ is committed to accessibility. If you require an accessible version of this checklist that will function with reader-assistive technology, please follow this hyperlink to retrieve a Microsoft Word version. Please note that the interactive functionality of this Excel version does not apply to the Word version."]
[null,null,null,null,null,null,null,null,null,null,null,null,null,null,null,null,null,null,null,null,null,null,null,null,null,null,"Question"]
[null,null,null,null,null,null,null,null,null,null,null,null,null,null,null,null,null,null,null,null,null,null,null,null,null,null,"Source"]
[null,null,null,"DISCLAIMER\nThis checklist is intended for use in the Comprehensive Performance Test (CPT) Plan preparation and review process and will not be considered a substitute for required CPT Plan submittals or contents. The checklist line items may not be the exact language of the applicable rules, statutes, or federal requirements. Any conflict or questions regarding the rule interpretation should be directed to TCEQ for determination, and disputes will be resolved in favor of the exact language of the rules, statues, or federal requirements. Should any dispute occur in administrative proceeding, the applicant will bear the burden of proof of compliance with any and all applicable TCEQ and deferral statutes, rules, or policies and procedures. This checklist is subject to discovery in administrative and civil legal proceedings and should not be considered confidential from the public. Web links within the checklist have been included as per the federal rules.",null,null,null,null,null,null,null,null,null,null,null,null,null,null,null,null,null,null,null,null,null,null,"INC",{"$f":"IF($AB$3=\"\",\"\",IF($AB$3=\"Incinerator\",\"Yes\",\"No\"))","v":""}]
[null,null,null,null,null,null,null,null,null,null,null,null,null,null,null,null,null,null,null,null,null,null,null,null,null,null,"LFB",{"$f":"IF($AB$3=\"\",\"\",IF($AB$3=\"Liquid Fuel Boiler\",\"Yes\",\"No\"))","v":""}]
[null,null,null,"CONTACT US\nFor any questions regarding the Comprehensive Performance Test (CPT) Plan requirements or this CPT Plan Checklist, please contact the Industrial and Hazardous Waste Program at \n(512) 239-2335 or by email at ihwper@tceq.texas.gov.",null,null,null,null,null,null,null,null,null,null,null,null,null,null,null,null,null,null,null,null,null,null,"HAF",{"$f":"IF($AB$3=\"\",\"\",IF($AB$3=\"Halogen Acid Furnace\",\"Yes\",\"No\"))","v":""}]
[null,null,null,null,null,null,null,null,null,null,null,null,null,null,null,null,null,null,null,null,null,null,null,null,null,null,"SFB",{"$f":"IF($AB$3=\"\",\"\",IF($AB$3=\"Solid Fuel Boiler\",\"Yes\",\"No\"))","v":""}]
[null,null,null,null,null,null,null,null,null,null,null,null,null,null,null,null,null,null,null,null,null,null,null,null,null,null,"CK",{"$f":"IF($AB$3=\"\",\"\",IF($AB$3=\"Cement Kiln\",\"Yes\",\"No\"))","v":""}]
[null,null,null,null,null,null,null,null,null,null,null,null,null,null,null,null,null,null,null,null,null,null,null,null,null,null,"LWAK",{"$f":"IF($AB$3=\"\",\"\",IF($AB$3=\"Light Weight Aggregate Kiln\",\"Yes\",\"No\"))","v":""}]
[null,null,null,null,null,null,null,null,null,null,null,null,null,null,null,null,null,null,null,null,null,null,null,null,null,null,"Exist"]
["         DRAFT    v. 2.3                                                                                                                                                                                                                                                                                                                                                            3/5/2018",null,null,null,null,null,null,null,null,null,null,null,null,null,null,null,null,null,null,null,null,null,null,null,null,null,"New"]
[null,null,null,null,null,null,null,null,null,null,null,null,null,null,null,null,null,null,null,null,null,null,null,null,null,null,"Major"]
[null,null,null,null,null,null,null,null,null,null,null,null,null,null,null,null,null,null,null,null,null,null,null,null,null,null,"Area"]
[null,null,null,null,null,null,null,null,null,null,null,null,null,null,null,null,null,null,null,null,null,null,null,null,null,null,"Elect"]
[null,null,null,null,null,null,null,null,null,null,null,null,null,null,null,null,null,null,null,null,null,null,null,null,null,null,"Alt"]
[null,null,null,null,null,null,null,null,null,null,null,null,null,null,null,null,null,null,null,null,null,null,null,null,null,null,"Health"]
[null,null,null,null,null,null,null,null,null,null,null,null,null,null,null,null,null,null,null,null,null,null,null,null,null,null,"DRE"]
[null,null,null,null,null,null,null,null,null,null,null,null,null,null,null,null,null,null,null,null,null,null,null,null,null,null,"OneTime"]
[null,null,null,null,null,null,null,null,null,null,null,null,null,null,null,null,null,null,null,null,null,null,null,null,null,null,"Hg"]
[null,null,null,null,null,null,null,null,null,null,null,null,null,null,null,null,null,null,null,null,null,null,null,null,null,null,"Svol"]
[null,null,null,null,null,null,null,null,null,null,null,null,null,null,null,null,null,null,null,null,null,null,null,null,null,null,"Lvol"]
[null,null,null,null,null,null,null,null,null,null,null,null,null,null,null,null,null,null,null,null,null,null,null,null,null,null,"Chlor"]
[null,null,null,null,null,null,null,null,null,null,null,null,null,null,null,null,null,null,null,null,null,null,null,null,null,null,"AltTest"]
[null,null,null,null,null,null,null,null,null,null,null,null,null,null,null,null,null,null,null,null,null,null,null,null,null,null,"AltMon"]
[null,null,null,null,null,null,null,null,null,null,null,null,null,null,null,null,null,null,null,null,null,null,null,null,null,null,"AltRec"]
[null,null,null,null,null,null,null,null,null,null,null,null,null,null,null,null,null,null,null,null,null,null,null,null,null,null,"FeedGt10K"]
[null,null,null,null,null,null,null,null,null,null,null,null,null,null,null,null,null,null,null,null,null,null,null,null,null,null,"FeedLt10K"]
[null,null,null,null,null,null,null,null,null,null,null,null,null,null,null,null,null,null,null,null,null,null,null,null,null,null,"LEWS"]
[null,null,null,null,null,null,null,null,null,null,null,null,null,null,null,null,null,null,null,null,null,null,null,null,null,null,"HEWS"]
[null,null,null,null,null,null,null,null,null,null,null,null,null,null,null,null,null,null,null,null,null,null,null,null,null,null,"DS"]
[null,null,null,null,null,null,null,null,null,null,null,null,null,null,null,null,null,null,null,null,null,null,null,null,null,null,"Bag"]
[null,null,null,null,null,null,null,null,null,null,null,null,null,null,null,null,null,null,null,null,null,null,null,null,null,null,"HEPA"]
[null,null,null,null,null,null,null,null,null,null,null,null,null,null,null,null,null,null,null,null,null,null,null,null,null,null,"IWS"]
[null,null,null,null,null,null,null,null,null,null,null,null,null,null,null,null,null,null,null,null,null,null,null,null,null,null,"WEP"]
[null,null,null,null,null,null,null,null,null,null,null,null,null,null,null,null,null,null,null,null,null,null,null,null,null,null,"EP"]
[null,null,null,null,null,null,null,null,null,null,null,null,null,null,null,null,null,null,null,null,null,null,null,null,null,null,"ACI"]
[null,null,null,null,null,null,null,null,null,null,null,null,null,null,null,null,null,null,null,null,null,null,null,null,null,null,"ACB"]
[null,null,null,null,null,null,null,null,null,null,null,null,null,null,null,null,null,null,null,null,null,null,null,null,null,null,"In"]
[null,null,null,null,null,null,null,null,null,null,null,null,null,null,null,null,null,null,null,null,null,null,null,null,null,null,"APOth"]
[null,null,null,null,null,null,null,null,null,null,null,null,null,null,null,null,null,null,null,null,null,null,null,null,null,null,"O2"]
[null,null,null,null,null,null,null,null,null,null,null,null,null,null,null,null,null,null,null,null,null,null,null,null,null,null,"CO"]
[null,null,null,null,null,null,null,null,null,null,null,null,null,null,null,null,null,null,null,null,null,null,null,null,null,null,"THC"]
[null,null,null,null,null,null,null,null,null,null,null,null,null,null,null,null,null,null,null,null,null,null,null,null,null,null,"CEMSOth"]
[]
[]
[]
[]
[]
[]
[]
["Answer VL"]
["Y"]
["N"]
["N/A"]

{"sheet":"Answers","index":1,"n_rows":26,"n_cols":6,"rows_kept":26,"cut":false,"hidden":false,"merged":[[20,1,20,2],[3,4,3,5],[19,4,19,5],[6,4,6,5],[1,1,1,5],[3,1,3,2],[9,1,9,2],[15,1,15,2]]}
[]
[null,"SCREENING ANSWERS"]
[]
[null,"Source Type",null,null,"Hazardous Waste Boilers Only"]
[null,"Source Type",{"$f":"Screening!AB3","v":0},null,"Feed Hazardous Waste with Heating Value >= 10,000 BTU/lb",{"$f":"Screening!AB26","v":0}]
[null,"Existing",{"$f":"Screening!AB10","v":0},null,"Feed Hazardous Waste with Heating Value < 10,000 BTU/lb",{"$f":"Screening!AB27","v":0}]
[null,"New",{"$f":"Screening!AB11","v":0},null,"Air Pollution Control Equipment"]
[null,"Major",{"$f":"Screening!AB12","v":0},null,"Low Energy Wet Scrubber",{"$f":"Screening!AB28","v":0}]
[null,"Area",{"$f":"Screening!AB13","v":0},null,"High Energy Wet Scrubber",{"$f":"Screening!AB29","v":0}]
[null,"Alternative Standards/DILO Testing",null,null,"Dry Scrubber",{"$f":"Screening!AB30","v":0}]
[null,"Elective Standards for Area Sources",{"$f":"Screening!AB14","v":0},null,"Baghouse",{"$f":"Screening!AB31","v":0}]
[null,"Alternative to PM Standards",{"$f":"Screening!AB15","v":0},null,"HEPA Filter",{"$f":"Screening!AB32","v":0}]
[null,"Health-Based Alternative for Total Chlorine",{"$f":"Screening!AB16","v":0},null,"Ionizing Wet Scrubber",{"$f":"Screening!AB33","v":0}]
[null,"DRE DILO",{"$f":"Screening!AB17","v":0},null,"Wet Electrostatic Precipitator",{"$f":"Screening!AB34","v":0}]
[null,"One-Time Dioxin/Furan Testing DILO",{"$f":"Screening!AB18","v":0},null,"Electrostatic Precipitator",{"$f":"Screening!AB35","v":0}]
[null,"Test Waivers",null,null,"Activated Carbon Injection",{"$f":"Screening!AB36","v":0}]
[null,"Mercury",{"$f":"Screening!AB19","v":0},null,"Activated Carbon Bed",{"$f":"Screening!AB37","v":0}]
[null,"Semivolatile Metals",{"$f":"Screening!AB20","v":0},null,"Inhibitor",{"$f":"Screening!AB38","v":0}]
[null,"Low Volatility Metals",{"$f":"Screening!AB21","v":0},null,"Other",{"$f":"Screening!AB39","v":0}]
[null,"Chlorine/Chloride",{"$f":"Screening!AB22","v":0},null,"Continuous Emission Monitors Used for MACT EEE Compliance"]
[null,"Requested Alternatives Subject to TCEQ Authority",null,null,"Oxygen",{"$f":"Screening!AB40","v":0}]
[null,"Minor/Intermediate Alternative Test Methods Requested",{"$f":"Screening!AB23","v":0},null,"Carbon Monoxide",{"$f":"Screening!AB41","v":0}]
[null,"Minor/Intermediate Alternative Monitoring Requested",{"$f":"Screening!AB24","v":0},null,"Total Hydrocarbons",{"$f":"Screening!AB42","v":0}]
[null,"Minor/Intermediate Alternatives to Recordkeeping and Reporting Requested",{"$f":"Screening!AB25","v":0},null,"Other",{"$f":"Screening!AB43","v":0}]
[]
[null,null,null,"To change any answers, go back to the Screening worksheet and fill out the form again."]

{"sheet":"Checklist","index":2,"n_rows":562,"n_cols":49,"rows_kept":562,"cut":false,"hidden":false,"merged":[]}
["Item No.","Section","Requirements","Regulation","Addressed Y/N/NA","Location","Adequate Y/N","Comments","INC","LFB","HAF","SFB","CK","LWAK","Exist","New","Major","Area","Elect","Alt","Health","DRE","OneTime","Hg","Svol","Lvol","Chlor","AltTest","AltMon","AltRec","FeedGt10K","FeedLt10K","LEWS","HEWS","DS","Bag","HEPA","IWS","WEP","EP","ACI","ACB","In","APOth","O2","CO","THC","CEMSOth","Exclude?"]
[1,1,"CONTENT OF COMPREHENSIVE PERFORMANCE TEST PLAN",null,null,null,null,null,null,null,null,null,null,null,null,null,null,null,null,null,null,null,null,null,null,null,null,null,null,null,null,null,null,null,null,null,null,null,null,null,null,null,null,null,null,null,null,null,{"$f":"IF(OR(I2=\"Ex\",J2=\"Ex\",K2=\"Ex\",L2=\"Ex\",M2=\"Ex\",N2=\"Ex\",O2=\"Ex\",P2=\"Ex\",Q2=\"Ex\",R2=\"Ex\",S2=\"Ex\",T2=\"Ex\",U2=\"Ex\",V2=\"Ex\",W2=\"Ex\",X2=\"Ex\",Y2=\"Ex\",Z2=\"Ex\",AA2=\"Ex\",AB2=\"Ex\",AC2=\"Ex\",AD2=\"Ex\",AE2=\"Ex\",AF2=\"Ex\",AG2=\"Ex\",AH2=\"Ex\",AI2=\"Ex\",AJ2=\"Ex\",AK2=\"Ex\",AL2=\"Ex\",AM2=\"Ex\",AN2=\"Ex\",AO2=\"Ex\",AP2=\"Ex\",AQ2=\"Ex\",AR2=\"Ex\",AS2=\"Ex\",AT2=\"Ex\",AU2=\"Ex\",AV2=\"Ex\"), \"Ex\",\"\")","v":""}]
[2,"1.A.","General. The source must provide the following:",null,null,null,null,null,null,null,null,null,null,null,null,null,null,null,null,null,null,null,null,null,null,null,null,null,null,null,null,null,null,null,null,null,null,null,null,null,null,null,null,null,null,null,null,null,""]
[3,"I.A.1.","An analysis of each feedstream, including hazardous waste, other fuels, and industrial furnace feedstocks, as fired, that includes:","§63.1207(f)(1)(i)",null,null,null,null,null,null,null,null,null,null,null,null,null,null,null,null,null,null,null,null,null,null,null,null,null,null,null,null,null,null,null,null,null,null,null,null,null,null,null,null,null,null,null,null,""]
[4,"1.A.1.a","Heating value, levels of ash (for hazardous waste incinerators only), levels of semivolatile metals, low volatile metals, mercury, and total chlorine (organic and inorganic); and","§63.1207(f)(1)(i)(A)",null,null,null,null,null,null,null,null,null,null,null,null,null,null,null,null,null,null,null,null,null,null,null,null,null,null,null,null,null,null,null,null,null,null,null,null,null,null,null,null,null,null,null,null,""]
[5,"1.A.1.b","Viscosity or description of the physical form of the feedstream;","§63.1207(f)(1)(i)(B)",null,null,null,null,null,null,null,null,null,null,null,null,null,null,null,null,null,null,null,null,null,null,null,null,null,null,null,null,null,null,null,null,null,null,null,null,null,null,null,null,null,null,null,null,""]
[6,"1.A.2","For organic hazardous air pollutants established by 42 U.S.C. 7412(b)(1), excluding caprolactam (CAS number 105602) as provided by §63.60: ","§63.1207(f)(1)(ii)",null,null,null,null,null,null,null,null,null,null,null,null,null,null,null,null,null,null,null,null,null,null,null,null,null,null,null,null,null,null,null,null,null,null,null,null,null,null,null,null,null,null,null,null,""]
[7,"1.A.2.a","An identification of such organic hazardous air pollutants that are present in the feedstream, except that the source need not analyze for organic hazardous air pollutants that would reasonably not be expected to be found in the feedstream. The source must identify any constituents that it excludes from analysis and explain the basis for excluding them. The source must conduct the feedstream analysis according to §63.1208(b)(8). The source may qualify for reduced analysis in lieu of the feedstream identification required by this section, on a case by case basis, according to the conditions set forth in §63.1207(f)(1)(ii)(D);","§63.1207(f)(1)(ii)(A)",null,null,null,null,null,null,null,null,null,null,null,null,null,null,null,null,null,null,null,null,null,null,null,null,null,null,null,null,null,null,null,null,null,null,null,null,null,null,null,null,null,null,null,null,""]
[8,"1.A.2.b","An approximate quantification of such identified organic hazardous air pollutants in the feedstreams, within the precision produced by the analytical procedures of §63.1208(b)(8); and","§63.1207(f)(1)(ii)(B)",null,null,null,null,null,null,null,null,null,null,null,null,null,null,null,null,null,null,null,null,null,null,null,null,null,null,null,null,null,null,null,null,null,null,null,null,null,null,null,null,null,null,null,null,""]
[9,"1.A.2.c","A description of blending procedures, if applicable, prior to firing the hazardous waste feedstream, including a detailed analysis of the materials prior to blending, and blending ratios;","§63.1207(f)(1)(ii)(C)",null,null,null,null,null,null,null,null,null,null,null,null,null,null,null,null,null,null,null,null,null,null,null,null,null,null,null,null,null,null,null,null,null,null,null,null,null,null,null,null,null,null,null,null,""]
[10,"1.A.2.d","The Administrator may approve on a case-by-case basis a hazardous waste feedstream analysis for organic hazardous air pollutants in lieu of the analysis required under §63.1207(f)(1)(ii)(A) if the reduced analysis is sufficient to ensure that the POHCs used to demonstrate compliance with the applicable DRE standards in Subpart EEE continue to be representative of the organic hazardous air pollutants in the source’s hazardous waste feedstreams.","§63.1207(f)(1)(ii)(D)",null,null,null,null,null,null,null,null,null,null,null,null,null,null,null,null,null,null,null,null,null,null,null,null,null,null,null,null,null,null,null,null,null,null,null,null,null,null,null,null,null,null,null,null,""]
[11,"1.A.3","A detailed engineering description of the hazardous waste combustor, including:","§63.1207(f)(1)(iii)",null,null,null,null,null,null,null,null,null,null,null,null,null,null,null,null,null,null,null,null,null,null,null,null,null,null,null,null,null,null,null,null,null,null,null,null,null,null,null,null,null,null,null,null,""]
[12,"1.A.3.a","Manufacturer's name and model number of the hazardous waste combustor;","§63.1207(f)(1)(iii)(A)",null,null,null,null,null,null,null,null,null,null,null,null,null,null,null,null,null,null,null,null,null,null,null,null,null,null,null,null,null,null,null,null,null,null,null,null,null,null,null,null,null,null,null,null,""]
[13,"1.A.3.b","Type of hazardous waste combustor;","§63.1207(f)(1)(iii)(B)",null,null,null,null,null,null,null,null,null,null,null,null,null,null,null,null,null,null,null,null,null,null,null,null,null,null,null,null,null,null,null,null,null,null,null,null,null,null,null,null,null,null,null,null,""]
[14,"1.A.3.c","Maximum design capacity in appropriate units;","§63.1207(f)(1)(iii)(C)",null,null,null,null,null,null,null,null,null,null,null,null,null,null,null,null,null,null,null,null,null,null,null,null,null,null,null,null,null,null,null,null,null,null,null,null,null,null,null,null,null,null,null,null,""]
[15,"1.A.3.d","Description of the feed system for each feedstream;","§63.1207(f)(1)(iii)(D)",null,null,null,null,null,null,null,null,null,null,null,null,null,null,null,null,null,null,null,null,null,null,null,null,null,null,null,null,null,null,null,null,null,null,null,null,null,null,null,null,null,null,null,null,""]
[16,"1.A.3.e","Capacity of each feed system;","§63.1207(f)(1)(iii)(E)",null,null,null,null,null,null,null,null,null,null,null,null,null,null,null,null,null,null,null,null,null,null,null,null,null,null,null,null,null,null,null,null,null,null,null,null,null,null,null,null,null,null,null,null,""]
[17,"1.A.3.f","Description of automatic hazardous waste feed cutoff system(s);","§63.1207(f)(1)(iii)(F)",null,null,null,null,null,null,null,null,null,null,null,null,null,null,null,null,null,null,null,null,null,null,null,null,null,null,null,null,null,null,null,null,null,null,null,null,null,null,null,null,null,null,null,null,""]
[18,"1.A.3.g","Description of the design, operation, and maintenance practices for any air pollution control system; and","§63.1207(f)(1)(iii)(G)",null,null,null,null,null,null,null,null,null,null,null,null,null,null,null,null,null,null,null,null,null,null,null,null,null,null,null,null,null,null,null,null,null,null,null,null,null,null,null,null,null,null,null,null,""]
[19,"1.A.3.h","Description of the design, operation, and maintenance practices of any stack gas monitoring and pollution control monitoring systems;","§63.1207(f)(1)(iii)(H)",null,null,null,null,null,null,null,null,null,null,null,null,null,null,null,null,null,null,null,null,null,null,null,null,null,null,null,null,null,null,null,null,null,null,null,null,null,null,null,null,null,null,null,null,""]
[20,"1.A.4","Documentation of compliance with the standards based on performance testing. The source must conduct a minimum of three runs of a performance test required under §63.1207 to document compliance with the emission standards of this subpart.","§63.1206(b)(12)",null,null,null,null,null,null,null,null,null,null,null,null,null,null,null,null,null,null,null,null,null,null,null,null,null,null,null,null,null,null,null,null,null,null,null,null,null,null,null,null,null,null,null,null,""]
[21,"1.A.5","A detailed description of sampling and monitoring procedures including sampling and monitoring locations in the system, the equipment to be used, sampling and monitoring frequency, and planned analytical procedures for sample analysis. (Note that where applicable, equivalent SW-846 Methods may be used as well.)","§63.1207(f)(1)(iv)",null,null,null,null,null,null,null,null,null,null,null,null,null,null,null,null,null,null,null,null,null,null,null,null,null,null,null,null,null,null,null,null,null,null,null,null,null,null,null,null,null,null,null,null,""]
[22,"1.A.5.a","Test Methods",null,null,null,null,null,null,null,null,null,null,null,null,null,null,null,null,null,null,null,null,null,null,null,null,null,null,null,null,null,null,null,null,null,null,null,null,null,null,null,null,null,null,null,null,null,""]
[23,"1.A.5.a.1","Dioxins and furans. To determine compliance with the emission standard for dioxins and furans, the source must use:","§63.1208(b)(1)(i)",null,null,null,null,null,null,null,null,null,null,null,null,null,null,null,null,null,null,{"$f":"IF(Screening!$AB$18=\"Yes\", \"Ex\",\"\")","v":""},null,null,null,null,null,null,null,null,null,null,null,null,null,null,null,null,null,null,null,null,null,null,null,null,null,""]
[24,"1.A.5.a.1.a","Method 0023A, Sampling Method for Polychlorinated Dibenzo- p -Dioxins and Polychlorinated Dibenzofurans emissions from Stationary Sources, EPA Publication SW–846 (incorporated by reference—see §63.14); or","§63.1208(b)(1)(i)(A)",null,null,null,null,null,null,null,null,null,null,null,null,null,null,null,null,null,null,{"$f":"IF(Screening!$AB$18=\"Yes\", \"Ex\",\"\")","v":""},null,null,null,null,null,null,null,null,null,null,null,null,null,null,null,null,null,null,null,null,null,null,null,null,null,""]
[25,"1.A.5.a.1.b","Method 23, provided in appendix A, part 60 of this chapter, after approval by the Administrator.","§63.1208(b)(1)(i)(B)",null,null,null,null,null,null,null,null,null,null,null,null,null,null,null,null,null,null,{"$f":"IF(Screening!$AB$18=\"Yes\", \"Ex\",\"\")","v":""},null,null,null,null,null,null,null,null,null,null,null,null,null,null,null,null,null,null,null,null,null,null,null,null,null,""]
[26,"1.A.5.a.1.b.1","The source may request approval to use Method 23 in the performance test plan required under §63.1207(e)(i) and (ii).","§63.1208(b)(1)(i)(B)(1)",null,null,null,null,null,null,null,null,null,null,null,null,null,null,null,null,null,null,{"$f":"IF(Screening!$AB$18=\"Yes\", \"Ex\",\"\")","v":""},null,null,null,null,null,null,null,null,null,null,null,null,null,null,null,null,null,null,null,null,null,null,null,null,null,""]
[27,"1.A.5.a.1.b.2 ","In determining whether to grant approval to use Method 23, the Administrator may consider factors including whether dioxin/furan were detected at levels substantially below the emission standard in previous testing, and whether previous Method 0023 analyses detected low levels of dioxin/furan in the front half of the sampling train.","§63.1208(b)(1)(i)(B)(2)",null,null,null,null,null,null,null,null,null,null,null,null,null,null,null,null,null,null,{"$f":"IF(Screening!$AB$18=\"Yes\", \"Ex\",\"\")","v":""},null,null,null,null,null,null,null,null,null,null,null,null,null,null,null,null,null,null,null,null,null,null,null,null,null,""]
[28,"1.A.5.a.1.b.3","Sources that emit carbonaceous particulate matter, such as coal-fired boilers, and sources equipped with activated carbon injection, will be deemed not suitable for use of Method 23 unless the source documents that there would not be a significant improvement in quality assurance with Method 0023A.","§63.1208(b)(1)(i)(B)(3)",null,null,null,null,null,null,null,null,null,null,null,null,null,null,null,null,null,null,{"$f":"IF(Screening!$AB$18=\"Yes\", \"Ex\",\"\")","v":""},null,null,null,null,null,null,null,null,null,null,null,null,null,null,null,null,null,null,null,null,null,null,null,null,null,""]
[29,"1.A.5.a.1.c","The source must sample for a minimum of three hours, and the source must collect a minimum sample volume of 2.5 dscm.","§63.1208(b)(1)(ii)",null,null,null,null,null,null,null,null,null,null,null,null,null,null,null,null,null,null,{"$f":"IF(Screening!$AB$18=\"Yes\", \"Ex\",\"\")","v":""},null,null,null,null,null,null,null,null,null,null,null,null,null,null,null,null,null,null,null,null,null,null,null,null,null,""]
[30,"1.A.5.a.1.d","The source may assume that nondetects are present at zero concentration.","§63.1208(b)(1)(iii)",null,null,null,null,null,null,null,null,null,null,null,null,null,null,null,null,null,null,{"$f":"IF(Screening!$AB$18=\"Yes\", \"Ex\",\"\")","v":""},null,null,null,null,null,null,null,null,null,null,null,null,null,null,null,null,null,null,null,null,null,null,null,null,null,""]
[31,"1.A.5.a.2","Metals. The source must use Method 29, provided in appendix A, part 60 of this chapter, to demonstrate compliance with emission standard for cadmium and lead (combined); and arsenic, beryllium, and chromium (combined); and mercury.","§§63.1208(b)(2) - (4)",null,null,null,null,null,null,null,null,null,null,null,null,null,null,null,null,null,null,null,null,null,null,null,null,null,null,null,null,null,null,null,null,null,null,null,null,null,null,null,null,null,null,null,null,""]
[32,"1.A.5.a.3","Hydrogen chloride and chlorine gas ","§63.1208(b)(5)  ",null,null,null,null,null,null,null,null,null,null,null,null,null,null,null,null,null,null,null,null,null,null,{"$f":"IF(Screening!$AB$22=\"Yes\", \"Ex\",\"\")","v":""},null,null,null,null,null,null,null,null,null,null,null,null,null,null,null,null,null,null,null,null,null,""]
[33,"1.A.5.a.3.a","Compliance with MACT standards . To determine compliance with the emission standard for hydrogen chloride and chlorine gas (combined), the source must use:","§63.1208(b)(5)(i)",null,null,null,null,null,null,null,null,null,null,null,null,null,null,null,null,null,null,null,null,null,null,{"$f":"IF(Screening!$AB$22=\"Yes\", \"Ex\",\"\")","v":""},null,null,null,null,null,null,null,null,null,null,null,null,null,null,null,null,null,null,null,null,null,""]
[34,"1.A.5.a.3.a.1","Method 26/26A as provided in appendix A, part 60 of this chapter; or","§63.1208(b)(5)(i)(A)",null,null,null,null,null,null,null,null,null,null,null,null,null,null,null,null,null,null,null,null,null,null,{"$f":"IF(Screening!$AB$22=\"Yes\", \"Ex\",\"\")","v":""},null,null,null,null,null,null,null,null,null,null,null,null,null,null,null,null,null,null,null,null,null,""]
[35,"1.A.5.a.3.a.2","Methods 320 or 321 as provided in appendix A, part 63 of this chapter; or","§63.1208(b)(5)(i)(B)",null,null,null,null,null,null,null,null,null,null,null,null,null,null,null,null,null,null,null,null,null,null,{"$f":"IF(Screening!$AB$22=\"Yes\", \"Ex\",\"\")","v":""},null,null,null,null,null,null,null,null,null,null,null,null,null,null,null,null,null,null,null,null,null,""]
[36,"1.A.5.a.3.a.3","ASTM D 6735–01, Standard Test Method for Measurement of Gaseous Chlorides and Fluorides from Mineral Calcining Exhaust Sources-Impinger Method to measure emissions of hydrogen chloride, and Method 26/26A to measure emissions of chlorine gas, provided that the source follows the provisions in §§63.1208(b)(5)(C)(1) through (6).(1) A test must include three or more runs in which a pair of samples is obtained simultaneously for each run according to section 11.2.6 of ASTM Method D6735–01.(2) The source must calculate the test run standard deviation of each set of paired samples to quantify data precision, according to Equation 1 of this section:\n\nRSDTA = (100) AbsoluteValue [ (C1a - C2a) / (C1a + C2a) ]  (Eq. 1)\n\nWhere:RSDTA= The test run relative standard deviation of sample pair a, percent.C1aand C2a= The HCl concentrations, milligram/dry standard cubic meter (mg/dscm), from the paired samples.\n\n(3) The source must calculate the test average relative standard deviation according to Equation 2 of this section:Where:RSDTA= The test average relative standard deviation, percent.RSDa= The test run relative standard deviation for sample pair a.p = The number of test runs, ≥3.(4) If RSDTA is greater than 20 percent, the data are invalid and the test must be repeated.(5) The post-test analyte spike procedure of section 11.2.7 of ASTM Method D6735–01 is conducted, and the percent recovery is calculated according to section 12.6 of ASTM Method D6735–01.(6) If the percent recovery is between 70 percent and 130 percent, inclusive, the test is valid. If the percent recovery is outside of this range, the data are considered invalid, and the test must be repeated.","§63.1208(b)(5)(i)(C)",null,null,null,null,null,null,null,null,null,null,null,null,null,null,null,null,null,null,null,null,null,null,{"$f":"IF(Screening!$AB$22=\"Yes\", \"Ex\",\"\")","v":""},null,null,null,null,null,null,null,null,null,null,null,null,null,null,null,null,null,null,null,null,null,""]
[37,"1.A.5.a.3.b","Compliance with risk-based limits under §63.1215. To demonstrate compliance with emission limits established under §63.1215, the source must use Method 26/26A as provided in appendix A, part 60 of this chapter, Method 320 as provided in appendix A, part 63 of this chapter, Method 321 as provided in appendix A, part 63 of this chapter, or ASTM D 6735–01, Standard Test Method for Measurement of Gaseous Chlorides and Fluorides from Mineral Calcining Exhaust Sources—Impinger Method (following the provisions of §§63.1208(b)(5)(C)(1) through (6)), except:","§63.1208(b)(5)(ii)",null,null,null,null,null,null,null,null,null,null,null,null,null,null,null,null,{"$f":"IF(Screening!$AB$16=\"No\", \"Ex\",\"\")","v":""},null,null,null,null,null,{"$f":"IF(Screening!$AB$22=\"Yes\", \"Ex\",\"\")","v":""},null,null,null,null,null,null,null,null,null,null,null,null,null,null,null,null,null,null,null,null,null,""]
[38,"1.A.5.a.3.b.1","For cement kilns and sources equipped with a dry acid gas scrubber, the source must use Methods 320 or 321 as provided in appendix A, part 63 of this chapter, or ASTM D 6735–01 to measure hydrogen chloride, and the back-half, caustic impingers of Method 26/26A as provided in appendix A, part 60 of this chapter to measure chlorine gas; and","§63.1208(b)(5)(ii)(A)",null,null,null,null,null,null,null,null,null,null,null,null,null,null,null,null,null,null,null,null,null,null,{"$f":"IF(Screening!$AB$22=\"Yes\", \"Ex\",\"\")","v":""},null,null,null,null,null,null,null,null,null,null,null,null,null,null,null,null,null,null,null,null,null,""]
[39,"1.A.5.a.3.b.2","For incinerators, boilers, and lightweight aggregate kilns, the source must use Methods 320 or 321 as provided in appendix A, part 63 of this chapter, or ASTM D 6735–01 to measure hydrogen chloride, and Method 26/26A as provided in appendix A, part 60 of this chapter to measure total chlorine, and calculate chlorine gas by difference if:","§63.1208(b)(5)(ii)(B)",null,null,null,null,null,null,null,null,null,null,null,null,null,null,null,null,null,null,null,null,null,null,{"$f":"IF(Screening!$AB$22=\"Yes\", \"Ex\",\"\")","v":""},null,null,null,null,null,null,null,null,null,null,null,null,null,null,null,null,null,null,null,null,null,""]
[40,"1.A.5.a.3.b.2.a","The bromine/chlorine ratio in feedstreams is greater than 5 percent; or","§63.1208(b)(5)(ii)(B)(1)",null,null,null,null,null,null,null,null,null,null,null,null,null,null,null,null,null,null,null,null,null,null,{"$f":"IF(Screening!$AB$22=\"Yes\", \"Ex\",\"\")","v":""},null,null,null,null,null,null,null,null,null,null,null,null,null,null,null,null,null,null,null,null,null,""]
[41,"1.A.5.a.3.b.2.b","The sulfur/chlorine ratio in feedstreams is greater than 50 percent.","§63.1208(b)(5)(ii)(B)(2)",null,null,null,null,null,null,null,null,null,null,null,null,null,null,null,null,null,null,null,null,null,null,{"$f":"IF(Screening!$AB$22=\"Yes\", \"Ex\",\"\")","v":""},null,null,null,null,null,null,null,null,null,null,null,null,null,null,null,null,null,null,null,null,null,""]
[42,"1.A.5.a.4","Particulate matter. The source must use Methods 5 or 5i, provided in appendix A, part 60 of this chapter, to demonstrate compliance with the emission standard for particulate matter.\nNote to 1.A.5.a.4: The selection of the method depends on the expected PM emissions level during the performance test. In cases of low levels of particulate matter (i.e., for total train catches of less than 50 mg), it is recommended that Method 5i be used.  For higher emissions, Method 5 may be used. Note that this total train catch is not intended to be a data acceptance criterion. Thus, total train catches exceeding 50 mg do not invalidate the method.  In practice this will likely mean that all incinerators and most lightweight aggregate kilns will use Method 5i for compliance, while some lightweight aggregate kilns and some cement kilns will use Method 5. Note that Method 5i has been shown to have better precision than Method 5. (Technical Support Document Volume IV)","§63.1208(b)(6)",null,null,null,null,null,null,null,null,null,null,null,null,null,null,null,null,null,null,null,null,null,null,null,null,null,null,null,null,null,null,null,null,null,null,null,null,null,null,null,null,null,null,null,null,""]
[43,"1.A.5.a.5","Other Test Methods.  The source  may use applicable test methods in EPA Publication SW-846, as incorporated by reference in §63.1208(a) of this section, as necessary to demonstrate compliance with requirements of this subpart, except as otherwise specified in §§63.1208(b)(2)–(b)(6).","§63.1208(b)(7)",null,null,null,null,null,null,null,null,null,null,null,null,null,null,null,null,null,null,null,null,null,null,null,null,null,null,null,null,null,null,null,null,null,null,null,null,null,null,null,null,null,null,null,null,""]
[44,"1.A.5.a.6","Feedstream analytical methods.  The source may use any reliable analytical method to determine feedstream concentrations of metals, chlorine, and other constituents. It is the source’s responsibility to ensure that the sampling and analysis procedures are unbiased, precise, and that the results are representative of the feedstream.","§63.1208(b)(8)",null,null,null,null,null,null,null,null,null,null,null,null,null,null,null,null,null,null,null,null,null,null,null,null,null,null,null,null,null,null,null,null,null,null,null,null,null,null,null,null,null,null,null,null,""]
[45,"1.A.5.a.7","Opacity. If the source determines compliance with the opacity standard under the monitoring requirements of §§63.1209(a)(1)(iv) and (a)(1)(v), the source must use Method 9, provided in appendix A, part 60 of this chapter.","§63.1208(b)(9)",null,null,null,null,null,null,null,null,{"$f":"IF(Screening!$AB$8=\"No\", \"Ex\",\"\")","v":""},null,null,null,null,null,null,null,null,null,null,null,null,null,null,null,null,null,null,null,null,null,null,null,null,null,null,null,null,null,null,null,null,null,null,null,""]
[46,"1.A.5.b","Quality Assurance Program. A Quality Assurance Project Plan (QAPP) should be included for all the proposed analytical work.\nNote to 1.A.5.b:  The QAPP should consider and be developed in accordance with such EPA documents as (1)  Region 5 policy for Developing Quality Assurance Project Plans (available from www.epa.gov/region5/rcraca/guidance.htm); (2) QA/QC Procedures for Hazardous Waste Incineration (EPA 625-6-89-023); and (3) Component 2f Region 6’s Hazardous Waste Combustion Unit Permitting Manual (available at http://www.epa.gov/earth1r6/6pd/rcra_c/manual/manual.htm)","§63.7(c)",null,null,null,null,null,null,null,null,null,null,null,null,null,null,null,null,null,null,null,null,null,null,null,null,null,null,null,null,null,null,null,null,null,null,null,null,null,null,null,null,null,null,null,null,""]
[47,"1.A.5.b.1","The test plan must include a test program summary, the test schedule, data quality objectives, and both an internal and external quality assurance (QA) program. Data quality objectives are the pretest expectations of precision, accuracy, and completeness of data.","§63.7(c)(2)(i)",null,null,null,null,null,null,null,null,null,null,null,null,null,null,null,null,null,null,null,null,null,null,null,null,null,null,null,null,null,null,null,null,null,null,null,null,null,null,null,null,null,null,null,null,""]
[48,"1.A.5.b.2","The internal QA program shall include, at a minimum, the activities planned by routine operators and analysts to provide an assessment of test data precision; an example of internal QA is the sampling and analysis of replicate samples.","6§3.7(c)(2)(ii)",null,null,null,null,null,null,null,null,null,null,null,null,null,null,null,null,null,null,null,null,null,null,null,null,null,null,null,null,null,null,null,null,null,null,null,null,null,null,null,null,null,null,null,null,""]
[49,"1.A.5.b.3","The external QA program shall include, at a minimum, application of plans for a test method performance audit (PA) during the performance test. The PA’s consist of blind audit samples provided by the Administrator and analyzed during the performance test in order to provide a measure of test data bias. The external QA program may also include systems audits that include the opportunity for onsite evaluation by the Administrator of instrument calibration, data validation, sample logging, and documentation of quality control data and field maintenance activities.","§63.7(c)(2)(iii)",null,null,null,null,null,null,null,null,null,null,null,null,null,null,null,null,null,null,null,null,null,null,null,null,null,null,null,null,null,null,null,null,null,null,null,null,null,null,null,null,null,null,null,null,""]
[50,"1.A.6","A detailed test schedule for each hazardous waste for which the performance test is planned, including date(s), duration, quantity of hazardous waste to be burned, and other relevant factors;","§63.1207(f)(1)(v)",null,null,null,null,null,null,null,null,null,null,null,null,null,null,null,null,null,null,null,null,null,null,null,null,null,null,null,null,null,null,null,null,null,null,null,null,null,null,null,null,null,null,null,null,""]
[51,"1.A.7","A detailed test protocol, including, for each hazardous waste identified, the ranges of hazardous waste feedrate for each feed system, and, as appropriate, the feedrates of other fuels and feedstocks, and any other relevant parameters that may affect the ability of the hazardous waste combustor to meet the emission standards;","§63.1207(f)(1)(vi)",null,null,null,null,null,null,null,null,null,null,null,null,null,null,null,null,null,null,null,null,null,null,null,null,null,null,null,null,null,null,null,null,null,null,null,null,null,null,null,null,null,null,null,null,""]
[52,"1.A.8","A description of, and planned operating conditions for any emission control equipment that will be used;","§63.1207(f)(1)(vii)",null,null,null,null,null,null,null,null,null,null,null,null,null,null,null,null,null,null,null,null,null,null,null,null,null,null,null,null,null,null,null,null,null,null,null,null,null,null,null,null,null,null,null,null,""]
[53,"1.A.9","Procedures for rapidly stopping the hazardous waste feed and controlling emissions in the event of an equipment malfunction;","§63.1207(f)(1)(viii)",null,null,null,null,null,null,null,null,null,null,null,null,null,null,null,null,null,null,null,null,null,null,null,null,null,null,null,null,null,null,null,null,null,null,null,null,null,null,null,null,null,null,null,null,""]
[54,"1.A.10","A determination of the hazardous waste residence time;","§§63.1207(f)(1)(ix) and 63.1206(b)(11)",null,null,null,null,null,null,null,null,null,null,null,null,null,null,null,null,null,null,null,null,null,null,null,null,null,null,null,null,null,null,null,null,null,null,null,null,null,null,null,null,null,null,null,null,""]
[55,"1.A.11","If the source is requesting to extrapolate metal feedrate limits from comprehensive performance test levels under§ 63.1209(l)(1)(v) or §63.1209(n)(2)(vii):","§63.1207(f)(1)(x)",null,null,null,null,null,null,null,null,null,null,null,null,null,null,null,null,null,null,null,null,null,null,null,null,null,null,null,null,null,null,null,null,null,null,null,null,null,null,null,null,null,null,null,null,""]
[56,"1.A.11.a","A description of the extrapolation methodology and rationale for how the approach ensures compliance with the emission standards;","§63.1207(f)(1)(x)(A)",null,null,null,null,null,null,null,null,null,null,null,null,null,null,null,null,null,null,null,null,null,null,null,null,null,null,null,null,null,null,null,null,null,null,null,null,null,null,null,null,null,null,null,null,""]
[57,"1.A.11.b","Documentation of the historical range of normal (i.e., other than during compliance testing) metals feedrates for each feedstream;","§63.1207(f)(1)(x)(B)",null,null,null,null,null,null,null,null,null,null,null,null,null,null,null,null,null,null,null,null,null,null,null,null,null,null,null,null,null,null,null,null,null,null,null,null,null,null,null,null,null,null,null,null,""]
[58,"1.A.11.c","Documentation that the level of spiking recommended during the performance test will mask sampling and analysis imprecision and inaccuracy to the extent that extrapolation of feedrates limits adequately assure compliance with the emission standards.","§63.1207(f)(1)(x)(C)",null,null,null,null,null,null,null,null,null,null,null,null,null,null,null,null,null,null,null,null,null,null,null,null,null,null,null,null,null,null,null,null,null,null,null,null,null,null,null,null,null,null,null,null,""]
[59,"1.A.12","If the source does not continuously monitor regulated constituents in natural gas, process air feedstreams, and feedstreams from vapor recovery systems under §63.1209(c)(5), it must include documentation of the expected levels of regulated constituents in those feedstreams;","§63.1207(f)(1)(xi)",null,null,null,null,null,null,null,null,null,null,null,null,null,null,null,null,null,null,null,null,null,null,null,null,null,null,null,null,null,null,null,null,null,null,null,null,null,null,null,null,null,null,null,null,""]
[60,"1.A.13","Documentation justifying the duration of system conditioning required to ensure the combustor has achieved steady-state operations under performance test operating conditions, as provided by §63.1207(g)(1)(iii);","§63.1207(f)(1)(xii)",null,null,null,null,null,null,null,null,null,null,null,null,null,null,null,null,null,null,null,null,null,null,null,null,null,null,null,null,null,null,null,null,null,null,null,null,null,null,null,null,null,null,null,null,""]
[61,"1.A.14","Cement kilns with in-line raw mills, if the source elects to use the emissions averaging provision of this subpart, the source must notify the Administrator of the source’s intent in the initial (and subsequent) comprehensive performance test plan, and provide the information required by the emission averaging provision;","§63.1207(f)(1)(xiii)",null,null,null,null,null,null,null,null,{"$f":"IF(Screening!$AB$8=\"No\", \"Ex\",\"\")","v":""},null,null,null,null,null,null,null,null,null,null,null,null,null,null,null,null,null,null,null,null,null,null,null,null,null,null,null,null,null,null,null,null,null,null,null,""]
[62,"1.A.15  ","For preheater or preheater/precalciner cement kilns with dual stacks, if the source elects to use the emissions averaging provision of §63.1204(e), it must notify the Administrator of its intent in the initial (and subsequent) comprehensive performance test plan, and provide the information required under §63.1204(e)(2)(iii)(A).","§63.1207(f)(1)(xiv)",null,null,null,null,null,null,null,null,{"$f":"IF(Screening!$AB$8=\"No\", \"Ex\",\"\")","v":""},null,null,null,null,null,null,null,null,null,null,null,null,null,null,null,null,null,null,null,null,null,null,null,null,null,null,null,null,null,null,null,null,null,null,null,""]
[63,"1.A.16","If the source requests to use Method 23 for dioxin/furan the source must provide the information required under §63.1208(b)(1)(i)(B).","§63.1207(f)(1)(xv)",null,null,null,null,null,null,null,null,null,null,null,null,null,null,null,null,null,null,{"$f":"IF(Screening!$AB$18=\"Yes\", \"Ex\",\"\")","v":""},null,null,null,null,null,null,null,null,null,null,null,null,null,null,null,null,null,null,null,null,null,null,null,null,null,""]
[64,"1.A.17","If the source is not required to conduct performance testing to document compliance with the mercury, semivolatile metals, low volatile metals, or hydrogen chloride/chlorine gas emission standards under §63.1207(m), the source must include with the comprehensive performance test plan documentation of compliance with the provisions of that section; (Also see Section 2.A. Waiver of Performance Test.)","§63.1207(f)(1)(xvi)",null,null,null,null,null,null,null,null,null,null,null,null,null,null,null,null,null,null,null,null,null,null,null,null,null,null,null,null,null,null,null,null,null,null,null,null,null,null,null,null,null,null,null,null,""]
[65,"1.A.18","If the source proposes to use a surrogate for measuring or monitoring gas flowrate, it must document in the comprehensive performance test plan that the surrogate adequately correlates with gas flowrate, as required by §63.1207(m)(7), and §§63.1209(j)(2), (k)(3), (m)(2)(i), (n)(5)(i),and (o)(2)(i);","§63.1207(f)(1)(xvii)",null,null,null,null,null,null,null,null,null,null,null,null,null,null,null,null,null,null,null,null,null,null,null,null,null,null,null,null,null,null,null,null,null,null,null,null,null,null,null,null,null,null,null,null,{"$f":"IF(OR(I66=\"Ex\",J66=\"Ex\",K66=\"Ex\",L66=\"Ex\",M66=\"Ex\",N66=\"Ex\",O66=\"Ex\",P66=\"Ex\",Q66=\"Ex\",R66=\"Ex\",S66=\"Ex\",T66=\"Ex\",U66=\"Ex\",V66=\"Ex\",W66=\"Ex\",X66=\"Ex\",Y66=\"Ex\",Z66=\"Ex\",AA66=\"Ex\",AB66=\"Ex\",AC66=\"Ex\",AD66=\"Ex\",AE66=\"Ex\",AF66=\"Ex\",AG66=\"Ex\",AH66=\"Ex\",AI66=\"Ex\",AJ66=\"Ex\",AK66=\"Ex\",AL66=\"Ex\",AM66=\"Ex\",AN66=\"Ex\",AO66=\"Ex\",AP66=\"Ex\",AQ66=\"Ex\",AR66=\"Ex\",AS66=\"Ex\",AT66=\"Ex\",AU66=\"Ex\",AV66=\"Ex\"), \"Ex\",\"\")","v":""}]
[66,"1.A.19","The source must submit an application to request alternative monitoring under §63.1209(g)(1) not later than with the comprehensive performance test plan, as required by §63.1209(g)(1)(iii)(A); (Also see Section 2.D Alternative Monitoring Requirements Other than Continuous Emission Monitoring Systems)","§63.1207(f)(1)(xviii)",null,null,null,null,null,null,null,null,null,null,null,null,null,null,null,null,null,null,null,null,null,null,null,null,{"$f":"IF(Screening!$AB$24=\"No\", \"Ex\",\"\")","v":""},null,null,null,null,null,null,null,null,null,null,null,null,null,null,null,null,null,null,null,""]
[67,"1.A.20","The source must document the temperature measurement location in the comprehensive performance test plan. As required by §63.1209(j)(1)(i) and §63.1209(k)(2)(i), the source must measure the temperature of each combustion chamber at a location that best represents, as practicable, the bulk gas temperature in the combustion zone;","§63.1207(f)(1)(xix)",null,null,null,null,null,null,null,null,null,null,null,null,null,null,null,null,null,null,null,null,null,null,null,null,null,null,null,null,null,null,null,null,null,null,null,null,null,null,null,null,null,null,null,null,""]
[68,"1.A.21","If the source is equipped with activated carbon injection, it must document in the comprehensive performance test plan:  (Also see Section 1.C.2.f of this checklist.)","§63.1207(f)(1)(xx)",null,null,null,null,null,null,null,null,null,null,null,null,null,null,null,null,null,null,null,null,null,null,null,null,null,null,null,null,null,null,null,null,null,null,null,null,{"$f":"IF(Screening!$AB$36=\"No\", \"Ex\",\"\")","v":""},null,null,null,null,null,null,null,""]
[69,"1.A.21.a","The manufacturer specifications for minimum carrier fluid flowrate or pressure drop, as required by §63.1209(k)(6)(ii); and","§63.1207(f)(1)(xx)(A)",null,null,null,null,null,null,null,null,null,null,null,null,null,null,null,null,null,null,null,null,null,null,null,null,null,null,null,null,null,null,null,null,null,null,null,null,{"$f":"IF(Screening!$AB$36=\"No\", \"Ex\",\"\")","v":""},null,null,null,null,null,null,null,""]
[70,"1.A.21.b","Key parameters that affect carbon adsorption, and the operating limits the source establishes for those parameters based on the carbon used during the performance test, if the source elects not to specify and use the brand and type of carbon used during the comprehensive performance tests, required by §63.1209(k)(6)(iii).","§63.1207(f)(1)(xx)(B)",null,null,null,null,null,null,null,null,null,null,null,null,null,null,null,null,null,null,null,null,null,null,null,null,null,null,null,null,null,null,null,null,null,null,null,null,{"$f":"IF(Screening!$AB$36=\"No\", \"Ex\",\"\")","v":""},null,null,null,null,null,null,null,""]
[71,"1.A.22","If the source is equipped with a carbon bed system, and the source elects not to specify and use the brand and type of carbon used during the comprehensive performance test, the source must include in the comprehensive performance test plan key parameters that affect the carbon adsorption, and the operating limits the source establishes for those parameters based on the carbon used during the performance test as required by §63.1209(k)(9)(ii); (Also see Section 1.C.2.g of this checklist.)","§63. 1207(f)(1)(xxi)",null,null,null,null,null,null,null,null,null,null,null,null,null,null,null,null,null,null,null,null,null,null,null,null,null,null,null,null,null,null,null,null,null,null,null,null,null,{"$f":"IF(Screening!$AB$37=\"No\", \"Ex\",\"\")","v":""},null,null,null,null,null,null,""]
[72,"1.A.23","If the source feeds a dioxin/furan inhibitor into the combustion system, it must document in the comprehensive performance test plan key parameters that affect the effectiveness of the inhibitor, and the operating limits it establishes for those parameters based on the inhibitor fed during the performance test, if the source elects not to specify and use the brand and type of inhibitor used during the comprehensive performance test, as required by §63.1209(k)(9)(ii);(Also see Section 1.C.2.i of this checklist.)","§63.1207(f)(1)(xxii)",null,null,null,null,null,null,null,null,null,null,null,null,null,null,null,null,null,null,null,null,null,null,null,null,null,null,null,null,null,null,null,null,null,null,null,null,null,null,{"$f":"IF(Screening!$AB$38=\"No\", \"Ex\",\"\")","v":""},null,null,null,null,null,""]
[73,"1.A.24","If the source is equipped with a wet scrubber and it elects to monitor solids content of the scrubber liquid manually but believes that hourly monitoring of solids content is not warranted, the source must support an alternative monitoring frequency in the comprehensive performance test plan, as required by §63.1209(m)(1)(i)(B)(1)(i); (Also see Section 1.C.4.a.1.b of this checklist.)","§63.1207(f)(1)(xxiii)",null,null,null,null,null,null,null,null,null,null,null,null,null,null,null,null,null,null,null,null,null,null,null,null,null,null,null,null,{"$f":"IF(AND(Screening!$AB$28=\"No\",Screening!$AB$29=\"No\",Screening!$AB$33=\"No\"),\"Ex\",\"\")","v":""},null,null,null,null,null,null,null,null,null,null,null,null,null,null,null,""]
[74,"1.A.25","If the source is equipped with a particulate matter control device other than a wet scrubber, baghouse, or electrostatic precipitator, it must include in the comprehensive performance test plan:(Also see Section 1.C.4.a.2 of this checklist.)","§63.1207(f)(1)(xxiv)",null,null,null,null,null,null,null,null,null,null,null,null,null,null,null,null,null,null,null,null,null,null,null,null,null,null,null,null,null,null,null,null,null,null,null,null,null,null,null,null,null,null,null,null,""]
[75,"1.A.25.a","Documentation to support the operating parameter limits the source establishes for the control device, as required by §63.1209(m)(1)(iv)(A)(4); and","§63.1207(f)(1)(xxiv)(A)",null,null,null,null,null,null,null,null,null,null,null,null,null,null,null,null,null,null,null,null,null,null,null,null,null,null,null,null,null,null,null,null,null,null,null,null,null,null,null,null,null,null,null,null,""]
[76,"1.A.25.b","Support for the use of manufacturer specifications if the source recommends such specifications in lieu of basing operating limits on performance test operating levels, as required by §63.1209(m)(1)(iv)(D).","§63.1207(f)(1)(xxiv)(B)",null,null,null,null,null,null,null,null,null,null,null,null,null,null,null,null,null,null,null,null,null,null,null,null,null,null,null,null,null,null,null,null,null,null,null,null,null,null,null,null,null,null,null,null,""]
[77,"1.A.26","If the source is equipped with a dry scrubber to control hydrogen chloride and chlorine gas, the source must document in the comprehensive performance test plan key parameters that affect adsorption, and the limits the source will establish for those parameters based on the sorbent used during the performance test, if the source elects not to specify and use the brand and type of sorbent used during the comprehensive performance test, as required by §63.1209(o)(4)(iii)(A); and(Also see Section 1.C.6.d of this checklist.)","§63.1207(f)(1)(xxv)",null,null,null,null,null,null,null,null,null,null,null,null,null,null,null,null,null,null,null,null,null,null,null,null,null,null,null,null,null,null,{"$f":"IF(Screening!$AB$30=\"No\", \"Ex\",\"\")","v":""},null,null,null,null,null,null,null,null,null,null,null,null,null,""]
[78,"1.A.27","For purposes of calculating semivolatile metal, low volatile metal, mercury, and total chlorine (organic and inorganic), and ash feedrate limits, a description of how the source will handle performance test feedstream analytical results that determines these constituents are not present at detectable levels.","§63.1207(f)(1)(xxvi)",null,null,null,null,null,null,null,null,null,null,null,null,null,null,null,null,null,null,null,null,null,null,null,null,null,null,null,null,null,null,null,null,null,null,null,null,null,null,null,null,null,null,null,null,""]
[79,"1.A.28","Such other information as the Administrator reasonably finds necessary to determine whether to approve the performance test plan.","§63.1207(f)(1)(xxvii)",null,null,null,null,null,null,null,null,null,null,null,null,null,null,null,null,null,null,null,null,null,null,null,null,null,null,null,null,null,null,null,null,null,null,null,null,null,null,null,null,null,null,null,null,""]
[80,"1.B","Operating conditions during testing. The source must comply with the provisions of §63.7(e). Conducting performance testing under operating conditions representative of the extreme range of normal conditions is consistent with the requirement of §63.7(e)(1) to conduct performance testing under representative operating conditions.",null,null,null,null,null,null,null,null,null,null,null,null,null,null,null,null,null,null,null,null,null,null,null,null,null,null,null,null,null,null,null,null,null,null,null,null,null,null,null,null,null,null,null,null,null,""]
[81,"1.B.1","Operations during testing. For the following parameters, the source must operate the combustor during the performance test under normal conditions (or conditions that will result in higher than normal emissions):","§63.1207(g)(1)(i)",null,null,null,null,null,null,null,null,null,null,null,null,null,null,null,null,null,null,null,null,null,null,null,null,null,null,null,null,null,null,null,null,null,null,null,null,null,null,null,null,null,null,null,null,""]
[82,"1.B.1.a","Chlorine feedrate. The source must feed normal (or higher) levels of chlorine during the dioxin/furan performance test;","§63.1207(g)(1)(i)(A)",null,null,null,null,null,null,null,null,null,null,null,null,null,null,null,null,null,null,{"$f":"IF(Screening!$AB$18=\"Yes\", \"Ex\",\"\")","v":""},null,null,null,null,null,null,null,null,null,null,null,null,null,null,null,null,null,null,null,null,null,null,null,null,null,""]
[83,"1.B.1.b","Ash feedrate. For hazardous waste incinerators, the source must conduct the following tests when feeding normal (or higher) levels of ash; the semivolatile metal and low volatile metal performance tests; and the dioxin/furan and mercury performance tests; and the dioxin/furan and mercury performance tests if activated carbon injection or a carbon bed is used;","§63.1207(g)(1)(i)(B)",null,null,null,null,{"$f":"IF(Screening!$AB$4=\"No\", \"Ex\",\"\")","v":""},null,null,null,null,null,null,null,null,null,null,null,null,null,null,null,null,null,null,null,null,null,null,null,null,null,null,null,null,null,null,null,null,null,null,null,null,null,null,null,""]
[84,"1.B.1.c","Cleaning cycle of the particulate matter control device. The source must conduct the following tests when the particulate matter control device undergoes its normal (or more frequent) cleaning cycle: the particulate matter, semivolatile metal, and low volatile metal performance tests; and the dioxin/furan and mercury performance tests if activated carbon injection or a carbon bed is used.","§63.1207(g)(1)(i)(C)",null,null,null,null,null,null,null,null,null,null,null,null,null,null,null,null,null,null,null,null,null,null,null,null,null,null,null,null,null,null,null,null,null,null,null,null,null,null,null,null,null,null,null,null,""]
[85,"1.C","Specific Monitoring Requirements During Performance Test",null,null,null,null,null,null,null,null,null,null,null,null,null,null,null,null,null,null,null,null,null,null,null,null,null,null,null,null,null,null,null,null,null,null,null,null,null,null,null,null,null,null,null,null,null,""]
[86,"1.C.1","DRE. The source must establish operating limits during the comprehensive performance test (or during a previous DRE test under provisions of §63.1206(b)(7)) for the following parameters, unless the limits are based on manufacturer specifications, and comply with those limits at all times that hazardous waste remains in the combustion chamber (i.e., the hazardous waste residence time has not transpired since the hazardous waste feed cutoff system was activated):","§63.1209(j)",null,null,null,null,null,null,null,null,null,null,null,null,null,null,null,null,null,{"$f":"IF(Screening!$AB$17=\"Yes\", \"Ex\",\"\")","v":""},null,null,null,null,null,null,null,null,null,null,null,null,null,null,null,null,null,null,null,null,null,null,null,null,null,null,""]
[87,"1.C.1.a","Minimum combustion chamber temperature. (i) The source must measure the temperature of each combustion chamber at a location that best represents, as practicable, the bulk gas temperature in the combustion zone. The source must document the temperature measurement location in the test plan; (ii) The source must establish a minimum hourly rolling average limit as the average of the test run averages;(Also see Section 1.A.20 of this checklist)","§63.1209(j)(1)",null,null,null,null,null,null,null,null,null,null,null,null,null,null,null,null,null,{"$f":"IF(Screening!$AB$17=\"Yes\", \"Ex\",\"\")","v":""},null,null,null,null,null,null,null,null,null,null,null,null,null,null,null,null,null,null,null,null,null,null,null,null,null,null,""]
[88,"1.C.1.b","Maximum flue gas flowrate or production rate.  As an indicator of gas residence time in the control device, the source must establish and comply with a limit on the maximum flue gas flowrate, the maximum production rate, or another parameter that the source documents in the site-specific test plan as an appropriate surrogate for gas residence time, as the average of the maximum hourly rolling averages for each run;  The source must comply with this limit on a hourly rolling average basis;","§63.1209(j)(2)",null,null,null,null,null,null,null,null,null,null,null,null,null,null,null,null,null,{"$f":"IF(Screening!$AB$17=\"Yes\", \"Ex\",\"\")","v":""},null,null,null,null,null,null,null,null,null,null,null,null,null,null,null,null,null,null,null,null,null,null,null,null,null,null,""]
[89,"1.C.1.c","Maximum hazardous waste feedrate. (i) The source must establish limits on the maximum pumpable and total (i.e., pumpable and nonpumpable) hazardous waste feedrate for each location where hazardous waste is fed; (ii) The source must establish limits as the average of the maximum hourly rolling averages for each run; (iii) The source must comply with this limit on a hourly rolling average basis;","§63.1209(j)(3)",null,null,null,null,null,null,null,null,null,null,null,null,null,null,null,null,null,{"$f":"IF(Screening!$AB$17=\"Yes\", \"Ex\",\"\")","v":""},null,null,null,null,null,null,null,null,null,null,null,null,null,null,null,null,null,null,null,null,null,null,null,null,null,null,""]
[90,"1.C.1.d","Operation of waste firing system. The source must specify operating parameters and limits to ensure that good operation of each hazardous waste firing system is maintained.","§63.1209(j)(4)",null,null,null,null,null,null,null,null,null,null,null,null,null,null,null,null,null,{"$f":"IF(Screening!$AB$17=\"Yes\", \"Ex\",\"\")","v":""},null,null,null,null,null,null,null,null,null,null,null,null,null,null,null,null,null,null,null,null,null,null,null,null,null,null,""]
[91,"1.C.2","Dioxins and furans. The source must comply with the dioxin and furans emission standard by establishing and complying with the following operating parameter limits. The source must base the limits on operations during the comprehensive performance test, unless the limits are based on manufacturer specifications.","§63.1209(k)",null,null,null,null,null,null,{"$f":"IF(Screening!$AB$6=\"Yes\", \"Ex\",\"\")","v":""},null,null,null,null,null,null,null,null,null,null,null,{"$f":"IF(Screening!$AB$18=\"Yes\", \"Ex\",\"\")","v":""},null,null,null,null,null,null,null,null,null,null,null,null,null,null,null,null,null,null,null,null,null,null,null,null,null,""]
[92,"1.C.2.a","Gas temperature at the inlet to a dry particulate matter control device","§63.1209(k)(1)",null,null,null,null,null,null,{"$f":"IF(Screening!$AB$6=\"Yes\", \"Ex\",\"\")","v":""},null,null,null,null,null,null,null,null,null,null,null,{"$f":"IF(Screening!$AB$18=\"Yes\", \"Ex\",\"\")","v":""},null,null,null,null,null,null,null,null,null,null,null,null,null,null,null,null,null,null,null,null,null,null,null,null,null,""]
[93,"1.C.2.a.1","For sources other than a lightweight aggregate kiln, if the combustor is equipped with an electrostatic precipitator, baghouse (fabric filter), or other dry emissions control device where particulate matter is suspended in contact with combustion gas, the source must establish a limit on the maximum temperature of the gas at the inlet to the device on an hourly rolling average. The source must establish the hourly rolling average limit as the average of the test run averages;","§63.1209(k)(1)(i)",null,null,null,null,null,null,{"$f":"IF(Screening!$AB$6=\"Yes\", \"Ex\",\"\")","v":""},null,null,null,null,null,null,null,null,null,null,null,{"$f":"IF(Screening!$AB$18=\"Yes\", \"Ex\",\"\")","v":""},null,null,null,null,null,null,null,null,null,null,null,null,null,null,null,null,null,null,null,null,null,null,null,null,null,""]
[94,"1.C.2.a.2","For hazardous waste burning lightweight aggregate kilns, the source must establish a limit on the maximum temperature of the gas at the exit of the (last) combustion chamber (or exit of any waste heat recovery system) on an hourly rolling average. The limit must be established as the average of the test run averages;","§63.1209(k)(1)(ii)",null,null,null,null,null,null,{"$f":"IF(Screening!$AB$6=\"Yes\", \"Ex\",\"\")","v":""},null,null,null,null,null,null,null,null,null,null,null,{"$f":"IF(Screening!$AB$18=\"Yes\", \"Ex\",\"\")","v":""},null,null,null,null,null,null,null,null,null,null,null,null,null,null,null,null,null,null,null,null,null,null,null,null,null,""]
[95,"1.C.2.b","Minimum combustion chamber temperature. (i) For sources other than cement kilns, the source must measure the temperature of each combustion chamber at a location that best represents, as practicable, the bulk gas temperature in the combustion zone. The source must document the temperature measurement location in the test plan the source submits under §§63.1207(e) and (f); (ii) The source must establish a minimum hourly rolling average limit as the average of the test run averages; (Also see Sections 1.A.20 and 1.C.1.a)","§63.1209(k)(2)",null,null,null,null,null,null,{"$f":"IF(Screening!$AB$6=\"Yes\", \"Ex\",\"\")","v":""},null,null,null,null,null,null,null,null,null,null,null,{"$f":"IF(Screening!$AB$18=\"Yes\", \"Ex\",\"\")","v":""},null,null,null,null,null,null,null,null,null,null,null,null,null,null,null,null,null,null,null,null,null,null,null,null,null,""]
[96,"1.C.2.c","Maximum flue gas flowrate or production rate. (i) As an indicator of gas residence time in the control device, the source must establish and comply with a limit on the maximum flue gas flowrate, the maximum production rate, or another parameter that the source documents in the site-specific test plan as an appropriate surrogate for gas residence time, as the average of the maximum hourly rolling averages for each run. (ii) The source must comply with this limit on a hourly rolling average basis; (Also see Section 1.C.1.b);","§63.1209(k)(3)",null,null,null,null,null,null,{"$f":"IF(Screening!$AB$6=\"Yes\", \"Ex\",\"\")","v":""},null,null,null,null,null,null,null,null,null,null,null,{"$f":"IF(Screening!$AB$18=\"Yes\", \"Ex\",\"\")","v":""},null,null,null,null,null,null,null,null,null,null,null,null,null,null,null,null,null,null,null,null,null,null,null,null,null,""]
[97,"1.C.2.d","Maximum waste feedrate. (i) The source must establish limits on the maximum pumpable and total (pumpable and nonpumpable) waste feedrate for each location where waste is fed. (ii) The source must establish the limits as the average of the maximum hourly rolling averages for each run. (iii) The source must comply with the feedrate limit(s) on a hourly rolling average basis; (Also see Section 1.C.1.c)","§63.1209(k)(4)",null,null,null,null,null,null,{"$f":"IF(Screening!$AB$6=\"Yes\", \"Ex\",\"\")","v":""},null,null,null,null,null,null,null,null,null,null,null,{"$f":"IF(Screening!$AB$18=\"Yes\", \"Ex\",\"\")","v":""},null,null,null,null,null,null,null,null,null,null,null,null,null,null,null,null,null,null,null,null,null,null,null,null,null,""]
[98,"1.C.2.e","Particulate matter operating limit. If the combustor is equipped with an activated carbon injection, the source must establish operating parameter limits on the particulate matter control device as specified under §63.1209(m)(1);(Also see Section 1.C.4.a)","§63.1209(k)(5)",null,null,null,null,null,null,{"$f":"IF(Screening!$AB$6=\"Yes\", \"Ex\",\"\")","v":""},null,null,null,null,null,null,null,null,null,null,null,{"$f":"IF(Screening!$AB$18=\"Yes\", \"Ex\",\"\")","v":""},null,null,null,null,null,null,null,null,null,null,null,null,null,null,null,null,null,{"$f":"IF(Screening!$AB$36=\"No\", \"Ex\",\"\")","v":""},null,null,null,null,null,null,null,""]
[99,"1.C.2.f","Activated carbon injection parameter limits. If the combustor is equipped with an activated carbon injection system:(Also see Section 1.A.21):","§63.1209(k)(6)",null,null,null,null,null,null,{"$f":"IF(Screening!$AB$6=\"Yes\", \"Ex\",\"\")","v":""},null,null,null,null,null,null,null,null,null,null,null,{"$f":"IF(Screening!$AB$18=\"Yes\", \"Ex\",\"\")","v":""},null,null,null,null,null,null,null,null,null,null,null,null,null,null,null,null,null,{"$f":"IF(Screening!$AB$36=\"No\", \"Ex\",\"\")","v":""},null,null,null,null,null,null,null,""]
[100,"1.C.2.f.1","Carbon feedrate. The source must establish a limit on minimum carbon injection rate on an hourly rolling average calculated as the average of the test run averages. If the carbon injection system injects carbon at more than one location, the source must establish a carbon feedrate limit for each location;","§63.1209(k)(6)(i)",null,null,null,null,null,null,{"$f":"IF(Screening!$AB$6=\"Yes\", \"Ex\",\"\")","v":""},null,null,null,null,null,null,null,null,null,null,null,{"$f":"IF(Screening!$AB$18=\"Yes\", \"Ex\",\"\")","v":""},null,null,null,null,null,null,null,null,null,null,null,null,null,null,null,null,null,{"$f":"IF(Screening!$AB$36=\"No\", \"Ex\",\"\")","v":""},null,null,null,null,null,null,null,""]
[101,"1.C.2.f.2","Carrier fluid. The source must establish a limit on minimum carrier fluid (gas or liquid) flowrate or pressure drop as an hourly rolling average based on the manufacturer’s specifications. The source must document the specifications in the test plan submitted under §§63.1207(e) and (f);","§63.1209(k)(6)(ii)",null,null,null,null,null,null,{"$f":"IF(Screening!$AB$6=\"Yes\", \"Ex\",\"\")","v":""},null,null,null,null,null,null,null,null,null,null,null,{"$f":"IF(Screening!$AB$18=\"Yes\", \"Ex\",\"\")","v":""},null,null,null,null,null,null,null,null,null,null,null,null,null,null,null,null,null,{"$f":"IF(Screening!$AB$36=\"No\", \"Ex\",\"\")","v":""},null,null,null,null,null,null,null,""]
[102,"1.C.2.f.3","Carbon specification. The source must specify and use the brand (i.e., manufacturer) and type of carbon used during the comprehensive performance test until a subsequent comprehensive performance test is conducted, unless the source documents in the site-specific performance test plan required under §§63.1207(e) and (f) key parameters that affect adsorption and establish limits on those parameters based on the carbon used in the performance test.Note to 1.C.2.f.3: Under §63.1209(k)(6)(iii)(B) The source may substitute at any time a different brand or type of carbon provided that the replacement has equivalent or improved properties compared to the carbon used in the performance test and conforms to the key sorbent parameters the source identifies under  §63.1209(k)(6)(iii)(A) of this section. The source must include in the operating record documentation that the substitute carbon will provide the same level of control as the original carbon.","§63.1209(k)(6)(iii)",null,null,null,null,null,null,{"$f":"IF(Screening!$AB$6=\"Yes\", \"Ex\",\"\")","v":""},null,null,null,null,null,null,null,null,null,null,null,{"$f":"IF(Screening!$AB$18=\"Yes\", \"Ex\",\"\")","v":""},null,null,null,null,null,null,null,null,null,null,null,null,null,null,null,null,null,{"$f":"IF(Screening!$AB$36=\"No\", \"Ex\",\"\")","v":""},null,null,null,null,null,null,null,""]
[103,"1.C.2.g","Carbon bed parameter limits. If the combustor is equipped with a carbon bed system:(Also see Section 1.A.22):","§63.1209(k)(7)",null,null,null,null,null,null,{"$f":"IF(Screening!$AB$6=\"Yes\", \"Ex\",\"\")","v":""},null,null,null,null,null,null,null,null,null,null,null,{"$f":"IF(Screening!$AB$18=\"Yes\", \"Ex\",\"\")","v":""},null,null,null,null,null,null,null,null,null,null,null,null,null,null,null,null,null,null,{"$f":"IF(Screening!$AB$37=\"No\", \"Ex\",\"\")","v":""},null,null,null,null,null,null,""]
[104,"1.C.2.g.1","Maximum bed life. (A) The source must monitor performance of the carbon bed consistent with manufacturer’s specifications and recommendations to ensure the carbon bed (or bed segment for sources with multiple segments) has not reached the end of its useful life to minimize dioxin/furan and mercury emissions at least to the levels required by the emission standards; (B) The source must document the procedures in the operations and maintenance plan; (C) The source must record results of the performance monitoring in the operating record; and (D) The source must replace the bed or bed segment before it has reached the end of its useful life to minimize dioxin/furan and mercury emissions at least to the levels required by the emission standards;","§63.1209(k)(7)(i)",null,null,null,null,null,null,{"$f":"IF(Screening!$AB$6=\"Yes\", \"Ex\",\"\")","v":""},null,null,null,null,null,null,null,null,null,null,null,{"$f":"IF(Screening!$AB$18=\"Yes\", \"Ex\",\"\")","v":""},null,null,null,null,null,null,null,null,null,null,null,null,null,null,null,null,null,null,{"$f":"IF(Screening!$AB$37=\"No\", \"Ex\",\"\")","v":""},null,null,null,null,null,null,""]
[105,"1.C.2.g.2","Carbon specification. (A) The source must specify and use the brand (i.e., manufacturer) and type of carbon used during the comprehensive performance test until a subsequent comprehensive performance test is conducted, unless it documents in its site-specific performance test plan required under §§63.1207(e) and (f) key parameters that affect adsorption and establish limits on those parameters based on the carbon used in the performance test;\nNote to 1.C.2.g.2: Under §63.1209(k)(7)(ii)(B) the source may substitute at any time a different brand or type of carbon provided that the replacement has equivalent or improved properties compared to the carbon used in the performance test. The source must include in the operating record documentation that the substitute carbon will provide an equivalent or improved level of control as the original carbon.","§63.1209(k)(7)(ii)",null,null,null,null,null,null,{"$f":"IF(Screening!$AB$6=\"Yes\", \"Ex\",\"\")","v":""},null,null,null,null,null,null,null,null,null,null,null,{"$f":"IF(Screening!$AB$18=\"Yes\", \"Ex\",\"\")","v":""},null,null,null,null,null,null,null,null,null,null,null,null,null,null,null,null,null,null,{"$f":"IF(Screening!$AB$37=\"No\", \"Ex\",\"\")","v":""},null,null,null,null,null,null,""]
[106,"1.C.2.g.3","Maximum temperature. The source must measure the temperature of the carbon bed at either the bed inlet or exit, and must establish a maximum temperature limit on an hourly rolling average as the average of the test run averages.","§63.1209(k)(7)(iii)",null,null,null,null,null,null,{"$f":"IF(Screening!$AB$6=\"Yes\", \"Ex\",\"\")","v":""},null,null,null,null,null,null,null,null,null,null,null,{"$f":"IF(Screening!$AB$18=\"Yes\", \"Ex\",\"\")","v":""},null,null,null,null,null,null,null,null,null,null,null,null,null,null,null,null,null,null,{"$f":"IF(Screening!$AB$37=\"No\", \"Ex\",\"\")","v":""},null,null,null,null,null,null,""]
[107,"1.C.2.h","Catalytic oxidizer parameter limits. If the combustor is equipped with a catalytic oxidizer, the source must establish limits on the following parameters:","§63.1209(k)(8)",null,null,null,null,null,null,{"$f":"IF(Screening!$AB$6=\"Yes\", \"Ex\",\"\")","v":""},null,null,null,null,null,null,null,null,null,null,null,{"$f":"IF(Screening!$AB$18=\"Yes\", \"Ex\",\"\")","v":""},null,null,null,null,null,null,null,null,null,null,null,null,null,null,null,null,null,null,null,null,null,null,null,null,null,""]
[108,"1.C.2.h.1","Minimum flue gas temperature at the entrance of the catalyst. The source must establish a limit on minimum flue gas temperature at the entrance of the catalyst on an hourly rolling average as the average of the test run averages;","§63.1209(k)(8)(i)",null,null,null,null,null,null,{"$f":"IF(Screening!$AB$6=\"Yes\", \"Ex\",\"\")","v":""},null,null,null,null,null,null,null,null,null,null,null,{"$f":"IF(Screening!$AB$18=\"Yes\", \"Ex\",\"\")","v":""},null,null,null,null,null,null,null,null,null,null,null,null,null,null,null,null,null,null,null,null,null,null,null,null,null,""]
[109,"1.C.2.h.2","Maximum time in-use. The source must replace a catalytic oxidizer with a new catalytic oxidizer when it has reached the maximum service time specified by the manufacturer;","§63.1209(k)(8)(ii)",null,null,null,null,null,null,{"$f":"IF(Screening!$AB$6=\"Yes\", \"Ex\",\"\")","v":""},null,null,null,null,null,null,null,null,null,null,null,{"$f":"IF(Screening!$AB$18=\"Yes\", \"Ex\",\"\")","v":""},null,null,null,null,null,null,null,null,null,null,null,null,null,null,null,null,null,null,null,null,null,null,null,null,null,""]
[110,"1.C.2.h.3","Catalyst replacement specifications. When the source replaces a catalyst with a new one, the new catalyst must be equivalent to or better than the one used during the previous comprehensive test, as measured by (A) catalytic metal loading for each metal; (B) space time, expressed in the units 1/s, the maximum rated volumetric flow of combustion gas through the catalyst divided by the volume of the catalyst; and (C) substrate construction, including materials of construction, washcoat type, and pore density;","§63.1209(k)(8)(iii)",null,null,null,null,null,null,{"$f":"IF(Screening!$AB$6=\"Yes\", \"Ex\",\"\")","v":""},null,null,null,null,null,null,null,null,null,null,null,{"$f":"IF(Screening!$AB$18=\"Yes\", \"Ex\",\"\")","v":""},null,null,null,null,null,null,null,null,null,null,null,null,null,null,null,null,null,null,null,null,null,null,null,null,null,""]
[111,"1.C.2.h.4","Maximum flue gas temperature. The source must establish a maximum flue gas temperature limit at the entrance of the catalyst as an hourly rolling average, based on manufacturer's specifications.","§63.1209(k)(8)(iv)",null,null,null,null,null,null,{"$f":"IF(Screening!$AB$6=\"Yes\", \"Ex\",\"\")","v":""},null,null,null,null,null,null,null,null,null,null,null,{"$f":"IF(Screening!$AB$18=\"Yes\", \"Ex\",\"\")","v":""},null,null,null,null,null,null,null,null,null,null,null,null,null,null,null,null,null,null,null,null,null,null,null,null,null,""]
[112,"1.C.2.i","Inhibitor feedrate parameter limits. If the source feeds a dioxin/furan inhibitor into the combustion system, it must establish limits for the following parameters:(Also see Section 1.A.23)","§63.1209(k)(9)",null,null,null,null,null,null,{"$f":"IF(Screening!$AB$6=\"Yes\", \"Ex\",\"\")","v":""},null,null,null,null,null,null,null,null,null,null,null,{"$f":"IF(Screening!$AB$18=\"Yes\", \"Ex\",\"\")","v":""},null,null,null,null,null,null,null,null,null,null,null,null,null,null,null,null,null,null,null,{"$f":"IF(Screening!$AB$38=\"No\", \"Ex\",\"\")","v":""},null,null,null,null,null,""]
[113,"1.C.2.i.1","Minimum inhibitor feedrate. The source must establish a limit on minimum inhibitor feedrate on an hourly rolling average as the average of the test run averages;","§63.1209(k)(9)(i)",null,null,null,null,null,null,{"$f":"IF(Screening!$AB$6=\"Yes\", \"Ex\",\"\")","v":""},null,null,null,null,null,null,null,null,null,null,null,{"$f":"IF(Screening!$AB$18=\"Yes\", \"Ex\",\"\")","v":""},null,null,null,null,null,null,null,null,null,null,null,null,null,null,null,null,null,null,null,{"$f":"IF(Screening!$AB$38=\"No\", \"Ex\",\"\")","v":""},null,null,null,null,null,""]
[114,"1.C.2.i.2","Inhibitor specifications. (A) The source must specify and use the brand (i.e., manufacturer) and type of inhibitor used during the comprehensive performance test until a subsequent comprehensive performance test is conducted, unless the source documents in the site-specific performance test plan required under §§63.1207(e) and (f) key parameters that affect the effectiveness of the inhibitor and establish limits on those parameters based on the inhibitor used in the performance test.\nNote to 1.C.2.i.2: Under §63.1209(k)(9)(ii)(B) the source may substitute at any time a different brand or type of inhibitor provided that the replacement has equivalent or improved properties to the inhibitor used in the performance test and conforms to the key parameters the source identifies under §63.1209(k)(9)(ii)(A). The source must include in the operating record documentation that the substitute inhibitor will provide the same level of control as the original inhibitor.","§63.1209(k)(9)(ii)",null,null,null,null,null,null,{"$f":"IF(Screening!$AB$6=\"Yes\", \"Ex\",\"\")","v":""},null,null,null,null,null,null,null,null,null,null,null,{"$f":"IF(Screening!$AB$18=\"Yes\", \"Ex\",\"\")","v":""},null,null,null,null,null,null,null,null,null,null,null,null,null,null,null,null,null,null,null,{"$f":"IF(Screening!$AB$38=\"No\", \"Ex\",\"\")","v":""},null,null,null,null,null,""]
[115,"1.C.3","Mercury. The source must comply with the mercury emission standard by establishing and complying with the following operating parameter limits. The source must base the limits on operations during the comprehensive performance test, unless the limits are based on manufacturer specifications.","§63.1209(l)",null,null,null,null,null,null,{"$f":"IF(Screening!$AB$6=\"Yes\", \"Ex\",\"\")","v":""},null,null,null,null,null,null,null,null,null,null,null,{"$f":"IF(Screening!$AB$18=\"Yes\", \"Ex\",\"\")","v":""},{"$f":"IF(Screening!$AB$19=\"Yes\", \"Ex\",\"\")","v":""},null,null,null,null,null,null,null,null,null,null,null,null,null,null,null,null,null,null,null,null,null,null,null,null,""]
[116,null,"Incinerators and Solid Fuel Boilers Mercury Feedrate:",null,null,null,null,null,null,null,{"$f":"IF(Screening!$AB$6=\"Yes\", \"Ex\",\"\")","v":""},null,null,null,null,null,null,null,null,null,null,null,null,{"$f":"IF(Screening!$AB$19=\"Yes\", \"Ex\",\"\")","v":""},null,null,null,null,null,null,null,null,null,null,null,null,null,null,null,null,null,null,null,null,null,null,null,null,""]
[117,"1.C.3.a.1","Feedrate of mercury.  For incinerators and solid fuel boilers, when complying with the mercury emission standards under §§63.1203, 63.1216 and 63.1219, the source must establish a 12-hour rolling average limit for the total feedrate of mercury in all feedstreams as the average of the test run averages.","§63.1209(l)(1)(i)",null,null,null,null,null,null,{"$f":"IF(Screening!$AB$6=\"Yes\", \"Ex\",\"\")","v":""},{"$f":"IF(AND(Screening!$AB$4=\"No\",Screening!$AB$7=\"No\"),\"Ex\",\"\")","v":""},null,null,null,null,null,null,null,null,null,null,null,{"$f":"IF(Screening!$AB$19=\"Yes\", \"Ex\",\"\")","v":""},null,null,null,null,null,null,null,null,null,null,null,null,null,null,null,null,null,null,null,null,null,null,null,null,""]
[118,null,"Liquid Fuel Boilers Mercury Feedrate:",null,null,null,null,null,null,{"$f":"IF(Screening!$AB$5=\"No\", \"Ex\",\"\")","v":""},{"$f":"IF(Screening!$AB$6=\"Yes\", \"Ex\",\"\")","v":""},null,null,null,null,null,null,null,null,null,null,null,null,{"$f":"IF(Screening!$AB$19=\"Yes\", \"Ex\",\"\")","v":""},null,null,null,null,null,null,null,null,null,null,null,null,null,null,null,null,null,null,null,null,null,null,null,null,""]
[119,"1.C.3.a.2","For liquid fuel boilers, when complying with the mercury emission standards of §63.1217, the source must establish a rolling average limit for the mercury feedrate as follows on an averaging period not to exceed an annual rolling average:","§63.1209(l)(1)(ii)",null,null,null,null,null,{"$f":"IF(Screening!$AB$5=\"No\", \"Ex\",\"\")","v":""},{"$f":"IF(Screening!$AB$6=\"Yes\", \"Ex\",\"\")","v":""},null,null,null,null,null,null,null,null,null,null,null,null,{"$f":"IF(Screening!$AB$19=\"Yes\", \"Ex\",\"\")","v":""},null,null,null,null,null,null,null,null,null,null,null,null,null,null,null,null,null,null,null,null,null,null,null,null,""]
[120,"1.C.3.a.2.a","The source must calculate a mercury system removal efficiency for each test run and calculate the average system removal efficiency of the test run averages. If emissions exceed the mercury emission standard during the comprehensive performance test, it is not a violation because the averaging period for the mercury emission standard is (not-to-exceed) one year and compliance is based on compliance with the mercury feedrate limit with an averaging period not-to-exceed one year.","§63.1209(l)(1)(ii)(A)",null,null,null,null,null,{"$f":"IF(Screening!$AB$5=\"No\", \"Ex\",\"\")","v":""},{"$f":"IF(Screening!$AB$6=\"Yes\", \"Ex\",\"\")","v":""},null,null,null,null,null,null,null,null,null,null,null,null,{"$f":"IF(Screening!$AB$19=\"Yes\", \"Ex\",\"\")","v":""},null,null,null,null,null,null,null,null,null,null,null,null,null,null,null,null,null,null,null,null,null,null,null,null,""]
[121,"1.C.3.a.2.b","If the source burns hazardous waste with a heating value of 10,000 Btu/lb or greater, the source must calculate the mercury feedrate limit as follows:","§63.1209(l)(1)(ii)(B)",null,null,null,null,null,{"$f":"IF(Screening!$AB$5=\"No\", \"Ex\",\"\")","v":""},{"$f":"IF(Screening!$AB$6=\"Yes\", \"Ex\",\"\")","v":""},null,null,null,null,null,null,null,null,null,null,null,null,{"$f":"IF(Screening!$AB$19=\"Yes\", \"Ex\",\"\")","v":""},null,null,null,null,null,null,{"$f":"IF(Screening!$AB$26=\"No\", \"Ex\",\"\")","v":""},null,null,null,null,null,null,null,null,null,null,null,null,null,null,null,null,null,""]
[122,"1.C.3.a.2.b.1","The mercury feedrate limit is the emission standard divided by [1 − system removal efficiency].","§63.1209(l)(1)(ii)(B)(1)",null,null,null,null,null,{"$f":"IF(Screening!$AB$5=\"No\", \"Ex\",\"\")","v":""},{"$f":"IF(Screening!$AB$6=\"Yes\", \"Ex\",\"\")","v":""},null,null,null,null,null,null,null,null,null,null,null,null,{"$f":"IF(Screening!$AB$19=\"Yes\", \"Ex\",\"\")","v":""},null,null,null,null,null,null,{"$f":"IF(Screening!$AB$26=\"No\", \"Ex\",\"\")","v":""},null,null,null,null,null,null,null,null,null,null,null,null,null,null,null,null,null,""]
[123,"1.C.3.a.2.b.2","The mercury feedrate limit is a hazardous waste thermal concentration limit expressed as pounds of mercury in hazardous waste feedstreams per million Btu of hazardous waste fired.","§63.1209(l)(1)(ii)(B)(2)",null,null,null,null,null,{"$f":"IF(Screening!$AB$5=\"No\", \"Ex\",\"\")","v":""},{"$f":"IF(Screening!$AB$6=\"Yes\", \"Ex\",\"\")","v":""},null,null,null,null,null,null,null,null,null,null,null,null,{"$f":"IF(Screening!$AB$19=\"Yes\", \"Ex\",\"\")","v":""},null,null,null,null,null,null,{"$f":"IF(Screening!$AB$26=\"No\", \"Ex\",\"\")","v":""},null,null,null,null,null,null,null,null,null,null,null,null,null,null,null,null,null,""]
[124,"1.C.3.a.2.b.3  ","The source must comply with the hazardous waste mercury thermal concentration limit by determining the feedrate of mercury in all hazardous waste feedstreams (lb/hr) at least once a minute and the hazardous waste thermal feedrate (MM Btu/hr) at least once a minute to calculate a 60-minute average thermal emission concentration as [hazardous waste mercury federate (lb/hr) / hazardous waste thermal feedrate (MM Btu/hr)].","§63.1209(l)(1)(ii)(B)(3)",null,null,null,null,null,{"$f":"IF(Screening!$AB$5=\"No\", \"Ex\",\"\")","v":""},{"$f":"IF(Screening!$AB$6=\"Yes\", \"Ex\",\"\")","v":""},null,null,null,null,null,null,null,null,null,null,null,null,{"$f":"IF(Screening!$AB$19=\"Yes\", \"Ex\",\"\")","v":""},null,null,null,null,null,null,{"$f":"IF(Screening!$AB$26=\"No\", \"Ex\",\"\")","v":""},null,null,null,null,null,null,null,null,null,null,null,null,null,null,null,null,null,""]
[125,"1.C.3.a.2.b.4  ","The source must calculate a rolling average hazardous waste mercury thermal concentration that is updated each hour.","§63.1209(l)(1)(ii)(B)(4)",null,null,null,null,null,{"$f":"IF(Screening!$AB$5=\"No\", \"Ex\",\"\")","v":""},{"$f":"IF(Screening!$AB$6=\"Yes\", \"Ex\",\"\")","v":""},null,null,null,null,null,null,null,null,null,null,null,null,{"$f":"IF(Screening!$AB$19=\"Yes\", \"Ex\",\"\")","v":""},null,null,null,null,null,null,{"$f":"IF(Screening!$AB$26=\"No\", \"Ex\",\"\")","v":""},null,null,null,null,null,null,null,null,null,null,null,null,null,null,null,null,null,""]
[126,"1.C.3.a.2.b.5","If you select an averaging period for the feedrate limit that is greater than a 12-hour rolling average, you must calculate the initial rolling average as though you had selected a 12-hour rolling average, as provided by paragraph (b)(5)(i) of this section. Thereafter, you must calculate rolling averages using either one-minute or one-hour updates. Hourly updates shall be calculated using the average of the one-minute average data for the preceding hour. For the period beginning with initial operation under this standard until the source has operated for the full averaging period that you select, the average feedrate shall be based only on actual operation under this standard. ","§63.1209(l)(1)(ii)(B)(5)Rev. 04/08/08 FR",null,null,null,null,null,{"$f":"IF(Screening!$AB$5=\"No\", \"Ex\",\"\")","v":""},{"$f":"IF(Screening!$AB$6=\"Yes\", \"Ex\",\"\")","v":""},null,null,null,null,null,null,null,null,null,null,null,null,{"$f":"IF(Screening!$AB$19=\"Yes\", \"Ex\",\"\")","v":""},null,null,null,null,null,null,{"$f":"IF(Screening!$AB$26=\"No\", \"Ex\",\"\")","v":""},null,null,null,null,null,null,null,null,null,null,null,null,null,null,null,null,null,""]
[127,"1.C.3.a.2.c","If the source burns hazardous waste with a heating value of less than 10,000 Btu/lb, the source must calculate the mercury feedrate limit as follows:","§63.1209(l)(1)(ii)(C)",null,null,null,null,null,{"$f":"IF(Screening!$AB$5=\"No\", \"Ex\",\"\")","v":""},{"$f":"IF(Screening!$AB$6=\"Yes\", \"Ex\",\"\")","v":""},null,null,null,null,null,null,null,null,null,null,null,null,{"$f":"IF(Screening!$AB$19=\"Yes\", \"Ex\",\"\")","v":""},null,null,null,null,null,null,null,{"$f":"IF(Screening!$AB$27=\"No\", \"Ex\",\"\")","v":""},null,null,null,null,null,null,null,null,null,null,null,null,null,null,null,null,""]
[128,"1.C.3.a.2.c.1","The source must calculate the mercury feedrate limit as the mercury emission standard divided by [1 − System Removal Efficiency].","§63.1209(l)(1)(ii)(C)(1)",null,null,null,null,null,{"$f":"IF(Screening!$AB$5=\"No\", \"Ex\",\"\")","v":""},{"$f":"IF(Screening!$AB$6=\"Yes\", \"Ex\",\"\")","v":""},null,null,null,null,null,null,null,null,null,null,null,null,{"$f":"IF(Screening!$AB$19=\"Yes\", \"Ex\",\"\")","v":""},null,null,null,null,null,null,null,{"$f":"IF(Screening!$AB$27=\"No\", \"Ex\",\"\")","v":""},null,null,null,null,null,null,null,null,null,null,null,null,null,null,null,null,""]
[129,"1.C.3.a.2.c.2","The feedrate limit is expressed as a mass concentration per unit volume of stack gas (µgm/dscm) and is converted to a mass feedrate (lb/hr) by multiplying it by the average stack gas flowrate of the test run averages.","§63.1209(l)(1)(ii)(C)(2)",null,null,null,null,null,{"$f":"IF(Screening!$AB$5=\"No\", \"Ex\",\"\")","v":""},{"$f":"IF(Screening!$AB$6=\"Yes\", \"Ex\",\"\")","v":""},null,null,null,null,null,null,null,null,null,null,null,null,{"$f":"IF(Screening!$AB$19=\"Yes\", \"Ex\",\"\")","v":""},null,null,null,null,null,null,null,{"$f":"IF(Screening!$AB$27=\"No\", \"Ex\",\"\")","v":""},null,null,null,null,null,null,null,null,null,null,null,null,null,null,null,null,{"$f":"IF(OR(I130=\"Ex\",J130=\"Ex\",K130=\"Ex\",L130=\"Ex\",M130=\"Ex\",N130=\"Ex\",O130=\"Ex\",P130=\"Ex\",Q130=\"Ex\",R130=\"Ex\",S130=\"Ex\",T130=\"Ex\",U130=\"Ex\",V130=\"Ex\",W130=\"Ex\",X130=\"Ex\",Y130=\"Ex\",Z130=\"Ex\",AA130=\"Ex\",AB130=\"Ex\",AC130=\"Ex\",AD130=\"Ex\",AE130=\"Ex\",AF130=\"Ex\",AG130=\"Ex\",AH130=\"Ex\",AI130=\"Ex\",AJ130=\"Ex\",AK130=\"Ex\",AL130=\"Ex\",AM130=\"Ex\",AN130=\"Ex\",AO130=\"Ex\",AP130=\"Ex\",AQ130=\"Ex\",AR130=\"Ex\",AS130=\"Ex\",AT130=\"Ex\",AU130=\"Ex\",AV130=\"Ex\"), \"Ex\",\"\")","v":""}]
[130,"1.C.3.a.2.c.3","The source must comply with the feedrate limit by determining the mercury feedrate (lb/hr) at least once a minute to calculate a 60-minute average feedrate.","§63.1209(l)(1)(ii)(C)(3)  ",null,null,null,null,null,{"$f":"IF(Screening!$AB$5=\"No\", \"Ex\",\"\")","v":""},{"$f":"IF(Screening!$AB$6=\"Yes\", \"Ex\",\"\")","v":""},null,null,null,null,null,null,null,null,null,null,null,null,{"$f":"IF(Screening!$AB$19=\"Yes\", \"Ex\",\"\")","v":""},null,null,null,null,null,null,null,null,null,null,null,null,null,null,null,null,null,null,null,null,null,null,null,null,""]
[131,"1.C.3.a.2.c.4","The source must update the rolling average feedrate each hour with this 60-minute feedrate measurement.","§63.1209(l)(1)(ii)(C)(4)",null,null,null,null,null,{"$f":"IF(Screening!$AB$5=\"No\", \"Ex\",\"\")","v":""},{"$f":"IF(Screening!$AB$6=\"Yes\", \"Ex\",\"\")","v":""},null,null,null,null,null,null,null,null,null,null,null,null,{"$f":"IF(Screening!$AB$19=\"Yes\", \"Ex\",\"\")","v":""},null,null,null,null,null,null,null,null,null,null,null,null,null,null,null,null,null,null,null,null,null,null,null,null,""]
[132,"1.C.3.a.2.c.5","If you select an averaging period for the feedrate limit that is greater than a 12-hour rolling average, you must calculate the initial rolling average as though you had selected a 12-hour rolling average, as provided by paragraph (b)(5)(i) of this section. Thereafter, you must calculate rolling averages using either one-minute or one-hour updates. Hourly updates shall be calculated using the average of the one-minute average data for the preceding hour. For the period beginning with initial operation under this standard until the source has operated for the full averaging period that you select, the average feedrate shall be based only on actual operation under this standard. ","§63.1209(l)(1)(ii)(C)(5)Rev. 04/08/08 FR",null,null,null,null,null,{"$f":"IF(Screening!$AB$5=\"No\", \"Ex\",\"\")","v":""},{"$f":"IF(Screening!$AB$6=\"Yes\", \"Ex\",\"\")","v":""},null,null,null,null,null,null,null,null,null,null,null,null,{"$f":"IF(Screening!$AB$19=\"Yes\", \"Ex\",\"\")","v":""},null,null,null,null,null,null,null,null,null,null,null,null,null,null,null,null,null,null,null,null,null,null,null,null,""]
[133,"1.C.3.a.2.d  ","If the source’s boiler is equipped with a wet scrubber, the source must comply with the following unless the source documents in the performance test plan that the source does not feed chlorine at rates that may substantially affect the system removal efficiency of mercury for purposes of establishing a mercury feedrate limit based on the system removal efficiency during the test:","§63.1209(l)(1)(ii)(D)",null,null,null,null,null,{"$f":"IF(Screening!$AB$5=\"No\", \"Ex\",\"\")","v":""},{"$f":"IF(Screening!$AB$6=\"Yes\", \"Ex\",\"\")","v":""},null,null,null,null,null,null,null,null,null,null,null,null,{"$f":"IF(Screening!$AB$19=\"Yes\", \"Ex\",\"\")","v":""},null,null,null,null,null,null,null,null,null,null,null,null,null,null,null,null,null,null,null,null,null,null,null,null,""]
[134,"1.C.3.a.2.d.1","Scrubber blowdown must be minimized during a pretest conditioning period and during the performance test:","§63.1209(l)(1)(ii)(D)(1)",null,null,null,null,null,{"$f":"IF(Screening!$AB$5=\"No\", \"Ex\",\"\")","v":""},{"$f":"IF(Screening!$AB$6=\"Yes\", \"Ex\",\"\")","v":""},null,null,null,null,null,null,null,null,null,null,null,null,{"$f":"IF(Screening!$AB$19=\"Yes\", \"Ex\",\"\")","v":""},null,null,null,null,null,null,null,null,null,null,null,null,null,null,null,null,null,null,null,null,null,null,null,null,""]
[135,"1.C.3.a.2.d.2","Scrubber water must be preconditioned so that mercury in the water is at equilibrium with stack gas at the mercury feedrate level of the performance test; and","§63.1209(l)(1)(ii)(D)(2)",null,null,null,null,null,{"$f":"IF(Screening!$AB$5=\"No\", \"Ex\",\"\")","v":""},{"$f":"IF(Screening!$AB$6=\"Yes\", \"Ex\",\"\")","v":""},null,null,null,null,null,null,null,null,null,null,null,null,{"$f":"IF(Screening!$AB$19=\"Yes\", \"Ex\",\"\")","v":""},null,null,null,null,null,null,null,null,null,null,null,null,null,null,null,null,null,null,null,null,null,null,null,null,""]
[136,"1.C.3.a.2.d.3","The source must establish an operating limit on minimum pH of scrubber water as the average of the test run averages and comply with the limit on an hourly rolling average.","§63.1209(l)(1)(ii)(D)(3)",null,null,null,null,null,{"$f":"IF(Screening!$AB$5=\"No\", \"Ex\",\"\")","v":""},{"$f":"IF(Screening!$AB$6=\"Yes\", \"Ex\",\"\")","v":""},null,null,null,null,null,null,null,null,null,null,null,null,{"$f":"IF(Screening!$AB$19=\"Yes\", \"Ex\",\"\")","v":""},null,null,null,null,null,null,null,null,null,null,null,null,null,null,null,null,null,null,null,null,null,null,null,null,""]
[137,null,"Cement Kilns Mercury Feedrate:",null,null,null,null,null,null,null,{"$f":"IF(Screening!$AB$6=\"Yes\", \"Ex\",\"\")","v":""},null,{"$f":"IF(Screening!$AB$8=\"No\", \"Ex\",\"\")","v":""},null,null,null,null,null,null,null,null,null,null,{"$f":"IF(Screening!$AB$19=\"Yes\", \"Ex\",\"\")","v":""},null,null,null,null,null,null,null,null,null,null,null,null,null,null,null,null,null,null,null,null,null,null,null,null,""]
[138,"1.C.3.a.3","For cement kilns:","§63.1209(l)(1)(iii)  ",null,null,null,null,null,null,{"$f":"IF(Screening!$AB$6=\"Yes\", \"Ex\",\"\")","v":""},null,{"$f":"IF(Screening!$AB$8=\"No\", \"Ex\",\"\")","v":""},null,null,null,null,null,null,null,null,null,null,{"$f":"IF(Screening!$AB$19=\"Yes\", \"Ex\",\"\")","v":""},null,null,null,null,null,null,null,null,null,null,null,null,null,null,null,null,null,null,null,null,null,null,null,null,""]
[139,"1.C.3.a.3.a","When complying with the emission standards under §§63.1220(a)(2)(i) and (b)(2)(i), the source must:","§63.1209(l)(1)(iii)(A)",null,null,null,null,null,null,{"$f":"IF(Screening!$AB$6=\"Yes\", \"Ex\",\"\")","v":""},null,{"$f":"IF(Screening!$AB$8=\"No\", \"Ex\",\"\")","v":""},null,null,null,null,null,null,null,null,null,null,{"$f":"IF(Screening!$AB$19=\"Yes\", \"Ex\",\"\")","v":""},null,null,null,null,null,null,null,null,null,null,null,null,null,null,null,null,null,null,null,null,null,null,null,null,""]
[140,"1.C.3.a.3.a.1","Comply with the mercury hazardous waste feed concentration operating requirement on a twelve-hour rolling average;","§63.1209(l)(1)(iii)(A)(1)",null,null,null,null,null,null,{"$f":"IF(Screening!$AB$6=\"Yes\", \"Ex\",\"\")","v":""},null,{"$f":"IF(Screening!$AB$8=\"No\", \"Ex\",\"\")","v":""},null,null,null,null,null,null,null,null,null,null,{"$f":"IF(Screening!$AB$19=\"Yes\", \"Ex\",\"\")","v":""},null,null,null,null,null,null,null,null,null,null,null,null,null,null,null,null,null,null,null,null,null,null,null,null,""]
[141,"1.C.3.a.3.a.2","Monitor and record in the operating record the as-fired mercury concentration in the hazardous waste (or the weighted-average mercury concentration for multiple hazardous waste feedstreams);","§63.1209(l)(1)(iii)(A)(2)",null,null,null,null,null,null,{"$f":"IF(Screening!$AB$6=\"Yes\", \"Ex\",\"\")","v":""},null,{"$f":"IF(Screening!$AB$8=\"No\", \"Ex\",\"\")","v":""},null,null,null,null,null,null,null,null,null,null,{"$f":"IF(Screening!$AB$19=\"Yes\", \"Ex\",\"\")","v":""},null,null,null,null,null,null,null,null,null,null,null,null,null,null,null,null,null,null,null,null,null,null,null,null,""]
[142,"1.C.3.a.3.a.3","Initiate an automatic waste feed cutoff that immediately and automatically cuts off the hazardous waste feed when the as-fired mercury concentration operating requirement is exceeded;","§63.1209(l)(1)(iii)(A)(3)  ",null,null,null,null,null,null,{"$f":"IF(Screening!$AB$6=\"Yes\", \"Ex\",\"\")","v":""},null,{"$f":"IF(Screening!$AB$8=\"No\", \"Ex\",\"\")","v":""},null,null,null,null,null,null,null,null,null,null,{"$f":"IF(Screening!$AB$19=\"Yes\", \"Ex\",\"\")","v":""},null,null,null,null,null,null,null,null,null,null,null,null,null,null,null,null,null,null,null,null,null,null,null,null,""]
[143,"1.C.3.a.3.b","When complying with the emission standards under §§63.1204 and 63.1220(a)(2)(ii)(A) and (b)(2)(ii)(A), you must establish a 12-hour rolling average limit for the feedrate of mercury in all feedstreams as the average of the test run averages;","§63.1209(l)(1)(iii)(B)Rev. 4/8/08 FR",null,null,null,null,null,null,{"$f":"IF(Screening!$AB$6=\"Yes\", \"Ex\",\"\")","v":""},null,{"$f":"IF(Screening!$AB$8=\"No\", \"Ex\",\"\")","v":""},null,null,null,null,null,null,null,null,null,null,{"$f":"IF(Screening!$AB$19=\"Yes\", \"Ex\",\"\")","v":""},null,null,null,null,null,null,null,null,null,null,null,null,null,null,null,null,null,null,null,null,null,null,null,null,""]
[144,"1.C.3.a.3.c","Except as provided by paragraph (l)(1)(iii)(D) of this section, when complying with the hazardous waste maximum theoretical emission concentration (MTEC) under §63.1220(a)(2)(ii)(B) and (b)(2)(ii)(B), you must:","§63.1209(l)(1)(iii)(C)  Rev. 4/8/08 FR",null,null,null,null,null,null,{"$f":"IF(Screening!$AB$6=\"Yes\", \"Ex\",\"\")","v":""},null,{"$f":"IF(Screening!$AB$8=\"No\", \"Ex\",\"\")","v":""},null,null,null,null,null,null,null,null,null,null,{"$f":"IF(Screening!$AB$19=\"Yes\", \"Ex\",\"\")","v":""},null,null,null,null,null,null,null,null,null,null,null,null,null,null,null,null,null,null,null,null,null,null,null,null,""]
[145,"1.C.3.a.3.c.1","Comply with the MTEC operating requirement on a twelve-hour rolling average;","§63.1209(l)(1)(iii)(C)(1)",null,null,null,null,null,null,{"$f":"IF(Screening!$AB$6=\"Yes\", \"Ex\",\"\")","v":""},null,{"$f":"IF(Screening!$AB$8=\"No\", \"Ex\",\"\")","v":""},null,null,null,null,null,null,null,null,null,null,{"$f":"IF(Screening!$AB$19=\"Yes\", \"Ex\",\"\")","v":""},null,null,null,null,null,null,null,null,null,null,null,null,null,null,null,null,null,null,null,null,null,null,null,null,""]
[146,"1.C.3.a.3.c.2","Monitor and record the feedrate of mercury for each hazardous waste feedstream according to §63.1209(c);","§63.1209(l)(1)(iii)(C)(2)",null,null,null,null,null,null,{"$f":"IF(Screening!$AB$6=\"Yes\", \"Ex\",\"\")","v":""},null,{"$f":"IF(Screening!$AB$8=\"No\", \"Ex\",\"\")","v":""},null,null,null,null,null,null,null,null,null,null,{"$f":"IF(Screening!$AB$19=\"Yes\", \"Ex\",\"\")","v":""},null,null,null,null,null,null,null,null,null,null,null,null,null,null,null,null,null,null,null,null,null,null,null,null,""]
[147,"1.C.3.a.3.c.3","Monitor with a CMS and record in the operating record the gas flowrate (either directly or by monitoring a surrogate parameter that the source has correlated to gas flowrate);","§63.1209(l)(1)(iii)(C)(3)",null,null,null,null,null,null,{"$f":"IF(Screening!$AB$6=\"Yes\", \"Ex\",\"\")","v":""},null,{"$f":"IF(Screening!$AB$8=\"No\", \"Ex\",\"\")","v":""},null,null,null,null,null,null,null,null,null,null,{"$f":"IF(Screening!$AB$19=\"Yes\", \"Ex\",\"\")","v":""},null,null,null,null,null,null,null,null,null,null,null,null,null,null,null,null,null,null,null,null,null,null,null,null,""]
[148,"1.C.3.a.3.c.4","Continuously calculate and record in the operating record a MTEC assuming mercury from all hazardous waste feedstreams is emitted;","§63.1209(l)(1)(iii)(C)(4)",null,null,null,null,null,null,{"$f":"IF(Screening!$AB$6=\"Yes\", \"Ex\",\"\")","v":""},null,{"$f":"IF(Screening!$AB$8=\"No\", \"Ex\",\"\")","v":""},null,null,null,null,null,null,null,null,null,null,{"$f":"IF(Screening!$AB$19=\"Yes\", \"Ex\",\"\")","v":""},null,null,null,null,null,null,null,null,null,null,null,null,null,null,null,null,null,null,null,null,null,null,null,null,""]
[149,"1.C.3.a.3.c.5 ","Initiate an automatic waste feed cutoff that immediately and automatically cuts off the hazardous waste feed when the MTEC operating requirement is exceeded;","§63.1209(l)(1)(iii)(C)(5)",null,null,null,null,null,null,{"$f":"IF(Screening!$AB$6=\"Yes\", \"Ex\",\"\")","v":""},null,{"$f":"IF(Screening!$AB$8=\"No\", \"Ex\",\"\")","v":""},null,null,null,null,null,null,null,null,null,null,{"$f":"IF(Screening!$AB$19=\"Yes\", \"Ex\",\"\")","v":""},null,null,null,null,null,null,null,null,null,null,null,null,null,null,null,null,null,null,null,null,null,null,null,null,""]
[150,"1.C.3.a.3.d","In lieu of complying with §63.1209(l)(1)(iii)(C) of this section, the source may:","§63.1209(l)(1)(iii)(D)",null,null,null,null,null,null,{"$f":"IF(Screening!$AB$6=\"Yes\", \"Ex\",\"\")","v":""},null,{"$f":"IF(Screening!$AB$8=\"No\", \"Ex\",\"\")","v":""},null,null,null,null,null,null,null,null,null,null,{"$f":"IF(Screening!$AB$19=\"Yes\", \"Ex\",\"\")","v":""},null,null,null,null,null,null,null,null,null,null,null,null,null,null,null,null,null,null,null,null,null,null,null,null,""]
[151,"1.C.3.a.3.d.1","Identify in the Notification of Compliance a minimum gas flowrate limit and a maximum feedrate limit of mercury from all hazardous waste feedstreams that ensures the MTEC calculated in paragraph (l)(1)(iii)(C)(4) of this section is below the operating requirement under paragraphs §§63.1220(a)(2)(ii)(B) and (b)(2)(ii)(B); and","§63.1209(l)(1)(iii)(D)(1) Rev. 4/8/08 FR",null,null,null,null,null,null,{"$f":"IF(Screening!$AB$6=\"Yes\", \"Ex\",\"\")","v":""},null,{"$f":"IF(Screening!$AB$8=\"No\", \"Ex\",\"\")","v":""},null,null,null,null,null,null,null,null,null,null,{"$f":"IF(Screening!$AB$19=\"Yes\", \"Ex\",\"\")","v":""},null,null,null,null,null,null,null,null,null,null,null,null,null,null,null,null,null,null,null,null,null,null,null,null,""]
[152,"1.C.3.a.3.d.2","Initiate an automatic waste feed cutoff that immediately and automatically cuts off the hazardous waste feed when either the gas flowrate or mercury feedrate exceeds the limits identified in paragraph (l)(1)(iii)(D)(1) of this section.","§63.1209(l)(1)(iii)(D)(2)Rev. 4/8/08 FR",null,null,null,null,null,null,{"$f":"IF(Screening!$AB$6=\"Yes\", \"Ex\",\"\")","v":""},null,{"$f":"IF(Screening!$AB$8=\"No\", \"Ex\",\"\")","v":""},null,null,null,null,null,null,null,null,null,null,{"$f":"IF(Screening!$AB$19=\"Yes\", \"Ex\",\"\")","v":""},null,null,null,null,null,null,null,null,null,null,null,null,null,null,null,null,null,null,null,null,null,null,null,null,""]
[153,null,"Lightweight Aggregate Kilns Mercury Feedrate:",null,null,null,null,null,null,null,{"$f":"IF(Screening!$AB$6=\"Yes\", \"Ex\",\"\")","v":""},null,null,{"$f":"IF(Screening!$AB$9=\"No\", \"Ex\",\"\")","v":""},null,null,null,null,null,null,null,null,null,{"$f":"IF(Screening!$AB$19=\"Yes\", \"Ex\",\"\")","v":""},null,null,null,null,null,null,null,null,null,null,null,null,null,null,null,null,null,null,null,null,null,null,null,null,""]
[154,"1.C.3.a.4","For lightweight aggregate kilns:","§63.1209(l)(1)(iv)",null,null,null,null,null,null,{"$f":"IF(Screening!$AB$6=\"Yes\", \"Ex\",\"\")","v":""},null,null,{"$f":"IF(Screening!$AB$9=\"No\", \"Ex\",\"\")","v":""},null,null,null,null,null,null,null,null,null,{"$f":"IF(Screening!$AB$19=\"Yes\", \"Ex\",\"\")","v":""},null,null,null,null,null,null,null,null,null,null,null,null,null,null,null,null,null,null,null,null,null,null,null,null,""]
[155,"1.C.3.a.4.a","When complying with the emission standards under §§63.1205, 63.1221(a)(2)(i) and (b)(2)(i), the source must establish a 12-hour rolling average limit for the total feedrate of mercury in all feedstreams as the average of the test run averages;","§63.1209(l)(1)(iv)(A)",null,null,null,null,null,null,{"$f":"IF(Screening!$AB$6=\"Yes\", \"Ex\",\"\")","v":""},null,null,{"$f":"IF(Screening!$AB$9=\"No\", \"Ex\",\"\")","v":""},null,null,null,null,null,null,null,null,null,{"$f":"IF(Screening!$AB$19=\"Yes\", \"Ex\",\"\")","v":""},null,null,null,null,null,null,null,null,null,null,null,null,null,null,null,null,null,null,null,null,null,null,null,null,""]
[156,"1.C.3.a.4.b","Except as provided by §63.1209(l)(1)(iv)(C), when complying with the hazardous waste feedrate corresponding to a maximum theoretical emission concentration (MTEC) under §§63.1221(a)(2)(ii) and (b)(2)(ii), the source must:","§63.1209(l)(1)(iv)(B)",null,null,null,null,null,null,{"$f":"IF(Screening!$AB$6=\"Yes\", \"Ex\",\"\")","v":""},null,null,{"$f":"IF(Screening!$AB$9=\"No\", \"Ex\",\"\")","v":""},null,null,null,null,null,null,null,null,null,{"$f":"IF(Screening!$AB$19=\"Yes\", \"Ex\",\"\")","v":""},null,null,null,null,null,null,null,null,null,null,null,null,null,null,null,null,null,null,null,null,null,null,null,null,""]
[157,"1.C.3.a.4.b.1","Comply with the MTEC operating requirement on a twelve-hour rolling average; ","§63.1209(l)(1)(iv)(B)(1)",null,null,null,null,null,null,{"$f":"IF(Screening!$AB$6=\"Yes\", \"Ex\",\"\")","v":""},null,null,{"$f":"IF(Screening!$AB$9=\"No\", \"Ex\",\"\")","v":""},null,null,null,null,null,null,null,null,null,{"$f":"IF(Screening!$AB$19=\"Yes\", \"Ex\",\"\")","v":""},null,null,null,null,null,null,null,null,null,null,null,null,null,null,null,null,null,null,null,null,null,null,null,null,""]
[158,"1.C.3.a.4.b.2","Monitor and record the feedrate of mercury for each hazardous waste feedstream according to §63.1209(c);","§63.1209(l)(1)(iv)(B)(2)",null,null,null,null,null,null,{"$f":"IF(Screening!$AB$6=\"Yes\", \"Ex\",\"\")","v":""},null,null,{"$f":"IF(Screening!$AB$9=\"No\", \"Ex\",\"\")","v":""},null,null,null,null,null,null,null,null,null,{"$f":"IF(Screening!$AB$19=\"Yes\", \"Ex\",\"\")","v":""},null,null,null,null,null,null,null,null,null,null,null,null,null,null,null,null,null,null,null,null,null,null,null,null,""]
[159,"1.C.3.a.4.b.3","Monitor with a CMS and record in the operating record the gas flowrate (either directly or by monitoring a surrogate parameter that the source has correlated to gas flowrate);","§63.1209(l)(1)(iv)(B)(3)",null,null,null,null,null,null,{"$f":"IF(Screening!$AB$6=\"Yes\", \"Ex\",\"\")","v":""},null,null,{"$f":"IF(Screening!$AB$9=\"No\", \"Ex\",\"\")","v":""},null,null,null,null,null,null,null,null,null,{"$f":"IF(Screening!$AB$19=\"Yes\", \"Ex\",\"\")","v":""},null,null,null,null,null,null,null,null,null,null,null,null,null,null,null,null,null,null,null,null,null,null,null,null,""]
[160,"1.C.3.a.4.b.4","Continuously calculate and record in the operating record a MTEC assuming mercury from all hazardous waste feedstreams is emitted;","§63.1209(l)(1)(iv)(B)(4)",null,null,null,null,null,null,{"$f":"IF(Screening!$AB$6=\"Yes\", \"Ex\",\"\")","v":""},null,null,{"$f":"IF(Screening!$AB$9=\"No\", \"Ex\",\"\")","v":""},null,null,null,null,null,null,null,null,null,{"$f":"IF(Screening!$AB$19=\"Yes\", \"Ex\",\"\")","v":""},null,null,null,null,null,null,null,null,null,null,null,null,null,null,null,null,null,null,null,null,null,null,null,null,""]
[161,"1.C.3.a.4.b.5","Initiate an automatic waste feed cutoff that immediately and automatically cuts off the hazardous waste feed when the MTEC operating requirement is exceeded;","§63.1209(l)(1)(iv)(B)(5)",null,null,null,null,null,null,{"$f":"IF(Screening!$AB$6=\"Yes\", \"Ex\",\"\")","v":""},null,null,{"$f":"IF(Screening!$AB$9=\"No\", \"Ex\",\"\")","v":""},null,null,null,null,null,null,null,null,null,{"$f":"IF(Screening!$AB$19=\"Yes\", \"Ex\",\"\")","v":""},null,null,null,null,null,null,null,null,null,null,null,null,null,null,null,null,null,null,null,null,null,null,null,null,""]
[162,"1.C.3.a.4.c","In lieu of complying with §63.1209(l)(1)(iv)(B) of this section, the source may:","§63.1209(l)(1)(iv)(C)",null,null,null,null,null,null,{"$f":"IF(Screening!$AB$6=\"Yes\", \"Ex\",\"\")","v":""},null,null,{"$f":"IF(Screening!$AB$9=\"No\", \"Ex\",\"\")","v":""},null,null,null,null,null,null,null,null,null,{"$f":"IF(Screening!$AB$19=\"Yes\", \"Ex\",\"\")","v":""},null,null,null,null,null,null,null,null,null,null,null,null,null,null,null,null,null,null,null,null,null,null,null,null,""]
[163,"1.C.3.a.4.c.1","Identify in the Notification of Compliance a minimum gas flowrate limit and a maximum feedrate limit of mercury from all hazardous waste feedstreams that ensures the MTEC calculated in §63.1209(l)(1)(iv)(B)(4) of this section is below the operating requirement under §§63.1221(a)(2)(ii) and (b)(2)(ii); and","§63.1209(l)(1)(iv)(C)(1)",null,null,null,null,null,null,{"$f":"IF(Screening!$AB$6=\"Yes\", \"Ex\",\"\")","v":""},null,null,{"$f":"IF(Screening!$AB$9=\"No\", \"Ex\",\"\")","v":""},null,null,null,null,null,null,null,null,null,{"$f":"IF(Screening!$AB$19=\"Yes\", \"Ex\",\"\")","v":""},null,null,null,null,null,null,null,null,null,null,null,null,null,null,null,null,null,null,null,null,null,null,null,null,""]
[164,"1.C.3.a.4.c.2","Initiate an automatic waste feed cutoff that immediately and automatically cuts off the hazardous waste feed when either the gas flowrate or mercury feedrate exceeds the limits identified in §63.1209(l)(1)(iv)(C)(1) of this section.","§63.1209(l)(1)(iv)(C)(2)",null,null,null,null,null,null,{"$f":"IF(Screening!$AB$6=\"Yes\", \"Ex\",\"\")","v":""},null,null,{"$f":"IF(Screening!$AB$9=\"No\", \"Ex\",\"\")","v":""},null,null,null,null,null,null,null,null,null,{"$f":"IF(Screening!$AB$19=\"Yes\", \"Ex\",\"\")","v":""},null,null,null,null,null,null,null,null,null,null,null,null,null,null,null,null,null,null,null,null,null,null,null,null,""]
[165,null,"Extrapolation of Feedrate Levels:",null,null,null,null,null,null,null,{"$f":"IF(Screening!$AB$6=\"Yes\", \"Ex\",\"\")","v":""},null,null,null,null,null,null,null,null,null,null,null,null,{"$f":"IF(Screening!$AB$19=\"Yes\", \"Ex\",\"\")","v":""},null,null,null,null,null,null,null,null,null,null,null,null,null,null,null,null,null,null,null,null,null,null,null,null,""]
[166,"1.C.3.a.5","Extrapolation of feedrate levels. In lieu of establishing mercury feedrate limits as specified in §§63.1209(l)(1)(i) through (iv) of this section, the source may request as part of the performance test plan under §§63.7(b) and (c) and §§63.1207 (e) and (f) to use the mercury feedrates and associated emission rates during the comprehensive performance test to extrapolate to higher allowable feedrate limits and emission rates. The extrapolation methodology will be reviewed and approved, as warranted, by the Administrator. The review will consider in particular whether:","§63.1209(l)(1)(v)",null,null,null,null,null,null,{"$f":"IF(Screening!$AB$6=\"Yes\", \"Ex\",\"\")","v":""},null,null,null,null,null,null,null,null,null,null,null,null,{"$f":"IF(Screening!$AB$19=\"Yes\", \"Ex\",\"\")","v":""},null,null,null,null,null,null,null,null,null,null,null,null,null,null,null,null,null,null,null,null,null,null,null,null,""]
[167,"1.C.3.a.5.a","Performance test metal feedrates are appropriate ( 1.e. , whether feedrates are at least at normal levels; depending on the heterogeneity of the waste, whether some level of spiking would be appropriate; and whether the physical form and species of spiked material is appropriate); and","§63.1209(l)(1)(v)(A)",null,null,null,null,null,null,{"$f":"IF(Screening!$AB$6=\"Yes\", \"Ex\",\"\")","v":""},null,null,null,null,null,null,null,null,null,null,null,null,{"$f":"IF(Screening!$AB$19=\"Yes\", \"Ex\",\"\")","v":""},null,null,null,null,null,null,null,null,null,null,null,null,null,null,null,null,null,null,null,null,null,null,null,null,""]
[168,"1.C.3.a.5.b","Whether the extrapolated feedrates the source requests are warranted considering historical metal feedrate data.","§63.1209(l)(1)(v)(B)",null,null,null,null,null,null,{"$f":"IF(Screening!$AB$6=\"Yes\", \"Ex\",\"\")","v":""},null,null,null,null,null,null,null,null,null,null,null,null,{"$f":"IF(Screening!$AB$19=\"Yes\", \"Ex\",\"\")","v":""},null,null,null,null,null,null,null,null,null,null,null,null,null,null,null,null,null,null,null,null,null,null,null,null,""]
[169,null,"Mercury Control System Operating Limits:",null,null,null,null,null,null,null,{"$f":"IF(Screening!$AB$6=\"Yes\", \"Ex\",\"\")","v":""},null,null,null,null,null,null,null,null,null,null,null,null,{"$f":"IF(Screening!$AB$19=\"Yes\", \"Ex\",\"\")","v":""},null,null,null,null,null,null,null,null,null,null,null,null,null,null,null,null,null,null,null,null,null,null,null,null,""]
[170,"1.C.3.b","Wet scrubber. If the source’s combustor is equipped with a wet scrubber, the source must establish operating parameter limits prescribed by §63.1209(o)(3), except for §63.1209(o)(3)(iv).","§63.1209(l)(2)  ",null,null,null,null,null,null,{"$f":"IF(Screening!$AB$6=\"Yes\", \"Ex\",\"\")","v":""},null,null,null,null,null,null,null,null,null,null,null,null,{"$f":"IF(Screening!$AB$19=\"Yes\", \"Ex\",\"\")","v":""},null,null,null,null,null,null,null,null,{"$f":"IF(AND(Screening!$AB$28=\"No\",Screening!$AB$29=\"No\",Screening!$AB$33=\"No\"),\"Ex\",\"\")","v":""},null,null,null,null,null,null,null,null,null,null,null,null,null,null,null,""]
[171,"1.C.3.c","Activated carbon injection. If the source’s combustor is equipped with an activated carbon injection system, the source must establish operating parameter limits prescribed by §§63.1209(k)(5) and (k)(6).","§63.1209(l)(3)",null,null,null,null,null,null,{"$f":"IF(Screening!$AB$6=\"Yes\", \"Ex\",\"\")","v":""},null,null,null,null,null,null,null,null,null,null,null,null,{"$f":"IF(Screening!$AB$19=\"Yes\", \"Ex\",\"\")","v":""},null,null,null,null,null,null,null,null,null,null,null,null,null,null,null,null,{"$f":"IF(Screening!$AB$36=\"No\", \"Ex\",\"\")","v":""},null,null,null,null,null,null,null,""]
[172,"1.C.3.d","Activated carbon bed. If the source’s combustor is equipped with an activated carbon bed system, the source must comply with the requirements of §63.1209(k)(7) to assure compliance with the mercury emission standard.","§63.1209(l)(4)",null,null,null,null,null,null,{"$f":"IF(Screening!$AB$6=\"Yes\", \"Ex\",\"\")","v":""},null,null,null,null,null,null,null,null,null,null,null,null,{"$f":"IF(Screening!$AB$19=\"Yes\", \"Ex\",\"\")","v":""},null,null,null,null,null,null,null,null,null,null,null,null,null,null,null,null,null,{"$f":"IF(Screening!$AB$37=\"No\", \"Ex\",\"\")","v":""},null,null,null,null,null,null,""]
[173,"1.C.4","Particulate matter. The source must comply with the particulate matter emission standard by establishing and complying with the following operating parameter limits. The source must base the limits on operations during the comprehensive performance test, unless the limits are based on manufacturer specifications.","§63.1209(m)",null,null,null,null,null,null,{"$f":"IF(Screening!$AB$6=\"Yes\", \"Ex\",\"\")","v":""},null,null,null,null,null,null,null,{"$f":"IF(Screening!$AB$14=\"Yes\", \"Ex\",\"\")","v":""},{"$f":"IF(Screening!$AB$15=\"Yes\", \"Ex\",\"\")","v":""},null,null,null,null,null,null,null,null,null,null,null,null,null,null,null,null,null,null,null,null,null,null,null,null,null,null,null,null,""]
[174,"1.C.4.a","Control device operating parameter limits.","§63.1209(m)(1)",null,null,null,null,null,null,{"$f":"IF(Screening!$AB$6=\"Yes\", \"Ex\",\"\")","v":""},null,null,null,null,null,null,null,{"$f":"IF(Screening!$AB$14=\"Yes\", \"Ex\",\"\")","v":""},{"$f":"IF(Screening!$AB$15=\"Yes\", \"Ex\",\"\")","v":""},null,null,null,null,null,null,null,null,null,null,null,null,null,null,null,null,null,null,null,null,null,null,null,null,null,null,null,null,""]
[175,"1.C.4.a.1","Wet scrubbers. For sources equipped with wet scrubbers, including ionizing wet scrubbers, high energy wet scrubbers such as venturi, hydrosonic, collision, or free jet wet scrubbers, and low energy wet scrubbers such as spray towers, packed beds, or tray towers, the source must establish limits on the following parameters:","§63.1209(m)(1)(i)",null,null,null,null,null,null,{"$f":"IF(Screening!$AB$6=\"Yes\", \"Ex\",\"\")","v":""},null,null,null,null,null,null,null,{"$f":"IF(Screening!$AB$14=\"Yes\", \"Ex\",\"\")","v":""},{"$f":"IF(Screening!$AB$15=\"Yes\", \"Ex\",\"\")","v":""},null,null,null,null,null,null,null,null,null,null,null,null,{"$f":"IF(AND(Screening!$AB$28=\"No\",Screening!$AB$29=\"No\",Screening!$AB$33=\"No\"),\"Ex\",\"\")","v":""},null,null,null,null,null,null,null,null,null,null,null,null,null,null,null,""]
[176,"1.C.4.a.1.a","For high energy scrubbers only, minimum pressure drop across the wet scrubber on an hourly rolling average, established as the average of the test run averages;","§63.1209(m)(1)(i)(A)",null,null,null,null,null,null,{"$f":"IF(Screening!$AB$6=\"Yes\", \"Ex\",\"\")","v":""},null,null,null,null,null,null,null,{"$f":"IF(Screening!$AB$14=\"Yes\", \"Ex\",\"\")","v":""},{"$f":"IF(Screening!$AB$15=\"Yes\", \"Ex\",\"\")","v":""},null,null,null,null,null,null,null,null,null,null,null,null,{"$f":"IF(AND(Screening!$AB$28=\"No\",Screening!$AB$29=\"No\",Screening!$AB$33=\"No\"),\"Ex\",\"\")","v":""},{"$f":"IF(Screening!$AB$29=\"No\", \"Ex\",\"\")","v":""},null,null,null,null,null,null,null,null,null,null,null,null,null,null,""]
[177,"1.C.4.a.1.b","For all wet scrubbers:(Also see Section 1.A.24)","§63.1209(m)(1)(i)(B)",null,null,null,null,null,null,{"$f":"IF(Screening!$AB$6=\"Yes\", \"Ex\",\"\")","v":""},null,null,null,null,null,null,null,{"$f":"IF(Screening!$AB$14=\"Yes\", \"Ex\",\"\")","v":""},{"$f":"IF(Screening!$AB$15=\"Yes\", \"Ex\",\"\")","v":""},null,null,null,null,null,null,null,null,null,null,null,null,{"$f":"IF(AND(Screening!$AB$28=\"No\",Screening!$AB$29=\"No\",Screening!$AB$33=\"No\"),\"Ex\",\"\")","v":""},null,null,null,null,null,null,null,null,null,null,null,null,null,null,null,""]
[178,"1.C.4.a.1.b.1","To ensure that the solids content of the scrubber liquid does not exceed levels during the performance test, the source must either (1) establish a limit on solids content of the scrubber liquid using a CMS or by manual sampling and analysis, or (2) establish a minimum blowdown rate using a CMS and either a minimum scrubber tank volume or liquid level using a CMS. If the source elects to monitor solids content manually, it must sample and analyze the scrubber liquid hourly unless it supports an alternative monitoring frequency in the performance test plan that it submits for review and approval; ","§63.1209(m)(1)(i)(B)(1)",null,null,null,null,null,null,{"$f":"IF(Screening!$AB$6=\"Yes\", \"Ex\",\"\")","v":""},null,null,null,null,null,null,null,{"$f":"IF(Screening!$AB$14=\"Yes\", \"Ex\",\"\")","v":""},{"$f":"IF(Screening!$AB$15=\"Yes\", \"Ex\",\"\")","v":""},null,null,null,null,null,null,null,null,null,null,null,null,{"$f":"IF(AND(Screening!$AB$28=\"No\",Screening!$AB$29=\"No\",Screening!$AB$33=\"No\"),\"Ex\",\"\")","v":""},null,null,null,null,null,null,null,null,null,null,null,null,null,null,null,""]
[179,"1.C.4.a.1.b.2","For maximum solids content monitored with a CMS, the source must establish a limit on a twelve-hour rolling average as the average of the test run averages.","§63.1209(m)(1)(i)(B)(2)",null,null,null,null,null,null,{"$f":"IF(Screening!$AB$6=\"Yes\", \"Ex\",\"\")","v":""},null,null,null,null,null,null,null,{"$f":"IF(Screening!$AB$14=\"Yes\", \"Ex\",\"\")","v":""},{"$f":"IF(Screening!$AB$15=\"Yes\", \"Ex\",\"\")","v":""},null,null,null,null,null,null,null,null,null,null,null,null,{"$f":"IF(AND(Screening!$AB$28=\"No\",Screening!$AB$29=\"No\",Screening!$AB$33=\"No\"),\"Ex\",\"\")","v":""},null,null,null,null,null,null,null,null,null,null,null,null,null,null,null,""]
[180,"1.C.4.a.1.b.3","For maximum solids content measured manually, the source must establish an hourly limit, as measured at least once per hour, unless it supports an alternative monitoring frequency in the performance test plan that it submits for review and approval. The source must establish the maximum hourly limit as the average of the manual measurement averages for each run.","§63.1209(m)(1)(i)(B)(3)",null,null,null,null,null,null,{"$f":"IF(Screening!$AB$6=\"Yes\", \"Ex\",\"\")","v":""},null,null,null,null,null,null,null,{"$f":"IF(Screening!$AB$14=\"Yes\", \"Ex\",\"\")","v":""},{"$f":"IF(Screening!$AB$15=\"Yes\", \"Ex\",\"\")","v":""},null,null,null,null,null,null,null,null,null,null,null,null,{"$f":"IF(AND(Screening!$AB$28=\"No\",Screening!$AB$29=\"No\",Screening!$AB$33=\"No\"),\"Ex\",\"\")","v":""},null,null,null,null,null,null,null,null,null,null,null,null,null,null,null,""]
[181,"1.C.4.a.1.b.4","For minimum blowdown rate and either a minimum scrubber tank volume or liquid level using a CMS, the source must establish a limit on an hourly rolling average as the average of the test run averages.","§63.1209(m)(1)(i)(B)(4)",null,null,null,null,null,null,{"$f":"IF(Screening!$AB$6=\"Yes\", \"Ex\",\"\")","v":""},null,null,null,null,null,null,null,{"$f":"IF(Screening!$AB$14=\"Yes\", \"Ex\",\"\")","v":""},{"$f":"IF(Screening!$AB$15=\"Yes\", \"Ex\",\"\")","v":""},null,null,null,null,null,null,null,null,null,null,null,null,{"$f":"IF(AND(Screening!$AB$28=\"No\",Screening!$AB$29=\"No\",Screening!$AB$33=\"No\"),\"Ex\",\"\")","v":""},null,null,null,null,null,null,null,null,null,null,null,null,null,null,null,""]
[182,"1.C.4.a.1.c","For high energy wet scrubbers only, the source must establish limits on either the minimum liquid to gas ratio or the minimum scrubber water flowrate and maximum flue gas flowrate on an hourly rolling average. If the source establishes limits on maximum flue gas flowrate under this paragraph, it need not establish a limit on maximum flue gas flowrate under §63.1209(m)(2). The source must establish these hourly rolling average limits as the average of the test run averages; and","§63.1209(m)(1)(i)(C)",null,null,null,null,null,null,{"$f":"IF(Screening!$AB$6=\"Yes\", \"Ex\",\"\")","v":""},null,null,null,null,null,null,null,{"$f":"IF(Screening!$AB$14=\"Yes\", \"Ex\",\"\")","v":""},{"$f":"IF(Screening!$AB$15=\"Yes\", \"Ex\",\"\")","v":""},null,null,null,null,null,null,null,null,null,null,null,null,{"$f":"IF(AND(Screening!$AB$28=\"No\",Screening!$AB$29=\"No\",Screening!$AB$33=\"No\"),\"Ex\",\"\")","v":""},{"$f":"IF(Screening!$AB$29=\"No\", \"Ex\",\"\")","v":""},null,null,null,null,null,null,null,null,null,null,null,null,null,null,""]
[183,"1.C.4.a.2","Other particulate matter control devices. For each particulate matter control device that is not a fabric filter or high energy wet scrubber, or is not an electrostatic precipitator or ionizing wet scrubber for which the source elects to monitor particulate matter loadings under §63.1206(c)(9) of this chapter for process control, the source must ensure that the control device is properly operated and maintained as required by §63.1206(c)(7) and by monitoring the operation of the control device as follows:\nNote to 1.C.4.a.1.d.:  Please note the requirements in §63.1206(c)(9) for electrostatic precipitators and ionizing wet scrubbers for particulate matter detection system requirements.","§63.1209(m)(1)(iv)",null,null,null,null,null,null,{"$f":"IF(Screening!$AB$6=\"Yes\", \"Ex\",\"\")","v":""},null,null,null,null,null,null,null,{"$f":"IF(Screening!$AB$14=\"Yes\", \"Ex\",\"\")","v":""},{"$f":"IF(Screening!$AB$15=\"Yes\", \"Ex\",\"\")","v":""},null,null,null,null,null,null,null,null,null,null,null,null,null,null,null,null,null,null,null,null,null,null,null,{"$f":"IF(AND(Screening!$AB$31=\"No\",Screening!$AB$29=\"No\",Screening!$AB$33=\"No\",Screening!$AB$35=\"No\"),\"Ex\",\"\")","v":""},null,null,null,null,""]
[184,"1.C.4.a.2.a  ","During each comprehensive performance test conducted to demonstrate compliance with the particulate matter emissions standard, the source must establish a range of operating values for the control device that is a representative and reliable indicator that the control device is operating within the same range of conditions as during the performance test. The source must establish this range of operating values as follows:","§63.1209(m)(1)(iv)(A)",null,null,null,null,null,null,{"$f":"IF(Screening!$AB$6=\"Yes\", \"Ex\",\"\")","v":""},null,null,null,null,null,null,null,{"$f":"IF(Screening!$AB$14=\"Yes\", \"Ex\",\"\")","v":""},{"$f":"IF(Screening!$AB$15=\"Yes\", \"Ex\",\"\")","v":""},null,null,null,null,null,null,null,null,null,null,null,null,null,null,null,null,null,null,null,null,null,null,null,{"$f":"IF(AND(Screening!$AB$31=\"No\",Screening!$AB$29=\"No\",Screening!$AB$33=\"No\",Screening!$AB$35=\"No\"),\"Ex\",\"\")","v":""},null,null,null,null,""]
[185,"1.C.4.a.2.a.1","The source must select a set of operating parameters appropriate for the control device design that the source determines to be a representative and reliable indicator of the control device performance.","§63.1209(m)(1)(iv)(A)(1)",null,null,null,null,null,null,{"$f":"IF(Screening!$AB$6=\"Yes\", \"Ex\",\"\")","v":""},null,null,null,null,null,null,null,{"$f":"IF(Screening!$AB$14=\"Yes\", \"Ex\",\"\")","v":""},{"$f":"IF(Screening!$AB$15=\"Yes\", \"Ex\",\"\")","v":""},null,null,null,null,null,null,null,null,null,null,null,null,null,null,null,null,null,null,null,null,null,null,null,{"$f":"IF(AND(Screening!$AB$31=\"No\",Screening!$AB$29=\"No\",Screening!$AB$33=\"No\",Screening!$AB$35=\"No\"),\"Ex\",\"\")","v":""},null,null,null,null,""]
[186,"1.C.4.a.2.a.2","The source must measure and record values for each of the selected operating parameters during each test run of the performance test. A value for each selected parameter must be recorded using a continuous monitor.","§63.1209(m)(1)(iv)(A)(2)",null,null,null,null,null,null,{"$f":"IF(Screening!$AB$6=\"Yes\", \"Ex\",\"\")","v":""},null,null,null,null,null,null,null,{"$f":"IF(Screening!$AB$14=\"Yes\", \"Ex\",\"\")","v":""},{"$f":"IF(Screening!$AB$15=\"Yes\", \"Ex\",\"\")","v":""},null,null,null,null,null,null,null,null,null,null,null,null,null,null,null,null,null,null,null,null,null,null,null,{"$f":"IF(AND(Screening!$AB$31=\"No\",Screening!$AB$29=\"No\",Screening!$AB$33=\"No\",Screening!$AB$35=\"No\"),\"Ex\",\"\")","v":""},null,null,null,null,""]
[187,"1.C.4.a.2.a.3","For each selected operating parameter measured in accordance with the requirements of §63.1209(m)(1)(iv)(A)(1) of this section, the source must establish a minimum operating parameter limit or a maximum operating parameter limit, as appropriate for the parameter, to define the operating limits within which the control device can operate and still continuously achieve the same operating conditions as during the performance test.","§63.1209(m)(1)(iv)(A)(3)",null,null,null,null,null,null,{"$f":"IF(Screening!$AB$6=\"Yes\", \"Ex\",\"\")","v":""},null,null,null,null,null,null,null,{"$f":"IF(Screening!$AB$14=\"Yes\", \"Ex\",\"\")","v":""},{"$f":"IF(Screening!$AB$15=\"Yes\", \"Ex\",\"\")","v":""},null,null,null,null,null,null,null,null,null,null,null,null,null,null,null,null,null,null,null,null,null,null,null,{"$f":"IF(AND(Screening!$AB$31=\"No\",Screening!$AB$29=\"No\",Screening!$AB$33=\"No\",Screening!$AB$35=\"No\"),\"Ex\",\"\")","v":""},null,null,null,null,""]
[188,"1.C.4.a.2.a.4","The source must prepare written documentation to support the operating parameter limits established for the control device and the source must include this documentation in the performance test plan that it submits for review and approval. This documentation must include a description for each selected parameter and the operating range and monitoring frequency required to ensure the control device is being properly operated and maintained.","§63.1209(m)(1)(iv)(A)(4)",null,null,null,null,null,null,{"$f":"IF(Screening!$AB$6=\"Yes\", \"Ex\",\"\")","v":""},null,null,null,null,null,null,null,{"$f":"IF(Screening!$AB$14=\"Yes\", \"Ex\",\"\")","v":""},{"$f":"IF(Screening!$AB$15=\"Yes\", \"Ex\",\"\")","v":""},null,null,null,null,null,null,null,null,null,null,null,null,null,null,null,null,null,null,null,null,null,null,null,{"$f":"IF(AND(Screening!$AB$31=\"No\",Screening!$AB$29=\"No\",Screening!$AB$33=\"No\",Screening!$AB$35=\"No\"),\"Ex\",\"\")","v":""},null,null,null,null,""]
[189,"1.C.4.a.2.b","The source must install, calibrate, operate, and maintain a monitoring device equipped with a recorder to measure the values for each operating parameter selected in accordance with the requirements of §63.1209(m)(1)(iv)(A)(1). The recorder must record the detector responses at least every 60 seconds. Per §63.1209(m)(1)(iv)(D), operating parameters selected in accordance with §63.1209(m)(1)(iv) of this section may be based on manufacturer specifications provided the source supports the use of manufacturer specifications in the performance test plan that it submits for review and approval.","§63.1209(m)(1)(iv)(B)",null,null,null,null,null,null,{"$f":"IF(Screening!$AB$6=\"Yes\", \"Ex\",\"\")","v":""},null,null,null,null,null,null,null,{"$f":"IF(Screening!$AB$14=\"Yes\", \"Ex\",\"\")","v":""},{"$f":"IF(Screening!$AB$15=\"Yes\", \"Ex\",\"\")","v":""},null,null,null,null,null,null,null,null,null,null,null,null,null,null,null,null,null,null,null,null,null,null,null,{"$f":"IF(AND(Screening!$AB$31=\"No\",Screening!$AB$29=\"No\",Screening!$AB$33=\"No\",Screening!$AB$35=\"No\"),\"Ex\",\"\")","v":""},null,null,null,null,""]
[190,"1.C.4.b","Maximum flue gas flowrate or production rate. As an indicator of gas residence time in the control device, the source must establish a limit on the maximum flue gas flowrate, the maximum production rate, or another parameter that it documents in the site-specific test plan as an appropriate surrogate for gas residence time, as the average of the maximum hourly rolling averages for each run. The source must comply with this limit on a hourly rolling average basis;(Also see Section 1.C.1.b);","§63.1209(m)(2)",null,null,null,null,null,null,{"$f":"IF(Screening!$AB$6=\"Yes\", \"Ex\",\"\")","v":""},null,null,null,null,null,null,null,{"$f":"IF(Screening!$AB$14=\"Yes\", \"Ex\",\"\")","v":""},{"$f":"IF(Screening!$AB$15=\"Yes\", \"Ex\",\"\")","v":""},null,null,null,null,null,null,null,null,null,null,null,null,null,null,null,null,null,null,null,null,null,null,null,null,null,null,null,null,""]
[191,"1.C.4.c","Maximum ash feedrate. Owners and operators of hazardous waste incinerators, solid fuel boilers, and liquid fuel boilers must establish a maximum ash feedrate limit as a 12-hour rolling average based on the average of the test run averages. This requirement is waived, however, if the source complies with the particulate matter detection system requirements under §63.1206(c)(9). (See 1.B.1.b).","§63.1209(m)(3)",null,null,null,null,null,null,{"$f":"IF(Screening!$AB$6=\"Yes\", \"Ex\",\"\")","v":""},null,null,null,null,null,null,null,{"$f":"IF(Screening!$AB$14=\"Yes\", \"Ex\",\"\")","v":""},{"$f":"IF(Screening!$AB$15=\"Yes\", \"Ex\",\"\")","v":""},null,null,null,null,null,null,null,null,null,null,null,null,null,null,null,null,null,null,null,null,null,null,null,null,null,null,null,null,""]
[192,"1.C.5","Semivolatile metals and low volatility metals. The source must comply with the semivolatile metal (cadmium and lead) and low volatile metal (arsenic, beryllium, and chromium) emission standards by establishing and complying with the following operating parameter limits. The source must base the limits on operations during the comprehensive performance test, unless the limits are based on manufacturer specifications.","§63.1209(n)",null,null,null,null,null,null,{"$f":"IF(Screening!$AB$6=\"Yes\", \"Ex\",\"\")","v":""},null,null,null,null,null,null,null,{"$f":"IF(Screening!$AB$14=\"Yes\", \"Ex\",\"\")","v":""},null,null,null,null,null,null,{"$f":"IF(AND(Screening!$AB$20=\"Yes\",Screening!$AB$21=\"Yes\"),\"Ex\",\"\")","v":""},null,null,null,null,null,null,null,null,null,null,null,null,null,null,null,null,null,null,null,null,null,null,""]
[193,"1.C.5.a","Maximum inlet temperature to dry particulate matter air pollution control device. The source must establish a limit on the maximum inlet temperature to the primary dry metals emissions control device (e.g., electrostatic precipitator, baghouse) on an hourly rolling average basis as the average of the test run averages.(Also see Section 1.C.2.a)","§63.1209(n)(1)",null,null,null,null,null,null,{"$f":"IF(Screening!$AB$6=\"Yes\", \"Ex\",\"\")","v":""},null,null,null,null,null,null,null,{"$f":"IF(Screening!$AB$14=\"Yes\", \"Ex\",\"\")","v":""},null,null,null,null,null,null,{"$f":"IF(AND(Screening!$AB$20=\"Yes\",Screening!$AB$21=\"Yes\"),\"Ex\",\"\")","v":""},null,null,null,null,null,null,null,null,{"$f":"IF(Screening!$AB$30=\"No\", \"Ex\",\"\")","v":""},null,null,null,null,null,null,null,null,null,null,null,null,null,{"$f":"IF(OR(I194=\"Ex\",J194=\"Ex\",K194=\"Ex\",L194=\"Ex\",M194=\"Ex\",N194=\"Ex\",O194=\"Ex\",P194=\"Ex\",Q194=\"Ex\",R194=\"Ex\",S194=\"Ex\",T194=\"Ex\",U194=\"Ex\",V194=\"Ex\",W194=\"Ex\",X194=\"Ex\",Y194=\"Ex\",Z194=\"Ex\",AA194=\"Ex\",AB194=\"Ex\",AC194=\"Ex\",AD194=\"Ex\",AE194=\"Ex\",AF194=\"Ex\",AG194=\"Ex\",AH194=\"Ex\",AI194=\"Ex\",AJ194=\"Ex\",AK194=\"Ex\",AL194=\"Ex\",AM194=\"Ex\",AN194=\"Ex\",AO194=\"Ex\",AP194=\"Ex\",AQ194=\"Ex\",AR194=\"Ex\",AS194=\"Ex\",AT194=\"Ex\",AU194=\"Ex\",AV194=\"Ex\"), \"Ex\",\"\")","v":""}]
[194,"1.C.5.b","Maximum feedrate of semivolatile and low volatile metals.","§63.1209(n)(2)",null,null,null,null,null,null,{"$f":"IF(Screening!$AB$6=\"Yes\", \"Ex\",\"\")","v":""},null,null,null,null,null,null,null,{"$f":"IF(Screening!$AB$14=\"Yes\", \"Ex\",\"\")","v":""},null,null,null,null,null,null,{"$f":"IF(AND(Screening!$AB$20=\"Yes\",Screening!$AB$21=\"Yes\"),\"Ex\",\"\")","v":""},null,null,null,null,null,null,null,null,null,null,null,null,null,null,null,null,null,null,null,null,null,null,""]
[195,"1.C.5.b.1","General. The source must establish feedrate limits for semivolatile metals (cadmium and lead) and low volatile metals (arsenic, beryllium, and chromium) as follows, except as provided by §63.1209(n)(2)(vii) of this section.","§63.1209(n)(2)(i)",null,null,null,null,null,null,{"$f":"IF(Screening!$AB$6=\"Yes\", \"Ex\",\"\")","v":""},null,null,null,null,null,null,null,{"$f":"IF(Screening!$AB$14=\"Yes\", \"Ex\",\"\")","v":""},null,null,null,null,null,null,{"$f":"IF(AND(Screening!$AB$20=\"Yes\",Screening!$AB$21=\"Yes\"),\"Ex\",\"\")","v":""},null,null,null,null,null,null,null,null,null,null,null,null,null,null,null,null,null,null,null,null,null,null,""]
[196,"1.C.5.b.2","For incinerators, cement kilns, and lightweight aggregate kilns, when complying with the emission standards under §§63.1203, 63.1204, 63.1205, and 63.1219, and for solid fuel boilers when complying with the emission standards under §63.1216, the source must establish 12-hour rolling average limits for the total feedrate of semivolatile and low volatile metals in all feedstreams as the average of the test run averages.","§63.1209(n)(2)(ii)",null,null,null,null,null,null,{"$f":"IF(Screening!$AB$6=\"Yes\", \"Ex\",\"\")","v":""},{"$f":"IF(AND(Screening!$AB$4=\"No\",Screening!$AB$7=\"No\"),\"Ex\",\"\")","v":""},null,null,null,null,null,null,{"$f":"IF(Screening!$AB$14=\"Yes\", \"Ex\",\"\")","v":""},null,null,null,null,null,null,{"$f":"IF(AND(Screening!$AB$20=\"Yes\",Screening!$AB$21=\"Yes\"),\"Ex\",\"\")","v":""},null,null,null,null,null,null,null,null,null,null,null,null,null,null,null,null,null,null,null,null,null,null,""]
[197,"1.C.5.b.3.a","Cement kilns under §63.1220 — (A) When complying with the emission standards under §63.1220(a)(3)(i), (a)(4)(i), (b)(3)(i), and (b)(4)(i), you must establish 12-hour rolling average feedrate limits for semivolatile and low volatile metals as the thermal concentration of semivolatile metals or low volatile metals in all hazardous waste feedstreams. You must calculate hazardous waste thermal concentrations for semivolatile metals and low volatile metals for each run as the total mass feedrate of semivolatile metals or low volatile metals for all hazardous waste feedstreams divided by the total heat input rate for all hazardous waste feedstreams. The 12-hour rolling average feedrate limits for semivolatile metals and low volatile metals are the average of the test run averages, calculated on a thermal concentration basis, for all hazardous waste feeds.","§63.1209(n)(2)(iii)(A)Rev. 4/8/08 FR",null,null,null,null,null,null,{"$f":"IF(Screening!$AB$6=\"Yes\", \"Ex\",\"\")","v":""},null,{"$f":"IF(Screening!$AB$8=\"No\", \"Ex\",\"\")","v":""},null,null,null,null,null,{"$f":"IF(Screening!$AB$14=\"Yes\", \"Ex\",\"\")","v":""},null,null,null,null,null,null,{"$f":"IF(AND(Screening!$AB$20=\"Yes\",Screening!$AB$21=\"Yes\"),\"Ex\",\"\")","v":""},null,null,null,null,null,null,null,null,null,null,null,null,null,null,null,null,null,null,null,null,null,null,""]
[198,"1.C.5.b.3.b","When complying with the emission standards under §§63.1220(a)(3)(ii), (a)(4)(ii), (b)(3)(ii), and (b)(4)(ii), the source must establish 12-hour rolling average limits for the total feedrate of semivolatile and low volatile metals in all feedstreams as the average of the test run averages.","§63.1209(n)(2)(iii)(B)",null,null,null,null,null,null,{"$f":"IF(Screening!$AB$6=\"Yes\", \"Ex\",\"\")","v":""},null,{"$f":"IF(Screening!$AB$8=\"No\", \"Ex\",\"\")","v":""},null,null,null,null,null,{"$f":"IF(Screening!$AB$14=\"Yes\", \"Ex\",\"\")","v":""},null,null,null,null,null,null,{"$f":"IF(AND(Screening!$AB$20=\"Yes\",Screening!$AB$21=\"Yes\"),\"Ex\",\"\")","v":""},null,null,null,null,null,null,null,null,null,null,null,null,null,null,null,null,null,null,null,null,null,null,""]
[199,"1.C.5.b.4.a","Lightweight aggregate kilns under §63.1221 -(A) When complying with the emission standards under §§63.1221(a)(3)(i), (a)(4)(i), (b)(3)(i), and (b)(4)(i), the source must establish 12-hour rolling average feedrate limits for semivolatile and low volatile metals as the thermal concentration of semivolatile metals or low volatile metals in all hazardous waste feedstreams as specified in §63.1209(n)(2)(iii)(A) of this section.","§63.1209(n)(2)(iv)",null,null,null,null,null,null,{"$f":"IF(Screening!$AB$6=\"Yes\", \"Ex\",\"\")","v":""},null,null,{"$f":"IF(Screening!$AB$9=\"No\", \"Ex\",\"\")","v":""},null,null,null,null,{"$f":"IF(Screening!$AB$14=\"Yes\", \"Ex\",\"\")","v":""},null,null,null,null,null,null,{"$f":"IF(AND(Screening!$AB$20=\"Yes\",Screening!$AB$21=\"Yes\"),\"Ex\",\"\")","v":""},null,null,null,null,null,null,null,null,null,null,null,null,null,null,null,null,null,null,null,null,null,null,""]
[200,"1.C.5.b4.b","When complying with the emission standards under §§63.1221(a)(3)(ii), (a)(4)(ii), (b)(3)(ii), and (b)(4)(ii), the source must establish 12-hour rolling average limits for the total feedrate of semivolatile and low volatile metals in all feedstreams as the average of the test run averages.","§63.1209(n)(2)(iv)(B)",null,null,null,null,null,null,{"$f":"IF(Screening!$AB$6=\"Yes\", \"Ex\",\"\")","v":""},null,null,{"$f":"IF(Screening!$AB$9=\"No\", \"Ex\",\"\")","v":""},null,null,null,null,{"$f":"IF(Screening!$AB$14=\"Yes\", \"Ex\",\"\")","v":""},null,null,null,null,null,null,{"$f":"IF(AND(Screening!$AB$20=\"Yes\",Screening!$AB$21=\"Yes\"),\"Ex\",\"\")","v":""},null,null,null,null,null,null,null,null,null,null,null,null,null,null,null,null,null,null,null,null,null,null,""]
[201,"1.C.5.b.5.a","Liquid fuel boilers under §63.1217. (A) Semivolatile metals. The source must establish a rolling average limit for the semivolatile metal feedrate as follows on an averaging period not to exceed an annual rolling average.","§63.1209(n)(2)(v)",null,null,null,null,null,{"$f":"IF(Screening!$AB$5=\"No\", \"Ex\",\"\")","v":""},{"$f":"IF(Screening!$AB$6=\"Yes\", \"Ex\",\"\")","v":""},null,null,null,null,null,null,null,{"$f":"IF(Screening!$AB$14=\"Yes\", \"Ex\",\"\")","v":""},null,null,null,null,null,null,{"$f":"IF(AND(Screening!$AB$20=\"Yes\",Screening!$AB$21=\"Yes\"),\"Ex\",\"\")","v":""},null,null,null,null,null,null,null,null,null,null,null,null,null,null,null,null,null,null,null,null,null,null,""]
[202,"1.C.5.b.5.a.1","System removal efficiency. The source must calculate a semivolatile metal system removal efficiency for each test run and calculate the average system removal efficiency of the test run averages. If emissions exceed the semivolatile metal emission standard during the comprehensive performance test, it is not a violation because the averaging period for the semivolatile metal emission standard is one year and compliance is based on compliance with the semivolatile metal feedrate limit that has an averaging period not to exceed an annual rolling average.","§63.1209(n)(2)(v)(A)(1)",null,null,null,null,null,{"$f":"IF(Screening!$AB$5=\"No\", \"Ex\",\"\")","v":""},{"$f":"IF(Screening!$AB$6=\"Yes\", \"Ex\",\"\")","v":""},null,null,null,null,null,null,null,{"$f":"IF(Screening!$AB$14=\"Yes\", \"Ex\",\"\")","v":""},null,null,null,null,null,null,{"$f":"IF(AND(Screening!$AB$20=\"Yes\",Screening!$AB$21=\"Yes\"),\"Ex\",\"\")","v":""},null,null,null,null,null,null,null,null,null,null,null,null,null,null,null,null,null,null,null,null,null,null,""]
[203,"1.C.5.b.5.a.2","Boilers that feed hazardous waste with a heating value of 10,000 Btu/lb or greater. The source must calculate the semivolatile metal feedrate limit as the semivolatile metal emission standard divided by [1 − System Removal Efficiency].","§63.1209(n)(2)(v)(A)(2)",null,null,null,null,null,{"$f":"IF(Screening!$AB$5=\"No\", \"Ex\",\"\")","v":""},{"$f":"IF(Screening!$AB$6=\"Yes\", \"Ex\",\"\")","v":""},null,null,null,null,null,null,null,{"$f":"IF(Screening!$AB$14=\"Yes\", \"Ex\",\"\")","v":""},null,null,null,null,null,null,{"$f":"IF(AND(Screening!$AB$20=\"Yes\",Screening!$AB$21=\"Yes\"),\"Ex\",\"\")","v":""},null,null,null,null,{"$f":"IF(Screening!$AB$26=\"No\", \"Ex\",\"\")","v":""},null,null,null,null,null,null,null,null,null,null,null,null,null,null,null,null,null,""]
[204,"1.C.5.b.5.a.2.a","The feedrate limit is a hazardous waste thermal concentration limit expressed as pounds of semivolatile metals in all hazardous waste feedstreams per million Btu of hazardous waste fed to the boiler.","§63.1209(n)(2)(v)(A)(2)(i)",null,null,null,null,null,{"$f":"IF(Screening!$AB$5=\"No\", \"Ex\",\"\")","v":""},{"$f":"IF(Screening!$AB$6=\"Yes\", \"Ex\",\"\")","v":""},null,null,null,null,null,null,null,{"$f":"IF(Screening!$AB$14=\"Yes\", \"Ex\",\"\")","v":""},null,null,null,null,null,null,{"$f":"IF(AND(Screening!$AB$20=\"Yes\",Screening!$AB$21=\"Yes\"),\"Ex\",\"\")","v":""},null,null,null,null,{"$f":"IF(Screening!$AB$26=\"No\", \"Ex\",\"\")","v":""},null,null,null,null,null,null,null,null,null,null,null,null,null,null,null,null,null,""]
[205,"1.C.5.b.5.a.2.b","The source must comply with the hazardous waste semivolatile metal thermal concentration limit by determining the feedrate of semivolatile metal in all hazardous waste feedstreams (lb/hr) and the hazardous waste thermal feedrate (MM Btu/hr) at least once a minute to calculate a 60-minute average thermal emission concentration as [hazardous waste semivolatile metal feedrate (lb/hr) / hazardous waste thermal feedrate (MM Btu/hr)].","§63.1209(n)(2)(v)(A)(2)(ii)",null,null,null,null,null,{"$f":"IF(Screening!$AB$5=\"No\", \"Ex\",\"\")","v":""},{"$f":"IF(Screening!$AB$6=\"Yes\", \"Ex\",\"\")","v":""},null,null,null,null,null,null,null,{"$f":"IF(Screening!$AB$14=\"Yes\", \"Ex\",\"\")","v":""},null,null,null,null,null,null,{"$f":"IF(AND(Screening!$AB$20=\"Yes\",Screening!$AB$21=\"Yes\"),\"Ex\",\"\")","v":""},null,null,null,null,{"$f":"IF(Screening!$AB$26=\"No\", \"Ex\",\"\")","v":""},null,null,null,null,null,null,null,null,null,null,null,null,null,null,null,null,null,""]
[206,"1.C.5.b.5.a.2.c","The source must calculate a rolling average hazardous waste semivolatile metal thermal concentration that is updated each hour.","§63.1209(n)(2)(v)(A)(2)(iii)",null,null,null,null,null,{"$f":"IF(Screening!$AB$5=\"No\", \"Ex\",\"\")","v":""},{"$f":"IF(Screening!$AB$6=\"Yes\", \"Ex\",\"\")","v":""},null,null,null,null,null,null,null,{"$f":"IF(Screening!$AB$14=\"Yes\", \"Ex\",\"\")","v":""},null,null,null,null,null,null,{"$f":"IF(AND(Screening!$AB$20=\"Yes\",Screening!$AB$21=\"Yes\"),\"Ex\",\"\")","v":""},null,null,null,null,{"$f":"IF(Screening!$AB$26=\"No\", \"Ex\",\"\")","v":""},null,null,null,null,null,null,null,null,null,null,null,null,null,null,null,null,null,""]
[207,"1.C.5.b.5.a.2.d","If you select an averaging period for the feedrate limit that is greater than a 12-hour rolling average, you must calculate the initial rolling average as though you had selected a 12-hour rolling average, as provided by paragraph (b)(5)(i) of this section. Thereafter, you must calculate rolling averages using either one-minute or one-hour updates. Hourly updates shall be calculated using the average of the one-minute average data for the preceding hour. For the period beginning with initial operation under this standard until the source has operated for the full averaging period that you select, the average feedrate shall be based only on actual operation under this standard.","§63.1209(n)(2)(v)(A)(2)(iv)Rev. 4/8/08 FR",null,null,null,null,null,{"$f":"IF(Screening!$AB$5=\"No\", \"Ex\",\"\")","v":""},{"$f":"IF(Screening!$AB$6=\"Yes\", \"Ex\",\"\")","v":""},null,null,null,null,null,null,null,{"$f":"IF(Screening!$AB$14=\"Yes\", \"Ex\",\"\")","v":""},null,null,null,null,null,null,{"$f":"IF(AND(Screening!$AB$20=\"Yes\",Screening!$AB$21=\"Yes\"),\"Ex\",\"\")","v":""},null,null,null,null,null,null,null,null,null,null,null,null,null,null,null,null,null,null,null,null,null,null,""]
[208,"1.C.5.b.5.a.3.a","Boilers that feed hazardous waste with a heating value less than 10,000 Btu/lb. ( i ) The source must calculate the semivolatile metal feedrate limit as the semivolatile metal emission standard divided by [1 − System Removal Efficiency].","§63.1209(n)(2)(v)(A)(3)",null,null,null,null,null,{"$f":"IF(Screening!$AB$5=\"No\", \"Ex\",\"\")","v":""},{"$f":"IF(Screening!$AB$6=\"Yes\", \"Ex\",\"\")","v":""},null,null,null,null,null,null,null,{"$f":"IF(Screening!$AB$14=\"Yes\", \"Ex\",\"\")","v":""},null,null,null,null,null,null,{"$f":"IF(AND(Screening!$AB$20=\"Yes\",Screening!$AB$21=\"Yes\"),\"Ex\",\"\")","v":""},null,null,null,null,null,{"$f":"IF(Screening!$AB$27=\"No\", \"Ex\",\"\")","v":""},null,null,null,null,null,null,null,null,null,null,null,null,null,null,null,null,""]
[209,"1.C.5.b.5.a.3.b","The feedrate limit is expressed as a mass concentration per unit volume of stack gas (µgm/dscm) and is converted to a mass feedrate (lb/hr) by multiplying it by the average stack gas flowrate (dscm/hr) of the test run averages.","§63.1209(n)(2)(v)(A)(3)(ii)",null,null,null,null,null,{"$f":"IF(Screening!$AB$5=\"No\", \"Ex\",\"\")","v":""},{"$f":"IF(Screening!$AB$6=\"Yes\", \"Ex\",\"\")","v":""},null,null,null,null,null,null,null,{"$f":"IF(Screening!$AB$14=\"Yes\", \"Ex\",\"\")","v":""},null,null,null,null,null,null,{"$f":"IF(AND(Screening!$AB$20=\"Yes\",Screening!$AB$21=\"Yes\"),\"Ex\",\"\")","v":""},null,null,null,null,null,{"$f":"IF(Screening!$AB$27=\"No\", \"Ex\",\"\")","v":""},null,null,null,null,null,null,null,null,null,null,null,null,null,null,null,null,""]
[210,"1.C.5.b.5.a.3.c","The source must comply with the feedrate limit by determining the semivolatile metal feedrate (lb/hr) at least once a minute to calculate a 60-minute average feedrate","§63.1209(n)(2)(v)(A)(3)(iii)",null,null,null,null,null,{"$f":"IF(Screening!$AB$5=\"No\", \"Ex\",\"\")","v":""},{"$f":"IF(Screening!$AB$6=\"Yes\", \"Ex\",\"\")","v":""},null,null,null,null,null,null,null,{"$f":"IF(Screening!$AB$14=\"Yes\", \"Ex\",\"\")","v":""},null,null,null,null,null,null,{"$f":"IF(AND(Screening!$AB$20=\"Yes\",Screening!$AB$21=\"Yes\"),\"Ex\",\"\")","v":""},null,null,null,null,null,null,null,null,null,null,null,null,null,null,null,null,null,null,null,null,null,null,""]
[211,"1.C.5.b.5.a.3.d","The source must update the rolling average feedrate each hour with this 60-minute feedrate measurement.","§63.1209(n)(2)(v)(A)(3)(iv)",null,null,null,null,null,{"$f":"IF(Screening!$AB$5=\"No\", \"Ex\",\"\")","v":""},{"$f":"IF(Screening!$AB$6=\"Yes\", \"Ex\",\"\")","v":""},null,null,null,null,null,null,null,{"$f":"IF(Screening!$AB$14=\"Yes\", \"Ex\",\"\")","v":""},null,null,null,null,null,null,{"$f":"IF(AND(Screening!$AB$20=\"Yes\",Screening!$AB$21=\"Yes\"),\"Ex\",\"\")","v":""},null,null,null,null,null,null,null,null,null,null,null,null,null,null,null,null,null,null,null,null,null,null,""]
[212,"1.C.5.b.5.a.3.e","If you select an averaging period for the feedrate limit that is greater than a 12-hour rolling average, you must calculate the initial rolling average as though you had selected a 12-hour rolling average, as provided by paragraph (b)(5)(i) of this section. Thereafter, you must calculate rolling averages using either one-minute or one-hour updates. Hourly updates shall be calculated using the average of the one-minute average data for the preceding hour. For the period beginning with initial operation under this standard until the source has operated for the full averaging period that you select, the average feedrate shall be based only on actual operation under this standard. ","§63.1209(n)(2)(v)(A)(3)(v)Rev. 4/8/08 FR",null,null,null,null,null,{"$f":"IF(Screening!$AB$5=\"No\", \"Ex\",\"\")","v":""},{"$f":"IF(Screening!$AB$6=\"Yes\", \"Ex\",\"\")","v":""},null,null,null,null,null,null,null,{"$f":"IF(Screening!$AB$14=\"Yes\", \"Ex\",\"\")","v":""},null,null,null,null,null,null,{"$f":"IF(AND(Screening!$AB$20=\"Yes\",Screening!$AB$21=\"Yes\"),\"Ex\",\"\")","v":""},null,null,null,null,null,null,null,null,null,null,null,null,null,null,null,null,null,null,null,null,null,null,""]
[213,"1.C.5.b.5.b.1.a","Chromium—(1) Boilers that feed hazardous waste with a heating value of 10,000 Btu/lb or greater. (i) The 12-hour rolling average feedrate limit is a hazardous waste thermal concentration limit expressed as pounds of chromium in all hazardous waste feedstreams per million Btu of hazardous waste fed to the boiler. You must establish the 12-hour rolling average feedrate limit as the average of the test run averages.","§63.1209(n)(2)(v)(B)(1)(i)Rev. 4/8/08 FR",null,null,null,null,null,{"$f":"IF(Screening!$AB$5=\"No\", \"Ex\",\"\")","v":""},{"$f":"IF(Screening!$AB$6=\"Yes\", \"Ex\",\"\")","v":""},null,null,null,null,null,null,null,{"$f":"IF(Screening!$AB$14=\"Yes\", \"Ex\",\"\")","v":""},null,null,null,null,null,null,{"$f":"IF(AND(Screening!$AB$20=\"Yes\",Screening!$AB$21=\"Yes\"),\"Ex\",\"\")","v":""},null,null,null,null,{"$f":"IF(Screening!$AB$26=\"No\", \"Ex\",\"\")","v":""},null,null,null,null,null,null,null,null,null,null,null,null,null,null,null,null,null,""]
[214,"1.C.5.b.5.b.1.b","You must comply with the hazardous waste chromium thermal concentration limit by determining the feedrate of chromium in all hazardous waste feedstreams (lb/hr) and the hazardous waste thermal feedrate (MMBtu/hr) at least once each minute as [hazardous waste chromium feedrate (lb/hr)/hazardous waste thermal feedrate (MMBtu/hr)].","§63.1209(n)(2)(v)(B)(1)(ii)Rev. 4/8/08 FR",null,null,null,null,null,{"$f":"IF(Screening!$AB$5=\"No\", \"Ex\",\"\")","v":""},{"$f":"IF(Screening!$AB$6=\"Yes\", \"Ex\",\"\")","v":""},null,null,null,null,null,null,null,{"$f":"IF(Screening!$AB$14=\"Yes\", \"Ex\",\"\")","v":""},null,null,null,null,null,null,{"$f":"IF(AND(Screening!$AB$20=\"Yes\",Screening!$AB$21=\"Yes\"),\"Ex\",\"\")","v":""},null,null,null,null,{"$f":"IF(Screening!$AB$26=\"No\", \"Ex\",\"\")","v":""},null,null,null,null,null,null,null,null,null,null,null,null,null,null,null,null,null,""]
[215,"1.C.5.b.5.b.2","Boilers that feed hazardous waste with a heating value less than 10,000 Btu/lb. You must establish a 12-hour rolling average limit for the total feedrate (lb/hr) of chromium in all feedstreams as the average of the test run averages.","§63.1209(n)(2)(v)(B)(2) Rev. 4/8/08 FR ",null,null,null,null,null,{"$f":"IF(Screening!$AB$5=\"No\", \"Ex\",\"\")","v":""},{"$f":"IF(Screening!$AB$6=\"Yes\", \"Ex\",\"\")","v":""},null,null,null,null,null,null,null,{"$f":"IF(Screening!$AB$14=\"Yes\", \"Ex\",\"\")","v":""},null,null,null,null,null,null,{"$f":"IF(AND(Screening!$AB$20=\"Yes\",Screening!$AB$21=\"Yes\"),\"Ex\",\"\")","v":""},null,null,null,null,null,{"$f":"IF(Screening!$AB$27=\"No\", \"Ex\",\"\")","v":""},null,null,null,null,null,null,null,null,null,null,null,null,null,null,null,null,""]
[216,"1.C.5.b.6 ","LVM limits for pumpable wastes. The source must establish separate feedrate limits for low volatile metals in pumpable feedstreams using the procedures prescribed above for total low volatile metals. Dual feedrate limits for both pumpable and total feedstreams are not required, however, if the source bases the total feedrate limit solely on the feedrate of pumpable feedstreams.","§63.1209(n)(2)(vi)",null,null,null,null,null,null,{"$f":"IF(Screening!$AB$6=\"Yes\", \"Ex\",\"\")","v":""},null,null,null,null,null,null,null,{"$f":"IF(Screening!$AB$14=\"Yes\", \"Ex\",\"\")","v":""},null,null,null,null,null,null,{"$f":"IF(Screening!$AB$21=\"Yes\",\"Ex\",\"\")","v":""},null,null,null,null,null,null,null,null,null,null,null,null,null,null,null,null,null,null,null,null,null,null,""]
[217,"1.C.5.b.7","Extrapolation of feedrate levels. In lieu of establishing feedrate limits as specified in paragraphs (n)(2)(ii) through (vi) of this section, you may request as part of the performance test plan under §§63.7(b) and (c) and §§63.1207(e) and (f) to use the semivolatile metal and low volatile metal feedrates and associated emission rates during the comprehensive performance test to extrapolate to higher allowable feedrate limits and emission rates. The extrapolation methodology will be reviewed and approved, as warranted, by the Administrator. The review will consider in particular whether: ","§63.1209(n)(2)(vii)Rev. 4/8/08 FR",null,null,null,null,null,null,{"$f":"IF(Screening!$AB$6=\"Yes\", \"Ex\",\"\")","v":""},null,null,null,null,null,null,null,{"$f":"IF(Screening!$AB$14=\"Yes\", \"Ex\",\"\")","v":""},null,null,null,null,null,null,{"$f":"IF(AND(Screening!$AB$20=\"Yes\",Screening!$AB$21=\"Yes\"),\"Ex\",\"\")","v":""},null,null,null,null,null,null,null,null,null,null,null,null,null,null,null,null,null,null,null,null,null,null,""]
[218,"1.C.5.b.7.A","Performance test metal feedrates are appropriate (i.e. , whether feedrates are at least at normal levels; depending on the heterogeneity of the waste, whether some level of spiking would be appropriate; and whether the physical form and species of spiked material is appropriate); and","§63.1209(n)(2)(vii)(A)",null,null,null,null,null,null,{"$f":"IF(Screening!$AB$6=\"Yes\", \"Ex\",\"\")","v":""},null,null,null,null,null,null,null,{"$f":"IF(Screening!$AB$14=\"Yes\", \"Ex\",\"\")","v":""},null,null,null,null,null,null,{"$f":"IF(AND(Screening!$AB$20=\"Yes\",Screening!$AB$21=\"Yes\"),\"Ex\",\"\")","v":""},null,null,null,null,null,null,null,null,null,null,null,null,null,null,null,null,null,null,null,null,null,null,""]
[219,"1.C.5.b.7.B","Whether the extrapolated feedrates the source requests are warranted considering historical metal feedrate data.","§63.1209(n)(2)(vii)(B)",null,null,null,null,null,null,{"$f":"IF(Screening!$AB$6=\"Yes\", \"Ex\",\"\")","v":""},null,null,null,null,null,null,null,{"$f":"IF(Screening!$AB$14=\"Yes\", \"Ex\",\"\")","v":""},null,null,null,null,null,null,{"$f":"IF(AND(Screening!$AB$20=\"Yes\",Screening!$AB$21=\"Yes\"),\"Ex\",\"\")","v":""},null,null,null,null,null,null,null,null,null,null,null,null,null,null,null,null,null,null,null,null,null,null,""]
[220,"1.C.5.c","Control device operating parameter limits (OPLs). The source must establish operating parameter limits on the particulate matter control device as specified by §63.1209(m)(1) of this section;","§63.1209(n)(3)",null,null,null,null,null,null,{"$f":"IF(Screening!$AB$6=\"Yes\", \"Ex\",\"\")","v":""},null,null,null,null,null,null,null,{"$f":"IF(Screening!$AB$14=\"Yes\", \"Ex\",\"\")","v":""},null,null,null,null,null,null,{"$f":"IF(AND(Screening!$AB$20=\"Yes\",Screening!$AB$21=\"Yes\"),\"Ex\",\"\")","v":""},null,null,null,null,null,null,null,null,null,null,null,null,null,null,null,null,null,null,null,null,null,null,""]
[221,"1.C.5.d","Maximum total chlorine and chloride feedrate. The source must establish a 12-hour rolling average limit for the feedrate of total chlorine and chloride in all feedstreams as the average of the test run averages.","§63.1209(n)(4)",null,null,null,null,null,null,{"$f":"IF(Screening!$AB$6=\"Yes\", \"Ex\",\"\")","v":""},null,null,null,null,null,null,null,{"$f":"IF(Screening!$AB$14=\"Yes\", \"Ex\",\"\")","v":""},null,null,null,null,null,null,{"$f":"IF(AND(Screening!$AB$20=\"Yes\",Screening!$AB$21=\"Yes\"),\"Ex\",\"\")","v":""},null,null,null,null,null,null,null,null,null,null,null,null,null,null,null,null,null,null,null,null,null,null,""]
[222,"1.C.5.e.1","Maximum flue gas flowrate or production rate. (i) As an indicator of gas residence time in the control device, the source must establish a limit on the maximum flue gas flowrate, the maximum production rate, or another parameter that the source documents in the site-specific test plan as an appropriate surrogate for gas residence time, as the average of the maximum hourly rolling averages for each run.","§63.1209(n)(5)",null,null,null,null,null,null,{"$f":"IF(Screening!$AB$6=\"Yes\", \"Ex\",\"\")","v":""},null,null,null,null,null,null,null,{"$f":"IF(Screening!$AB$14=\"Yes\", \"Ex\",\"\")","v":""},null,null,null,null,null,null,{"$f":"IF(AND(Screening!$AB$20=\"Yes\",Screening!$AB$21=\"Yes\"),\"Ex\",\"\")","v":""},null,null,null,null,null,null,null,null,null,null,null,null,null,null,null,null,null,null,null,null,null,null,""]
[223,"1.C.5.e.2","The source must comply with this limit on an hourly rolling average basis.","§63.1209(n)(5)(ii)",null,null,null,null,null,null,{"$f":"IF(Screening!$AB$6=\"Yes\", \"Ex\",\"\")","v":""},null,null,null,null,null,null,null,{"$f":"IF(Screening!$AB$14=\"Yes\", \"Ex\",\"\")","v":""},null,null,null,null,null,null,{"$f":"IF(AND(Screening!$AB$20=\"Yes\",Screening!$AB$21=\"Yes\"),\"Ex\",\"\")","v":""},null,null,null,null,null,null,null,null,null,null,null,null,null,null,null,null,null,null,null,null,null,null,""]
[224,"1.C.6","Hydrogen chloride and chlorine gas. The source must comply with the hydrogen chloride and chlorine gas emission standard by establishing and complying with the following operating parameter limits. The source must base the limits on operations during the comprehensive performance test, unless the limits are based on manufacturer specifications.","§63.1209(o)",null,null,null,null,null,null,null,null,null,null,null,null,null,null,{"$f":"IF(Screening!$AB$14=\"Yes\", \"Ex\",\"\")","v":""},null,{"$f":"IF(Screening!$AB$16=\"Yes\", \"Ex\",\"\")","v":""},null,null,null,null,null,{"$f":"IF(Screening!$AB$22=\"Yes\", \"Ex\",\"\")","v":""},null,null,null,null,null,null,null,null,null,null,null,null,null,null,null,null,null,null,null,null,null,""]
[225,"1.C.6.a ","Feedrate of total chlorine and chloride.","§63.1209(o)(1)",null,null,null,null,null,null,null,null,null,null,null,null,null,null,{"$f":"IF(Screening!$AB$14=\"Yes\", \"Ex\",\"\")","v":""},null,{"$f":"IF(Screening!$AB$16=\"Yes\", \"Ex\",\"\")","v":""},null,null,null,null,null,{"$f":"IF(Screening!$AB$22=\"Yes\", \"Ex\",\"\")","v":""},null,null,null,null,null,null,null,null,null,null,null,null,null,null,null,null,null,null,null,null,null,""]
[226,"1.C.6.a.1","Incinerators, cement kilns, lightweight aggregate kilns, solid fuel boilers, and hydrochloric acid production furnaces. The source must establish a 12-hour rolling average limit for the total feedrate of chlorine (organic and inorganic) in all feedstreams as the average of the test run averages.","§63.1209(o)(1)(i)",null,null,null,null,null,{"$f":"IF(Screening!$AB$5=\"Yes\", \"Ex\",\"\")","v":""},null,null,null,null,null,null,null,null,{"$f":"IF(Screening!$AB$14=\"Yes\", \"Ex\",\"\")","v":""},null,{"$f":"IF(Screening!$AB$16=\"Yes\", \"Ex\",\"\")","v":""},null,null,null,null,null,{"$f":"IF(Screening!$AB$22=\"Yes\", \"Ex\",\"\")","v":""},null,null,null,null,null,null,null,null,null,null,null,null,null,null,null,null,null,null,null,null,null,""]
[227,"1.C.6.a.2","Liquid fuel boilers ","§63.1209(o)(1)(ii)",null,null,null,null,null,{"$f":"IF(Screening!$AB$5=\"No\", \"Ex\",\"\")","v":""},null,null,null,null,null,null,null,null,{"$f":"IF(Screening!$AB$14=\"Yes\", \"Ex\",\"\")","v":""},null,{"$f":"IF(Screening!$AB$16=\"Yes\", \"Ex\",\"\")","v":""},null,null,null,null,null,{"$f":"IF(Screening!$AB$22=\"Yes\", \"Ex\",\"\")","v":""},null,null,null,null,null,null,null,null,null,null,null,null,null,null,null,null,null,null,null,null,null,""]
[228,"1.C.6.a.2.a","Boilers that feed hazardous waste with a heating value not less than 10,000 Btu/lb.","§63.1209(o)(1)(ii )(A)",null,null,null,null,null,{"$f":"IF(Screening!$AB$5=\"No\", \"Ex\",\"\")","v":""},null,null,null,null,null,null,null,null,{"$f":"IF(Screening!$AB$14=\"Yes\", \"Ex\",\"\")","v":""},null,{"$f":"IF(Screening!$AB$16=\"Yes\", \"Ex\",\"\")","v":""},null,null,null,null,null,{"$f":"IF(Screening!$AB$22=\"Yes\", \"Ex\",\"\")","v":""},null,null,null,{"$f":"IF(Screening!$AB$26=\"No\", \"Ex\",\"\")","v":""},null,null,null,null,null,null,null,null,null,null,null,null,null,null,null,null,null,""]
[229,"1.C.6.a.2.a.1","The feedrate limit is a hazardous waste thermal concentration limit expressed as pounds of chlorine (organic and inorganic) in all hazardous waste feedstreams per million Btu of hazardous waste fed to the boiler.","§63.1209(o)(1)(ii)(A)(1)",null,null,null,null,null,{"$f":"IF(Screening!$AB$5=\"No\", \"Ex\",\"\")","v":""},null,null,null,null,null,null,null,null,{"$f":"IF(Screening!$AB$14=\"Yes\", \"Ex\",\"\")","v":""},null,{"$f":"IF(Screening!$AB$16=\"Yes\", \"Ex\",\"\")","v":""},null,null,null,null,null,{"$f":"IF(Screening!$AB$22=\"Yes\", \"Ex\",\"\")","v":""},null,null,null,{"$f":"IF(Screening!$AB$26=\"No\", \"Ex\",\"\")","v":""},null,null,null,null,null,null,null,null,null,null,null,null,null,null,null,null,null,""]
[230,"1.C.6.a.2.a.2","The source must establish a 12-hour rolling average feedrate limit as the average of the test run averages.","§63.1209(o)(1)(ii)(A)(2)",null,null,null,null,null,{"$f":"IF(Screening!$AB$5=\"No\", \"Ex\",\"\")","v":""},null,null,null,null,null,null,null,null,{"$f":"IF(Screening!$AB$14=\"Yes\", \"Ex\",\"\")","v":""},null,{"$f":"IF(Screening!$AB$16=\"Yes\", \"Ex\",\"\")","v":""},null,null,null,null,null,{"$f":"IF(Screening!$AB$22=\"Yes\", \"Ex\",\"\")","v":""},null,null,null,{"$f":"IF(Screening!$AB$26=\"No\", \"Ex\",\"\")","v":""},null,null,null,null,null,null,null,null,null,null,null,null,null,null,null,null,null,""]
[231,"1.C.6.a.2.a.3","You must comply with the feedrate limit by determining the mass feedrate of hazardous waste feedstreams (lb/hr) at least once a minute and by knowing the chlorine content (organic and inorganic, lb of chlorine/lb of hazardous waste) and heating value (Btu/lb) of hazardous waste feedstreams at all times to calculate a 1-minute average feedrate measurement as [hazardous waste chlorine content (lb of chlorine/lb of hazardous waste feed)/hazardous waste heating value (Btu/lb of hazardous waste)]. You must update the rolling average feedrate each hour with this 60-minute average feedrate measurement.","§63.1209(o)(1)(ii)(A)(3)Rev. 4/8/08 FR",null,null,null,null,null,{"$f":"IF(Screening!$AB$5=\"No\", \"Ex\",\"\")","v":""},null,null,null,null,null,null,null,null,{"$f":"IF(Screening!$AB$14=\"Yes\", \"Ex\",\"\")","v":""},null,{"$f":"IF(Screening!$AB$16=\"Yes\", \"Ex\",\"\")","v":""},null,null,null,null,null,{"$f":"IF(Screening!$AB$22=\"Yes\", \"Ex\",\"\")","v":""},null,null,null,{"$f":"IF(Screening!$AB$26=\"No\", \"Ex\",\"\")","v":""},null,null,null,null,null,null,null,null,null,null,null,null,null,null,null,null,null,""]
[232,"1.C.6.a.2.b","Boilers that feed hazardous waste with a heating value less than 10,000 Btu/lb. The source must establish a 12-hour rolling average limit for the total feedrate of chlorine (organic and inorganic) in all feedstreams as the average of the test run averages. The source must update the rolling average feedrate each hour with a 60-minute average feedrate measurement.","§63.1209(o)(1)(ii)(B)",null,null,null,null,null,{"$f":"IF(Screening!$AB$5=\"No\", \"Ex\",\"\")","v":""},null,null,null,null,null,null,null,null,{"$f":"IF(Screening!$AB$14=\"Yes\", \"Ex\",\"\")","v":""},null,{"$f":"IF(Screening!$AB$16=\"Yes\", \"Ex\",\"\")","v":""},null,null,null,null,null,{"$f":"IF(Screening!$AB$22=\"Yes\", \"Ex\",\"\")","v":""},null,null,null,{"$f":"IF(Screening!$AB$26=\"No\", \"Ex\",\"\")","v":""},{"$f":"IF(Screening!$AB$27=\"No\", \"Ex\",\"\")","v":""},null,null,null,null,null,null,null,null,null,null,null,null,null,null,null,null,""]
[233,"1.C.6.b.1","Maximum flue gas flowrate or production rate. (i) As an indicator of gas residence time in the control device, the source must establish a limit on the maximum flue gas flowrate, the maximum production rate, or another parameter that the source documents in the site-specific test plan as an appropriate surrogate for gas residence time, as the average of the maximum hourly rolling averages for each run.","§63.1209(o)(2)",null,null,null,null,null,null,null,null,null,null,null,null,null,null,{"$f":"IF(Screening!$AB$14=\"Yes\", \"Ex\",\"\")","v":""},null,{"$f":"IF(Screening!$AB$16=\"Yes\", \"Ex\",\"\")","v":""},null,null,null,null,null,{"$f":"IF(Screening!$AB$22=\"Yes\", \"Ex\",\"\")","v":""},null,null,null,null,null,null,null,null,null,null,null,null,null,null,null,null,null,null,null,null,null,""]
[234,"1.C.6.b.2","The source must comply with this limit on a hourly rolling average basis;","§63.1209(o)(2)(ii)",null,null,null,null,null,null,null,null,null,null,null,null,null,null,{"$f":"IF(Screening!$AB$14=\"Yes\", \"Ex\",\"\")","v":""},null,{"$f":"IF(Screening!$AB$16=\"Yes\", \"Ex\",\"\")","v":""},null,null,null,null,null,{"$f":"IF(Screening!$AB$22=\"Yes\", \"Ex\",\"\")","v":""},null,null,null,null,null,null,null,null,null,null,null,null,null,null,null,null,null,null,null,null,null,""]
[235,"1.C.6.c","Wet scrubber. If the source’s combustor is equipped with a wet scrubber:","§63.1209(o)(3)",null,null,null,null,null,null,null,null,null,null,null,null,null,null,{"$f":"IF(Screening!$AB$14=\"Yes\", \"Ex\",\"\")","v":""},null,{"$f":"IF(Screening!$AB$16=\"Yes\", \"Ex\",\"\")","v":""},null,null,null,null,null,{"$f":"IF(Screening!$AB$22=\"Yes\", \"Ex\",\"\")","v":""},null,null,null,null,null,{"$f":"IF(AND(Screening!$AB$28=\"No\",Screening!$AB$29=\"No\",Screening!$AB$33=\"No\"),\"Ex\",\"\")","v":""},null,null,null,null,null,null,null,null,null,null,null,null,null,null,null,""]
[236,"1.C.6 .c.1","If the source is equipped with a high energy wet scrubber such as a venturi, hydrosonic, collision, or free jet wet scrubber, the source must establish a limit on minimum pressure drop across the wet scrubber on an hourly rolling average as the average of the test run averages;","§63.1209(o)(3)(i)",null,null,null,null,null,null,null,null,null,null,null,null,null,null,{"$f":"IF(Screening!$AB$14=\"Yes\", \"Ex\",\"\")","v":""},null,{"$f":"IF(Screening!$AB$16=\"Yes\", \"Ex\",\"\")","v":""},null,null,null,null,null,{"$f":"IF(Screening!$AB$22=\"Yes\", \"Ex\",\"\")","v":""},null,null,null,null,null,{"$f":"IF(AND(Screening!$AB$28=\"No\",Screening!$AB$29=\"No\",Screening!$AB$33=\"No\"),\"Ex\",\"\")","v":""},null,null,null,null,null,null,null,null,null,null,null,null,null,null,null,""]
[237,"1.C.6 .c.2","If the source is equipped with a low energy wet scrubber such as a spray tower, packed bed, or tray tower, the source must establish a minimum pressure drop across the wet scrubber based on manufacturer's specifications. The source must comply with the limit on an hourly rolling average;","§63.1209(o)(3)(ii)",null,null,null,null,null,null,null,null,null,null,null,null,null,null,{"$f":"IF(Screening!$AB$14=\"Yes\", \"Ex\",\"\")","v":""},null,{"$f":"IF(Screening!$AB$16=\"Yes\", \"Ex\",\"\")","v":""},null,null,null,null,null,{"$f":"IF(Screening!$AB$22=\"Yes\", \"Ex\",\"\")","v":""},null,null,null,null,null,{"$f":"IF(AND(Screening!$AB$28=\"No\",Screening!$AB$29=\"No\",Screening!$AB$33=\"No\"),\"Ex\",\"\")","v":""},null,null,null,null,null,null,null,null,null,null,null,null,null,null,null,""]
[238,"1.C.6 .c.3","If the source is equipped with a low energy wet scrubber, the source must establish a limit on minimum liquid feed pressure to the wet scrubber based on manufacturer's specifications. The source must comply with the limit on an hourly rolling average;","§63.1209(o)(3)(iii)",null,null,null,null,null,null,null,null,null,null,null,null,null,null,{"$f":"IF(Screening!$AB$14=\"Yes\", \"Ex\",\"\")","v":""},null,{"$f":"IF(Screening!$AB$16=\"Yes\", \"Ex\",\"\")","v":""},null,null,null,null,null,{"$f":"IF(Screening!$AB$22=\"Yes\", \"Ex\",\"\")","v":""},null,null,null,null,null,{"$f":"IF(AND(Screening!$AB$28=\"No\",Screening!$AB$29=\"No\",Screening!$AB$33=\"No\"),\"Ex\",\"\")","v":""},null,null,null,null,null,null,null,null,null,null,null,null,null,null,null,""]
[239,"1.C.6.c.4","The source must establish a limit on minimum pH on an hourly rolling average as the average of the test run averages;","§63.1209(o)(3)(iv)",null,null,null,null,null,null,null,null,null,null,null,null,null,null,{"$f":"IF(Screening!$AB$14=\"Yes\", \"Ex\",\"\")","v":""},null,{"$f":"IF(Screening!$AB$16=\"Yes\", \"Ex\",\"\")","v":""},null,null,null,null,null,{"$f":"IF(Screening!$AB$22=\"Yes\", \"Ex\",\"\")","v":""},null,null,null,null,null,{"$f":"IF(AND(Screening!$AB$28=\"No\",Screening!$AB$29=\"No\",Screening!$AB$33=\"No\"),\"Ex\",\"\")","v":""},null,null,null,null,null,null,null,null,null,null,null,null,null,null,null,""]
[240,"1.C.6.c.5","The source must establish limits on either the minimum liquid to gas ratio or the minimum scrubber water flowrate and maximum flue gas flowrate on an hourly rolling average as the average of the test run averages. If the source establishes limits on maximum flue gas flowrate under this paragraph, the source needs not establish a limit on maximum flue gas flowrate under §63.1209(o)(2) of this section; and","§63.1209(o)(3)(v)",null,null,null,null,null,null,null,null,null,null,null,null,null,null,{"$f":"IF(Screening!$AB$14=\"Yes\", \"Ex\",\"\")","v":""},null,{"$f":"IF(Screening!$AB$16=\"Yes\", \"Ex\",\"\")","v":""},null,null,null,null,null,{"$f":"IF(Screening!$AB$22=\"Yes\", \"Ex\",\"\")","v":""},null,null,null,null,null,{"$f":"IF(AND(Screening!$AB$28=\"No\",Screening!$AB$29=\"No\",Screening!$AB$33=\"No\"),\"Ex\",\"\")","v":""},null,null,null,null,null,null,null,null,null,null,null,null,null,null,null,""]
[241,"1.C.6.d","Dry scrubber. If the combustor is equipped with a dry scrubber, the source must establish the following operating parameter limits:","§63.1209(o)(4)",null,null,null,null,null,null,null,null,null,null,null,null,null,null,{"$f":"IF(Screening!$AB$14=\"Yes\", \"Ex\",\"\")","v":""},null,{"$f":"IF(Screening!$AB$16=\"Yes\", \"Ex\",\"\")","v":""},null,null,null,null,null,{"$f":"IF(Screening!$AB$22=\"Yes\", \"Ex\",\"\")","v":""},null,null,null,null,null,null,null,{"$f":"IF(Screening!$AB$30=\"No\", \"Ex\",\"\")","v":""},null,null,null,null,null,null,null,null,null,null,null,null,null,""]
[242,"1.C.6.d.1","Minimum sorbent feedrate. The source must establish a limit on minimum sorbent feedrate on an hourly rolling average as the average of the test run averages.","§63.1209(o)(4)(i)",null,null,null,null,null,null,null,null,null,null,null,null,null,null,{"$f":"IF(Screening!$AB$14=\"Yes\", \"Ex\",\"\")","v":""},null,{"$f":"IF(Screening!$AB$16=\"Yes\", \"Ex\",\"\")","v":""},null,null,null,null,null,{"$f":"IF(Screening!$AB$22=\"Yes\", \"Ex\",\"\")","v":""},null,null,null,null,null,null,null,{"$f":"IF(Screening!$AB$30=\"No\", \"Ex\",\"\")","v":""},null,null,null,null,null,null,null,null,null,null,null,null,null,""]
[243,"1.C.6.d.2","Minimum carrier fluid flowrate or nozzle pressure drop. The source must establish a limit on minimum carrier fluid (gas or liquid) flowrate or nozzle pressure drop based on manufacturer's specifications.","§63.1209(o)(4)(ii)",null,null,null,null,null,null,null,null,null,null,null,null,null,null,{"$f":"IF(Screening!$AB$14=\"Yes\", \"Ex\",\"\")","v":""},null,{"$f":"IF(Screening!$AB$16=\"Yes\", \"Ex\",\"\")","v":""},null,null,null,null,null,{"$f":"IF(Screening!$AB$22=\"Yes\", \"Ex\",\"\")","v":""},null,null,null,null,null,null,null,{"$f":"IF(Screening!$AB$30=\"No\", \"Ex\",\"\")","v":""},null,null,null,null,null,null,null,null,null,null,null,null,null,""]
[244,"1.C.6.d.3.a","Sorbent specifications. The source must specify and use the brand ( 1.e., manufacturer) and type of sorbent used during the comprehensive performance test until a subsequent comprehensive performance test is conducted, unless the source documents in the site-specific performance test plan required under §§63.1207(e) and (f) key parameters that affect adsorption and establish limits on those parameters based on the sorbent used in the performance test.","§63.1209(o)(4)(iii)(A)",null,null,null,null,null,null,null,null,null,null,null,null,null,null,{"$f":"IF(Screening!$AB$14=\"Yes\", \"Ex\",\"\")","v":""},null,{"$f":"IF(Screening!$AB$16=\"Yes\", \"Ex\",\"\")","v":""},null,null,null,null,null,{"$f":"IF(Screening!$AB$22=\"Yes\", \"Ex\",\"\")","v":""},null,null,null,null,null,null,null,{"$f":"IF(Screening!$AB$30=\"No\", \"Ex\",\"\")","v":""},null,null,null,null,null,null,null,null,null,null,null,null,null,""]
[245,"1.C.6.d.3.b","The source may substitute at any time a different brand or type of sorbent provided that the replacement has equivalent or improved properties compared to the sorbent used in the performance test and conforms to the key sorbent parameters the source identifies under §63.1209(o)(4)(iii)(A) of this section. The source must record in the operating record documentation that the substitute sorbent will provide the same level of control as the original sorbent.\nNote to 1.C.6.d.3: Under §63.1209(o)(4)(iii)(B), the source may substitute at any time a different brand or type of sorbent provided that the replacement has equivalent or improved properties compared to the sorbent used in the performance test and conforms to the key sorbent parameters the source identifies under chamber zone pressure lower than ambient pressure, the source must monitor the pressure instantaneously under §63.1209(o)(4)(iii)(A) of this section. The source must record in the operating record documentation that the substitute sorbent will provide the same level of control as the original sorbent.","§63.1209(o)(4)(iii)(B)",null,null,null,null,null,null,null,null,null,null,null,null,null,null,{"$f":"IF(Screening!$AB$14=\"Yes\", \"Ex\",\"\")","v":""},null,{"$f":"IF(Screening!$AB$16=\"Yes\", \"Ex\",\"\")","v":""},null,null,null,null,null,{"$f":"IF(Screening!$AB$22=\"Yes\", \"Ex\",\"\")","v":""},null,null,null,null,null,null,null,{"$f":"IF(Screening!$AB$30=\"No\", \"Ex\",\"\")","v":""},null,null,null,null,null,null,null,null,null,null,null,null,null,""]
[246,"1.C.7","Maximum combustion chamber pressure. If the source complies with the requirements for combustion system leaks under §63.1206(c)(5) by maintaining the maximum combustion chamber zone pressure lower than ambient pressure (as opposed to the other two options of either sealing the combustion chamber or obtaining approval for an alternate technique), the source must monitor the pressure instantaneously and the automatic waste feed cutoff system must be engaged when negative pressure is not maintained at any time.","§63.1209(p)",null,null,null,null,null,null,null,null,null,null,null,null,null,null,null,null,null,null,null,null,null,null,null,null,null,null,null,null,null,null,null,null,null,null,null,null,null,null,null,null,null,null,null,null,""]
[247,"1.C.8","Operating under different modes of operation. If the source operates under different modes of operation, it must establish operating parameter limits for each mode. The source must document in the operating record when it changes a mode of operation and begin complying with the operating parameter limits for an alternative mode of operation.","§63.1209(q)",null,null,null,null,null,null,null,null,null,null,null,null,null,null,null,null,null,null,null,null,null,null,null,null,null,null,null,null,null,null,null,null,null,null,null,null,null,null,null,null,null,null,null,null,""]
[248,"1.C.8.a","Operating under otherwise applicable standards after the hazardous waste residence time has transpired. As provided by §63.1206(b)(1)(ii), the source may operate under otherwise applicable requirements under sections 112 and 119 of the CAA in lieu of the substantive requirements of this subpart.","§63.1209(q)(1)",null,null,null,null,null,null,null,null,null,null,null,null,null,null,null,null,null,null,null,null,null,null,null,null,null,null,null,null,null,null,null,null,null,null,null,null,null,null,null,null,null,null,null,null,""]
[249,"1.C.8.a.1","The otherwise applicable requirements under sections 112 and 119 of the CAA, are applicable requirements under this subpart.","§63.1209(q)(1)(i)",null,null,null,null,null,null,null,null,null,null,null,null,null,null,null,null,null,null,null,null,null,null,null,null,null,null,null,null,null,null,null,null,null,null,null,null,null,null,null,null,null,null,null,null,""]
[250,"1.C.8.a.2","The source must specify (e.g. , by reference) the otherwise applicable requirements as a mode of operation in its Documentation of Compliance under 63.1211(c), its Notification of Compliance under §63.1207(j), and its title V permit application. These requirements include the otherwise applicable requirements governing emission standards, monitoring and compliance, and notification reporting, and recordkeeping.","§63.1209(q)(1)(ii)",null,null,null,null,null,null,null,null,null,null,null,null,null,null,null,null,null,null,null,null,null,null,null,null,null,null,null,null,null,null,null,null,null,null,null,null,null,null,null,null,null,null,null,null,""]
[251,"1.C.8.b","Calculating rolling averages under different modes of operation. When the source transitions to a different mode of operation, it must calculate rolling averages as follows;","§63.1209(q)(2)",null,null,null,null,null,null,null,null,null,null,null,null,null,null,null,null,null,null,null,null,null,null,null,null,null,null,null,null,null,null,null,null,null,null,null,null,null,null,null,null,null,null,null,null,""]
[252,"1.C.8.b.1","Retrieval approach. Calculate rolling averages anew using the continuous monitoring system values previously recorded for that mode of operation (i.e., the source ignores continuous monitoring system values subsequently recorded under other modes of operation when the source transitions back to a mode of operation); or ","§63.1209(q)(2)(i)",null,null,null,null,null,null,null,null,null,null,null,null,null,null,null,null,null,null,null,null,null,null,null,null,null,null,null,null,null,null,null,null,null,null,null,null,null,null,null,null,null,null,null,null,""]
[253,"1.C.8.b.2","Start anew. Calculate rolling averages anew without considering previous recordings.","§63.1209(q)(2)(ii)",null,null,null,null,null,null,null,null,null,null,null,null,null,null,null,null,null,null,null,null,null,null,null,null,null,null,null,null,null,null,null,null,null,null,null,null,null,null,null,null,null,null,null,null,""]
[254,"1.C.8.b.2.a","Rolling averages must be calculated as the average of the available one-minute values for the parameter until enough one-minute values are available to calculate hourly or 12-hour rolling averages, whichever is applicable to the parameter.","§63.1209(q)(2)(ii)(A)",null,null,null,null,null,null,null,null,null,null,null,null,null,null,null,null,null,null,null,null,null,null,null,null,null,null,null,null,null,null,null,null,null,null,null,null,null,null,null,null,null,null,null,null,""]
[255,"1.C.8.b.2.b","A source may not transition to a new mode of operation using this approach if the most recent operation in that mode resulted in an exceedance of an applicable emission standard measured with a CEMS or operating parameter limit prior to the hazardous waste residence time expiring; or","§63.1209(q)(2)(ii)(B)",null,null,null,null,null,null,null,null,null,null,null,null,null,null,null,null,null,null,null,null,null,null,null,null,null,null,null,null,null,null,null,null,null,null,null,null,null,null,null,null,null,null,null,null,""]
[256,"1.C.8.b.3","Seamless Transition. Continue calculating rolling averages using data from the previous operating limit and the averaging period for the parameter are the same for both modes of operation.","§63.1209(q)(2)(iii)",null,null,null,null,null,null,null,null,null,null,null,null,null,null,null,null,null,null,null,null,null,null,null,null,null,null,null,null,null,null,null,null,null,null,null,null,null,null,null,null,null,null,null,null,""]
[257,"1.C.8.c","Averaging periods. The averaging periods specified in this section for operating parameters are not-to-exceed averaging periods. The source may elect to use shorter averaging periods. For example, the source may elect to use a 1-hour rolling average rather than the 12-hour rolling average specified in §63.1209(l)(1)(i) of this section for mercury.","§63.1209(r)",null,null,null,null,null,null,null,null,null,null,null,null,null,null,null,null,null,null,null,null,null,null,null,null,null,null,null,null,null,null,null,null,null,null,null,null,null,null,null,null,null,null,null,null,{"$f":"IF(OR(I258=\"Ex\",J258=\"Ex\",K258=\"Ex\",L258=\"Ex\",M258=\"Ex\",N258=\"Ex\",O258=\"Ex\",P258=\"Ex\",Q258=\"Ex\",R258=\"Ex\",S258=\"Ex\",T258=\"Ex\",U258=\"Ex\",V258=\"Ex\",W258=\"Ex\",X258=\"Ex\",Y258=\"Ex\",Z258=\"Ex\",AA258=\"Ex\",AB258=\"Ex\",AC258=\"Ex\",AD258=\"Ex\",AE258=\"Ex\",AF258=\"Ex\",AG258=\"Ex\",AH258=\"Ex\",AI258=\"Ex\",AJ258=\"Ex\",AK258=\"Ex\",AL258=\"Ex\",AM258=\"Ex\",AN258=\"Ex\",AO258=\"Ex\",AP258=\"Ex\",AQ258=\"Ex\",AR258=\"Ex\",AS258=\"Ex\",AT258=\"Ex\",AU258=\"Ex\",AV258=\"Ex\"), \"Ex\",\"\")","v":""}]
[258,"1.C.9","Steady-state conditions.","§63.1207(g)(1)(iii)",null,null,null,null,null,null,null,null,null,null,null,null,null,null,null,null,null,null,null,null,null,null,null,null,null,null,null,null,null,null,null,null,null,null,null,null,null,null,null,null,null,null,null,null,""]
[259,"1.C.9.a","Steady-State Conditions. Prior to obtaining performance test data, the source must operate under performance test conditions until it reaches steadystate operations with respect to emissions of pollutants to be measured during the performance test and operating parameters under §63.1209 for which the source must establish limits. During system conditioning, the source must ensure that each operating parameter for which it must establish a limit is held at the level planned for the performance test. The source must include documentation in the performance test plan justifying the duration of system conditioning.","§63.1207(g)(1)(iii)(A)",null,null,null,null,null,null,null,null,null,null,null,null,null,null,null,null,null,null,null,null,null,null,null,null,null,null,null,null,null,null,null,null,null,null,null,null,null,null,null,null,null,null,null,null,""]
[260,"1.C.9.b","If the source owns or operates a hazardous waste cement kiln that recycles collected particulate matter (i.e., cement kiln dust) into the kiln, it must sample and analyze the recycled particulate matter prior to obtaining performance test data for levels of selected metals to be measured during performance testing to document that the system has reached steady-state conditions (i.e., that metals levels have stabilized). The source must document the rationale for selecting metals that are indicative of system equilibrium and include the information in the performance test plan under §63.1207(f). To determine system equilibrium, the source must sample and analyze the recycled particulate matter hourly for each selected metal, unless the source submits in the performance test plan a justification for reduced sampling and analysis and the Administrator approves in writing a reduced sampling and analysis frequency.","§63.1207(g)(1)(iii)(B)",null,null,null,null,null,null,null,null,{"$f":"IF(Screening!$AB$8=\"No\", \"Ex\",\"\")","v":""},null,null,null,null,null,null,null,null,null,null,null,null,null,null,null,null,null,null,null,null,null,null,null,null,null,null,null,null,null,null,null,null,null,null,null,""]
[261,"1.D","Continuous Monitoring Systems (CMS)",null,null,null,null,null,null,null,null,null,null,null,null,null,null,null,null,null,null,null,null,null,null,null,null,null,null,null,null,null,null,null,null,null,null,null,null,null,null,null,null,null,null,null,null,null,""]
[262,"1.D.1","All CMS must be installed, operational, and the data verified as specified in the relevant standard either prior to or in conjunction with conducting performance tests.  Verification of operational status must, at a minimum, include completion of the manufacturer’s written specifications or recommendations for installation, operation, and calibration of the system","§63.8(c)(3)",null,null,null,null,null,null,null,null,null,null,null,null,null,null,null,null,null,null,null,null,null,null,null,null,null,null,null,null,null,null,null,null,null,null,null,null,null,null,null,null,null,null,null,null,""]
[263,"1.D.2","Performance evaluation of continuous monitoring systems","§63.8(e)",null,null,null,null,null,null,null,null,null,null,null,null,null,null,null,null,null,null,null,null,null,null,null,null,null,null,null,null,null,null,null,null,null,null,null,null,null,null,null,null,null,null,null,null,""]
[264,"1.D.2.a","The owner or operator of an affected source being monitored must conduct a performance evaluation of the CMS. Such performance evaluation must be conducted according to the applicable specifications and procedures described in 63.8 or in the relevant standard.","§§63.8(e)(1) and 63.1207(e)(1)(i)",null,null,null,null,null,null,null,null,null,null,null,null,null,null,null,null,null,null,null,null,null,null,null,null,null,null,null,null,null,null,null,null,null,null,null,null,null,null,null,null,null,null,null,null,""]
[265,"1.D.2.b","Notification of performance evaluation. The owner or operator must notify the Administrator in writing of the date of the performance evaluation simultaneously with the notification of the performance test date (or at least 60 days prior to the date the performance evaluation is scheduled to begin if no performance test is required).","§63.8(e)(2)",null,null,null,null,null,null,null,null,null,null,null,null,null,null,null,null,null,null,null,null,null,null,null,null,null,null,null,null,null,null,null,null,null,null,null,null,null,null,null,null,null,null,null,null,""]
[266,"1.D.2.c","Submission of site-specific performance evaluation test plan. Before conducting a required CMS performance evaluation, the owner or operator of an affected source must develop and submit a site-specific performance evaluation test plan to the Administrator for approval. The performance evaluation test plan must include the evaluation program objectives, an evaluation program summary, the performance evaluation schedule, data quality objectives, and both an internal and external QA program. Data quality objectives are the pre-evaluation expectations of precision, accuracy, and completeness of data.\nNote to 1.D.2.c: §63.8(e)(3)(iii) The Administrator’s review and approval of the performance evaluation test plan by the Administrator will occur with the review and approval of the site-specific test plan. Under §63.8(e)(3)(iv), the Administrator may request additional relevant information after the submittal of a site-specific performance evaluation test plan.","§63.8(e)(3)(i)",null,null,null,null,null,null,null,null,null,null,null,null,null,null,null,null,null,null,null,null,null,null,null,null,null,null,null,null,null,null,null,null,null,null,null,null,null,null,null,null,null,null,null,null,""]
[267,"1.D.2.d","The internal QA program must include, at a minimum, the activities planned by routine operators and analysts to provide an assessment of CMS performance.  The external QA program shall include, at a minimum, systems audits that include the opportunity for on-site evaluation by the Administrator of instrument calibration, data validation, sample logging, and documentation of quality control data and field maintenance activities","§63.8(e)(3)(ii)",null,null,null,null,null,null,null,null,null,null,null,null,null,null,null,null,null,null,null,null,null,null,null,null,null,null,null,null,null,null,null,null,null,null,null,null,null,null,null,null,null,null,null,null,""]
[268,2,"WAIVERS AND PETITIONS FOR ALTERNATE TESTING AND MONITORING",null,null,null,null,null,null,null,null,null,null,null,null,null,null,null,null,null,null,null,null,null,null,null,null,null,null,null,null,null,null,null,null,null,null,null,null,null,null,null,null,null,null,null,null,null,""]
[269,"2.A","Waiver of performance test.",null,null,null,null,null,null,null,null,null,null,null,null,null,null,null,null,null,null,null,null,null,{"$f":"IF(AND(Screening!$AB$19=\"No\",Screening!$AB$20=\"No\",Screening!$AB$21=\"No\",Screening!$AB$22=\"No\"),\"Ex\",\"\")","v":""},null,null,null,null,null,null,null,null,null,null,null,null,null,null,null,null,null,null,null,null,null,null,null,""]
[270,"2.A.1","General Performance Test Waiver. Any application for a waiver of a performance test shall include information justifying the owner’s or operator’s request for a waiver, such as the technical or economic infeasibility, or the impracticality, of the affected source performing the required test. (See §63.7(h) for procedures associated with granting general performance test waivers)","§63.7(h)(3)(iii)",null,null,null,null,null,null,null,null,null,null,null,null,null,null,null,null,null,null,null,null,{"$f":"IF(AND(Screening!$AB$19=\"No\",Screening!$AB$20=\"No\",Screening!$AB$21=\"No\",Screening!$AB$22=\"No\"),\"Ex\",\"\")","v":""},null,null,null,null,null,null,null,null,null,null,null,null,null,null,null,null,null,null,null,null,null,null,null,""]
[271,"2.A.1.  ","Waiver of performance test. You are not required to conduct performance tests to document compliance with the mercury, semivolatile metals, low volatile metals, or hydrogen chloride/chlorine gas emission standards under the conditions specified in paragraphs (m)(1) or (m)(2) of this section. The waiver provisions of this paragraph apply in addition to the provisions of §63.7(h).","§63.1207(m)Rev. 4/8/2008 FR",null,null,null,null,null,null,null,null,null,null,null,null,null,null,null,null,null,null,null,null,{"$f":"IF(AND(Screening!$AB$19=\"No\",Screening!$AB$20=\"No\",Screening!$AB$21=\"No\",Screening!$AB$22=\"No\"),\"Ex\",\"\")","v":""},null,null,null,null,null,null,null,null,null,null,null,null,null,null,null,null,null,null,null,null,null,null,null,""]
[272,null,"Emission standards based on exhaust gas flow rate. (i) You are deemed to be in compliance with an emission standard based on the volumetric flow rate of exhaust gas (i.e., µg/dscm or ppmv) if the maximum theoretical emission concentration (MTEC) does not exceed the emission standard over the relevant averaging period specified under §63.1209(l), (n), and (o) of this section for the standard: ","§63.1207(m)(1)(i)Rev. 4/8/2008 FR",null,null,null,null,null,null,null,null,null,null,null,null,null,null,null,null,null,null,null,null,{"$f":"IF(AND(Screening!$AB$19=\"No\",Screening!$AB$20=\"No\",Screening!$AB$21=\"No\",Screening!$AB$22=\"No\"),\"Ex\",\"\")","v":""},null,null,null,null,null,null,{"$f":"IF(AND(Screening!$AB$5=\"Yes\",Screening!$AB$27=\"No\"), \"Ex\",\"\")","v":""},null,null,null,null,null,null,null,null,null,null,null,null,null,null,null,null,""]
[273,null,"Determine the feedrate of mercury, semivolatile metals, low volatile metals, or total chlorine and chloride from all feedstreams;","§63.1207(m)(1)(i)(A)Rev. 4/8/2008 FR",null,null,null,null,null,null,null,null,null,null,null,null,null,null,null,null,null,null,null,null,{"$f":"IF(AND(Screening!$AB$19=\"No\",Screening!$AB$20=\"No\",Screening!$AB$21=\"No\",Screening!$AB$22=\"No\"),\"Ex\",\"\")","v":""},null,null,null,null,null,null,{"$f":"IF(AND(Screening!$AB$5=\"Yes\",Screening!$AB$27=\"No\"), \"Ex\",\"\")","v":""},null,null,null,null,null,null,null,null,null,null,null,null,null,null,null,null,""]
[274,null,"Determine the stack gas flowrate; and","§63.1207(m)(1)(i)(B)Rev. 4/8/2008 FR",null,null,null,null,null,null,null,null,null,null,null,null,null,null,null,null,null,null,null,null,{"$f":"IF(AND(Screening!$AB$19=\"No\",Screening!$AB$20=\"No\",Screening!$AB$21=\"No\",Screening!$AB$22=\"No\"),\"Ex\",\"\")","v":""},null,null,null,null,null,null,{"$f":"IF(AND(Screening!$AB$5=\"Yes\",Screening!$AB$27=\"No\"), \"Ex\",\"\")","v":""},null,null,null,null,null,null,null,null,null,null,null,null,null,null,null,null,""]
[275,null,"Calculate a MTEC for each standard assuming all mercury, semivolatile metals, low volatile metals, or total chlorine (organic and inorganic) from all feedstreams is emitted;","§63.1207(m)(1)(i)(C)Rev. 4/8/2008 FR",null,null,null,null,null,null,null,null,null,null,null,null,null,null,null,null,null,null,null,null,{"$f":"IF(AND(Screening!$AB$19=\"No\",Screening!$AB$20=\"No\",Screening!$AB$21=\"No\",Screening!$AB$22=\"No\"),\"Ex\",\"\")","v":""},null,null,null,null,null,null,{"$f":"IF(AND(Screening!$AB$5=\"Yes\",Screening!$AB$27=\"No\"), \"Ex\",\"\")","v":""},null,null,null,null,null,null,null,null,null,null,null,null,null,null,null,null,""]
[276,null,"To document compliance with this provision, you must:","§63.1207(m)(1)(ii)Rev. 4/8/2008 FR",null,null,null,null,null,null,null,null,null,null,null,null,null,null,null,null,null,null,null,null,{"$f":"IF(AND(Screening!$AB$19=\"No\",Screening!$AB$20=\"No\",Screening!$AB$21=\"No\",Screening!$AB$22=\"No\"),\"Ex\",\"\")","v":""},null,null,null,null,null,null,{"$f":"IF(AND(Screening!$AB$5=\"Yes\",Screening!$AB$27=\"No\"), \"Ex\",\"\")","v":""},null,null,null,null,null,null,null,null,null,null,null,null,null,null,null,null,""]
[277,null,"Monitor and record the feedrate of mercury, semivolatile metals, low volatile metals, and total chlorine and chloride from all feedstreams according to §63.1209(c);","§63.1207(m)(1)(ii)(A)Rev. 4/8/2008 FR",null,null,null,null,null,null,null,null,null,null,null,null,null,null,null,null,null,null,null,null,{"$f":"IF(AND(Screening!$AB$19=\"No\",Screening!$AB$20=\"No\",Screening!$AB$21=\"No\",Screening!$AB$22=\"No\"),\"Ex\",\"\")","v":""},null,null,null,null,null,null,{"$f":"IF(AND(Screening!$AB$5=\"Yes\",Screening!$AB$27=\"No\"), \"Ex\",\"\")","v":""},null,null,null,null,null,null,null,null,null,null,null,null,null,null,null,null,""]
[278,null,"Monitor with a CMS and record in the operating record the gas flowrate (either directly or by monitoring a surrogate parameter that you have correlated to gas flowrate);","§63.1207(m)(1)(ii)(B)Rev. 4/8/2008 FR",null,null,null,null,null,null,null,null,null,null,null,null,null,null,null,null,null,null,null,null,{"$f":"IF(AND(Screening!$AB$19=\"No\",Screening!$AB$20=\"No\",Screening!$AB$21=\"No\",Screening!$AB$22=\"No\"),\"Ex\",\"\")","v":""},null,null,null,null,null,null,{"$f":"IF(AND(Screening!$AB$5=\"Yes\",Screening!$AB$27=\"No\"), \"Ex\",\"\")","v":""},null,null,null,null,null,null,null,null,null,null,null,null,null,null,null,null,""]
[279,null,"Continuously calculate and record in the operating record the MTEC under the procedures of paragraph (m)(1)(i) of this section; and","§63.1207(m)(1)(ii)(C)Rev. 4/8/2008 FR",null,null,null,null,null,null,null,null,null,null,null,null,null,null,null,null,null,null,null,null,{"$f":"IF(AND(Screening!$AB$19=\"No\",Screening!$AB$20=\"No\",Screening!$AB$21=\"No\",Screening!$AB$22=\"No\"),\"Ex\",\"\")","v":""},null,null,null,null,null,null,{"$f":"IF(AND(Screening!$AB$5=\"Yes\",Screening!$AB$27=\"No\"), \"Ex\",\"\")","v":""},null,null,null,null,null,null,null,null,null,null,null,null,null,null,null,null,""]
[280,null,"Interlock the MTEC calculated in paragraph (m)(1)(i)(C) of this section to the AWFCO system to stop hazardous waste burning when the MTEC exceeds the emission standard.","§63.1207(m)(1)(ii)(D)Rev. 4/8/2008 FR",null,null,null,null,null,null,null,null,null,null,null,null,null,null,null,null,null,null,null,null,{"$f":"IF(AND(Screening!$AB$19=\"No\",Screening!$AB$20=\"No\",Screening!$AB$21=\"No\",Screening!$AB$22=\"No\"),\"Ex\",\"\")","v":""},null,null,null,null,null,null,{"$f":"IF(AND(Screening!$AB$5=\"Yes\",Screening!$AB$27=\"No\"), \"Ex\",\"\")","v":""},null,null,null,null,null,null,null,null,null,null,null,null,null,null,null,null,""]
[281,null,"In lieu of the requirement in paragraphs (m)(1)(ii)(C) and (D) of this section, you may:","§63.1207(m)(1)(iii)Rev. 4/8/2008 FR",null,null,null,null,null,null,null,null,null,null,null,null,null,null,null,null,null,null,null,null,{"$f":"IF(AND(Screening!$AB$19=\"No\",Screening!$AB$20=\"No\",Screening!$AB$21=\"No\",Screening!$AB$22=\"No\"),\"Ex\",\"\")","v":""},null,null,null,null,null,null,{"$f":"IF(AND(Screening!$AB$5=\"Yes\",Screening!$AB$27=\"No\"), \"Ex\",\"\")","v":""},null,null,null,null,null,null,null,null,null,null,null,null,null,null,null,null,""]
[282,null,"Identify in the Notification of Compliance a minimum gas flowrate limit and a maximum feedrate limit of mercury, semivolatile metals, low volatile metals, and/or total chlorine and chloride from all feedstreams that ensures the MTEC as calculated in paragraph (m)(1)(i)(C) of this section is below the applicable emission standard; and","§63.1207(m)(1)(iii)(A)Rev. 4/8/2008 FR",null,null,null,null,null,null,null,null,null,null,null,null,null,null,null,null,null,null,null,null,{"$f":"IF(AND(Screening!$AB$19=\"No\",Screening!$AB$20=\"No\",Screening!$AB$21=\"No\",Screening!$AB$22=\"No\"),\"Ex\",\"\")","v":""},null,null,null,null,null,null,{"$f":"IF(AND(Screening!$AB$5=\"Yes\",Screening!$AB$27=\"No\"), \"Ex\",\"\")","v":""},null,null,null,null,null,null,null,null,null,null,null,null,null,null,null,null,""]
[283,null,"Interlock the minimum gas flowrate limit and maximum feedrate limit of paragraph (m)(1)(iii)(A) of this section to the AWFCO system to stop hazardous waste burning when the gas flowrate or mercury, semivolatile metals, low volatile metals, and/or total chlorine and chloride feedrate exceeds the limits of paragraph (m)(1)(iii)(A) of this section.","§63.1207(m)(1)(iii)(B)Rev. 4/8/2008 FR",null,null,null,null,null,null,null,null,null,null,null,null,null,null,null,null,null,null,null,null,{"$f":"IF(AND(Screening!$AB$19=\"No\",Screening!$AB$20=\"No\",Screening!$AB$21=\"No\",Screening!$AB$22=\"No\"),\"Ex\",\"\")","v":""},null,null,null,null,null,null,{"$f":"IF(AND(Screening!$AB$5=\"Yes\",Screening!$AB$27=\"No\"), \"Ex\",\"\")","v":""},null,null,null,null,null,null,null,null,null,null,null,null,null,null,null,null,""]
[284,null,"Emission standards based on hazardous waste thermal concentration. (i) You are deemed to be in compliance with an emission standard specified on a hazardous waste thermal concentration basis (i.e., pounds emitted per million Btu of heat input) if the HAP thermal concentration in the waste feed does not exceed the allowable HAP thermal concentration emission rate.","§63.1207(m)(2)(i)Rev. 4/8/2008 FR",null,null,null,null,null,null,null,null,null,null,null,null,null,null,null,null,null,null,null,null,{"$f":"IF(AND(Screening!$AB$19=\"No\",Screening!$AB$20=\"No\",Screening!$AB$21=\"No\",Screening!$AB$22=\"No\"),\"Ex\",\"\")","v":""},null,null,null,null,null,{"$f":"IF(AND(Screening!$AB$5=\"Yes\",Screening!$AB$26=\"No\"), \"Ex\",\"\")","v":""},null,null,null,null,null,null,null,null,null,null,null,null,null,null,null,null,null,""]
[285,null,"To document compliance with this provision, you must:","§63.1207(m)(2)(ii)Rev. 4/8/2008 FR",null,null,null,null,null,null,null,null,null,null,null,null,null,null,null,null,null,null,null,null,{"$f":"IF(AND(Screening!$AB$19=\"No\",Screening!$AB$20=\"No\",Screening!$AB$21=\"No\",Screening!$AB$22=\"No\"),\"Ex\",\"\")","v":""},null,null,null,null,null,{"$f":"IF(AND(Screening!$AB$5=\"Yes\",Screening!$AB$26=\"No\"), \"Ex\",\"\")","v":""},null,null,null,null,null,null,null,null,null,null,null,null,null,null,null,null,null,""]
[286,null,"Monitor and record the feedrate of mercury, semivolatile metals, low volatile metals, and total chlorine and chloride from all hazardous waste feedstreams in accordance with §63.1209(c);","§63.1207(m)(2)(ii)(A)Rev. 4/8/2008 FR",null,null,null,null,null,null,null,null,null,null,null,null,null,null,null,null,null,null,null,null,{"$f":"IF(AND(Screening!$AB$19=\"No\",Screening!$AB$20=\"No\",Screening!$AB$21=\"No\",Screening!$AB$22=\"No\"),\"Ex\",\"\")","v":""},null,null,null,null,null,{"$f":"IF(AND(Screening!$AB$5=\"Yes\",Screening!$AB$26=\"No\"), \"Ex\",\"\")","v":""},null,null,null,null,null,null,null,null,null,null,null,null,null,null,null,null,null,""]
[287,null,"Determine and record the higher heating value of each hazardous waste feed;","§63.1207(m)(2)(ii)(B)Rev. 4/8/2008 FR",null,null,null,null,null,null,null,null,null,null,null,null,null,null,null,null,null,null,null,null,{"$f":"IF(AND(Screening!$AB$19=\"No\",Screening!$AB$20=\"No\",Screening!$AB$21=\"No\",Screening!$AB$22=\"No\"),\"Ex\",\"\")","v":""},null,null,null,null,null,{"$f":"IF(AND(Screening!$AB$5=\"Yes\",Screening!$AB$26=\"No\"), \"Ex\",\"\")","v":""},null,null,null,null,null,null,null,null,null,null,null,null,null,null,null,null,null,""]
[288,null,"Continuously calculate and record the thermal feed rate of all hazardous waste feedstreams by summing the products of each hazardous waste feed rate multiplied by the higher heating value of that hazardous waste;","§63.1207(m)(2)(ii)(C)Rev. 4/8/2008 FR",null,null,null,null,null,null,null,null,null,null,null,null,null,null,null,null,null,null,null,null,{"$f":"IF(AND(Screening!$AB$19=\"No\",Screening!$AB$20=\"No\",Screening!$AB$21=\"No\",Screening!$AB$22=\"No\"),\"Ex\",\"\")","v":""},null,null,null,null,null,{"$f":"IF(AND(Screening!$AB$5=\"Yes\",Screening!$AB$26=\"No\"), \"Ex\",\"\")","v":""},null,null,null,null,null,null,null,null,null,null,null,null,null,null,null,null,null,""]
[289,null,"Continuously calculate and record the total HAP thermal feed concentration for each constituent by dividing the HAP feedrate determined in paragraph (m)(2)(ii)(A) of this section by the thermal feed rate determined in paragraph (m)(2)(ii)(C) of this section for all hazardous waste feedstreams;","§63.1207(m)(2)(ii)(D)Rev. 4/8/2008 FR",null,null,null,null,null,null,null,null,null,null,null,null,null,null,null,null,null,null,null,null,{"$f":"IF(AND(Screening!$AB$19=\"No\",Screening!$AB$20=\"No\",Screening!$AB$21=\"No\",Screening!$AB$22=\"No\"),\"Ex\",\"\")","v":""},null,null,null,null,null,{"$f":"IF(AND(Screening!$AB$5=\"Yes\",Screening!$AB$26=\"No\"), \"Ex\",\"\")","v":""},null,null,null,null,null,null,null,null,null,null,null,null,null,null,null,null,null,""]
[290,null,"Interlock the HAP thermal feed concentration for each constituent with the AWFCO to stop hazardous waste feed when the thermal feed concentration exceeds the applicable thermal emission standard.","§63.1207(m)(2)(ii)(E)Rev. 4/8/2008 FR",null,null,null,null,null,null,null,null,null,null,null,null,null,null,null,null,null,null,null,null,{"$f":"IF(AND(Screening!$AB$19=\"No\",Screening!$AB$20=\"No\",Screening!$AB$21=\"No\",Screening!$AB$22=\"No\"),\"Ex\",\"\")","v":""},null,null,null,null,null,{"$f":"IF(AND(Screening!$AB$5=\"Yes\",Screening!$AB$26=\"No\"), \"Ex\",\"\")","v":""},null,null,null,null,null,null,null,null,null,null,null,null,null,null,null,null,null,""]
[291,null,"When you determine the feedrate of mercury, semivolatile metals, low volatile metals, or total chlorine and chloride for purposes of this provision, except as provided by paragraph (m)(4) of this section, you must assume that the analyte is present at the full detection limit when the feedstream analysis determines that the analyte in not detected in the feedstream.","§63.1207(m)(3)Rev. 4/8/2008 FR",null,null,null,null,null,null,null,null,null,null,null,null,null,null,null,null,null,null,null,null,{"$f":"IF(AND(Screening!$AB$19=\"No\",Screening!$AB$20=\"No\",Screening!$AB$21=\"No\",Screening!$AB$22=\"No\"),\"Ex\",\"\")","v":""},null,null,null,null,null,{"$f":"IF(AND(Screening!$AB$5=\"Yes\",Screening!$AB$26=\"No\"), \"Ex\",\"\")","v":""},null,null,null,null,null,null,null,null,null,null,null,null,null,null,null,null,null,""]
[292,null,"Owners and operators of hazardous waste burning cement kilns and lightweight aggregate kilns may assume that mercury is present in raw material at half the detection limit when the raw material feedstream analysis determines that mercury is not detected.","§63.1207(m)(4)Rev. 4/8/2008 FR",null,null,null,null,null,null,null,null,null,null,null,null,null,null,null,null,null,null,null,null,{"$f":"IF(AND(Screening!$AB$19=\"No\",Screening!$AB$20=\"No\",Screening!$AB$21=\"No\",Screening!$AB$22=\"No\"),\"Ex\",\"\")","v":""},null,null,null,null,null,null,null,null,null,null,null,null,null,null,null,null,null,null,null,null,null,null,null,""]
[293,null,"You must state in the site-specific test plan that you submit for review and approval under paragraph (e) of this section that you intend to comply with the provisions of this paragraph. You must include in the test plan documentation that any surrogate that is proposed for gas flowrate adequately correlates with the gas flowrate.","§63.1207(m)(5)Rev. 4/8/2008 FR",null,null,null,null,null,null,null,null,null,null,null,null,null,null,null,null,null,null,null,null,{"$f":"IF(AND(Screening!$AB$19=\"No\",Screening!$AB$20=\"No\",Screening!$AB$21=\"No\",Screening!$AB$22=\"No\"),\"Ex\",\"\")","v":""},null,null,null,null,null,null,null,null,null,null,null,null,null,null,null,null,null,null,null,null,null,null,null,""]
[294,"2.B","Data in lieu of the initial comprehensive performance test.","§63.1207(c)(2)",null,null,null,null,null,null,null,null,null,null,null,null,null,null,null,null,null,{"$f":"IF(Screening!$AB$17=\"No\", \"Ex\",\"\")","v":""},null,null,null,null,null,null,null,null,null,null,null,null,null,null,null,null,null,null,null,null,null,null,null,null,null,null,""]
[295,"2.B.1","The source may request that previous emissions test data serve as documentation of conformance with the emission standards of this subpart provided that the previous testing:","§63.1207(c)(2)(i)",null,null,null,null,null,null,null,null,null,null,null,null,null,null,null,null,null,{"$f":"IF(Screening!$AB$17=\"No\", \"Ex\",\"\")","v":""},null,null,null,null,null,null,null,null,null,null,null,null,null,null,null,null,null,null,null,null,null,null,null,null,null,null,""]
[296,"2.B.1.a","Was initiated after 54 months prior to the compliance date, except as provided by §§63.1207(c)(2)(iii) or (c)(2)(iv) below;","§63.1207(c)(2)(i)(A)",null,null,null,null,null,null,null,null,null,null,null,null,null,null,null,null,null,{"$f":"IF(Screening!$AB$17=\"No\", \"Ex\",\"\")","v":""},null,null,null,null,null,null,null,null,null,null,null,null,null,null,null,null,null,null,null,null,null,null,null,null,null,null,""]
[297,"2.B.1.b","Results in data that meet quality assurance objectives (determined on a site-specific basis) such that the results demonstrate compliance with the applicable standards;","§63.1207(c)(2)(i)(B)",null,null,null,null,null,null,null,null,null,null,null,null,null,null,null,null,null,{"$f":"IF(Screening!$AB$17=\"No\", \"Ex\",\"\")","v":""},null,null,null,null,null,null,null,null,null,null,null,null,null,null,null,null,null,null,null,null,null,null,null,null,null,null,""]
[298,"2.B.1.c","Was in conformance with the requirements of §63.1207(g)(1); and","§63.1207(c)(2)(i)(C)",null,null,null,null,null,null,null,null,null,null,null,null,null,null,null,null,null,{"$f":"IF(Screening!$AB$17=\"No\", \"Ex\",\"\")","v":""},null,null,null,null,null,null,null,null,null,null,null,null,null,null,null,null,null,null,null,null,null,null,null,null,null,null,""]
[299,"2.B.1.d","Was sufficient to establish the applicable operating parameter limits under §63.1209.","§63.1207(c)(2)(i)(D)",null,null,null,null,null,null,null,null,null,null,null,null,null,null,null,null,null,{"$f":"IF(Screening!$AB$17=\"No\", \"Ex\",\"\")","v":""},null,null,null,null,null,null,null,null,null,null,null,null,null,null,null,null,null,null,null,null,null,null,null,null,null,null,""]
[300,"2.B.2","The source must submit data in lieu of the initial comprehensive performance test in lieu of (i.e., if the data are in lieu of all performance testing) or with the notification of performance test required under §63.1207(e).","§63.1207(c)(2)(ii)",null,null,null,null,null,null,null,null,null,null,null,null,null,null,null,null,null,{"$f":"IF(Screening!$AB$17=\"No\", \"Ex\",\"\")","v":""},null,null,null,null,null,null,null,null,null,null,null,null,null,null,null,null,null,null,null,null,null,null,null,null,null,null,""]
[301,"2.B.3","The source’s date in lieu of test age restriction provided in §63.1207(c)(2)(i)(A) does not apply for the duration of the interim standards, and will not apply until EPA promulgates permanent replacement standards.","§63.1207 (c)(2)(iii)",null,null,null,null,null,null,null,null,null,null,null,null,null,null,null,null,null,{"$f":"IF(Screening!$AB$17=\"No\", \"Ex\",\"\")","v":""},null,null,null,null,null,null,null,null,null,null,null,null,null,null,null,null,null,null,null,null,null,null,null,null,null,null,""]
[302,"2.B.4","The source’s data in lieu test age restriction provided in §63.1207(c)(2)(i)(A) does not apply to DRE data provided the source does not feed hazardous waste at a location in the combustion system other than the normal flame zone.","§63.1207(c)(2)(iv)",null,null,null,null,null,null,null,null,null,null,null,null,null,null,null,null,null,{"$f":"IF(Screening!$AB$17=\"No\", \"Ex\",\"\")","v":""},null,null,null,null,null,null,null,null,null,null,null,null,null,null,null,null,null,null,null,null,null,null,null,null,null,null,""]
[303,"2.C","Petitions to use CEMS for other standards. The source may petition the Administrator to use CEMS for compliance monitoring for particulate matter, mercury, semivolatile metals, low volatile metals, and hydrochloric acid/chlorine gas under §63.8(f) in lieu of compliance with the corresponding operating parameter limits under §63.1209.","§63.1209(a)(5)",null,null,null,null,null,null,null,null,null,null,null,null,null,null,null,null,null,null,null,null,null,null,null,null,null,null,null,null,null,null,null,null,null,null,null,null,null,null,null,null,null,null,null,null,""]
[304,"2.D","Alternative monitoring requirements other than continuous emissions monitoring systems (CEMS).","§63.1209(g)",null,null,null,null,null,null,null,null,null,null,null,null,null,null,null,null,null,null,null,null,null,null,null,null,null,null,null,null,null,null,null,null,null,null,null,null,null,null,null,null,null,null,null,null,""]
[305,"2.D.1","Requests to use alternative methods","§63.1209(g)(1)",null,null,null,null,null,null,null,null,null,null,null,null,null,null,null,null,null,null,null,null,null,null,null,{"$f":"IF(Screening!$AB$23=\"No\", \"Ex\",\"\")","v":""},null,null,null,null,null,null,null,null,null,null,null,null,null,null,null,null,null,null,null,null,""]
[306,"2.D.1.a","The source may submit an application to the Administrator under this paragraph for approval of alternative monitoring requirements to document compliance with the emission standards of this subpart. For requests to use additional CEMS, however, the source must use §§63.1209(a)(5) and 63.8(f). Under §63.1209(g)(1)(i)(A) the Administrator will not approve averaging periods for operating parameter limits longer than specified in this section unless the source documents using data or information that the longer averaging period will ensure that emissions do not exceed levels achieved during the comprehensive performance test over any increment of time equivalent to the time required to conduct three runs of the performance test.\nNote to 2.D.1.a: Under §63.1209(g)(1)(i)(B), if the Administrator approves the application to use an alternative monitoring requirement, the source must continue to use that alternative monitoring requirement until it receives approval under this paragraph to use another monitoring requirement.","§63.1209(g)(1)(i)",null,null,null,null,null,null,null,null,null,null,null,null,null,null,null,null,null,null,null,null,null,null,null,{"$f":"IF(Screening!$AB$23=\"No\", \"Ex\",\"\")","v":""},null,null,null,null,null,null,null,null,null,null,null,null,null,null,null,null,null,null,null,null,""]
[307,"2.D.1.b","The source may submit an application to waive an operating parameter limit specified in this section based on documentation that neither that operating parameter limit nor an alternative operating parameter limit is needed to ensure compliance with the emission standards of this subpart.","§63.1209(g)(1)(ii)",null,null,null,null,null,null,null,null,null,null,null,null,null,null,null,null,null,null,null,null,null,null,null,{"$f":"IF(Screening!$AB$23=\"No\", \"Ex\",\"\")","v":""},null,null,null,null,null,null,null,null,null,null,null,null,null,null,null,null,null,null,null,null,""]
[308,"2.D.1.c","The source must comply with the following procedures for applications submitted under §§63.1209(g)(1)(i) and (ii) of this section:","§63.1209(g)(1)(iii)",null,null,null,null,null,null,null,null,null,null,null,null,null,null,null,null,null,null,null,null,null,null,null,{"$f":"IF(Screening!$AB$23=\"No\", \"Ex\",\"\")","v":""},null,null,null,null,null,null,null,null,null,null,null,null,null,null,null,null,null,null,null,null,""]
[309,"2.D.1.c.1","Timing of the application. The source must submit the application to the Administrator not later than with the comprehensive performance test plan.","§63.1209(g)(1)(iii)(A)",null,null,null,null,null,null,null,null,null,null,null,null,null,null,null,null,null,null,null,null,null,null,null,{"$f":"IF(Screening!$AB$23=\"No\", \"Ex\",\"\")","v":""},null,null,null,null,null,null,null,null,null,null,null,null,null,null,null,null,null,null,null,null,""]
[310,"2.D.1.c.2","Content of the application. The source must include in the application:","§63.1209(g)(1)(iii)(B)",null,null,null,null,null,null,null,null,null,null,null,null,null,null,null,null,null,null,null,null,null,null,null,{"$f":"IF(Screening!$AB$23=\"No\", \"Ex\",\"\")","v":""},null,null,null,null,null,null,null,null,null,null,null,null,null,null,null,null,null,null,null,null,""]
[311,"2.D.1.c.2.a","Data or information justifying the source’s request for an alternative monitoring requirement (or for a waiver of an operating parameter limit), such as the technical or economic infeasibility or the impracticality of using the required approach;","§63.1209(g)(1)(iii)(B)(1)",null,null,null,null,null,null,null,null,null,null,null,null,null,null,null,null,null,null,null,null,null,null,null,{"$f":"IF(Screening!$AB$23=\"No\", \"Ex\",\"\")","v":""},null,null,null,null,null,null,null,null,null,null,null,null,null,null,null,null,null,null,null,null,""]
[312,"2.D.1.c.2.b","A description of the proposed alternative monitoring requirement, including the operating parameter to be monitored, the monitoring approach/technique (e.g., type of detector, monitoring location), the averaging period for the limit, and how the limit is to be calculated; and ","§63.1209(g)(1)(iii)(B)(2)",null,null,null,null,null,null,null,null,null,null,null,null,null,null,null,null,null,null,null,null,null,null,null,{"$f":"IF(Screening!$AB$23=\"No\", \"Ex\",\"\")","v":""},null,null,null,null,null,null,null,null,null,null,null,null,null,null,null,null,null,null,null,null,""]
[313,"2.D.1.c.2.c","Data or information documenting that the alternative monitoring requirement would provide equivalent or better assurance of compliance with the relevant emission standard, or that it is the monitoring requirement that best assures compliance with the standard and that is technically and economically practicable","§63.1209(g)(1)(iii)(B)(3)",null,null,null,null,null,null,null,null,null,null,null,null,null,null,null,null,null,null,null,null,null,null,null,{"$f":"IF(Screening!$AB$23=\"No\", \"Ex\",\"\")","v":""},null,null,null,null,null,null,null,null,null,null,null,null,null,null,null,null,null,null,null,null,""]
[314,"2.D.1.c.3","Approval of request to use an alternative monitoring requirement or waive an operating parameter limit. The Administrator will notify the source of approval or intention to deny approval of the request within 90 calendar days after receipt of the original request and within 60 calendar days after receipt of any supplementary information that the source submits. The Administrator will not approve an alternative monitoring request unless the alternative monitoring requirement provides equivalent or better assurance of compliance with the relevant emission standard, or is the monitoring requirement that best assures compliance with the standard and that is technically and economically practicable.\nNote to 2.D.1.c.3: Before disapproving any request, the Administrator will notify the source of the Administrator’s intention to disapprove the request together with: (1) Notice of the information and findings on which the intended disapproval is based; and (2) Notice of opportunity for the source to present additional information to the Administrator before final action on the request. At the time the Administrator notifies the source of intention to disapprove the request, the Administrator will specify how much time the source will have after being notified of the intended disapproval to submit the additional information. Under §63.1209(g)(1)(iii)(D), the source is responsible for ensuring that it submits any supplementary and additional information supporting the application in a timely manner to enable the Administrator to consider the application during review of the comprehensive performance test plan. Neither the source’s submittal of an application, nor the Administrator’s failure to approve or disapprove the application, relieves the source of the responsibility to comply with the provisions of this subpart.","§63.1209(g)(1)(iii)(C)",null,null,null,null,null,null,null,null,null,null,null,null,null,null,null,null,null,null,null,null,null,null,null,null,{"$f":"IF(Screening!$AB$24=\"No\", \"Ex\",\"\")","v":""},null,null,null,null,null,null,null,null,null,null,null,null,null,null,null,null,null,null,null,""]
[315,"2.E","Alternative standards for existing or new hazardous waste burning lightweight aggregate kilns using MACT","§63.1206(b)(9)",null,null,null,null,null,null,null,null,null,{"$f":"IF(Screening!$AB$9=\"No\", \"Ex\",\"\")","v":""},null,null,null,null,null,null,null,null,null,null,null,null,null,null,null,null,null,null,null,null,null,null,null,null,null,null,null,null,null,null,null,null,null,null,""]
[316,"2.E.1","The source may petition the Administrator to recommend alternative semivolatile metal, low volatile metal, mercury, or hydrochloric acid/chlorine gas emission standards if:Note to 2.E.1: Under §63.1206(b)(9)(vii), the source must not operate pursuant to its recommended alternative standards in lieu of emission standards specified in §§63.1205(a) and (b) unless the Administrator approves the provisions of the alternative standard petition request or establishes other alternative standards; and until the source submits a revised Notification of  Compliance that incorporates the revised standards.","§63.1206(b)(9)(i)",null,null,null,null,null,null,null,null,null,{"$f":"IF(Screening!$AB$9=\"No\", \"Ex\",\"\")","v":""},null,null,null,null,null,null,null,null,null,null,null,null,null,null,null,null,null,null,null,null,null,null,null,null,null,null,null,null,null,null,null,null,null,null,""]
[317,"2.E.1.a","The source cannot achieve one or more of these standards while using maximum achievable control technology (MACT) because of the raw material contribution to emissions of the regulated metals or hydrochloric acid/chlorine gas; or","§63.1206(b)(9)(i)(A)",null,null,null,null,null,null,null,null,null,{"$f":"IF(Screening!$AB$9=\"No\", \"Ex\",\"\")","v":""},null,null,null,null,null,null,null,null,null,null,null,null,null,null,null,null,null,null,null,null,null,null,null,null,null,null,null,null,null,null,null,null,null,null,""]
[318,"2.E.1.b","The source determines that mercury is not present at detectable levels in the raw material.","§63.1206(b)(9)(i)(B)",null,null,null,null,null,null,null,null,null,{"$f":"IF(Screening!$AB$9=\"No\", \"Ex\",\"\")","v":""},null,null,null,null,null,null,null,null,null,null,null,null,null,null,null,null,null,null,null,null,null,null,null,null,null,null,null,null,null,null,null,null,null,null,""]
[319,"2.E.2","The alternative standard that the source recommends under §63.1206 (b)(9)(i)(A) of this section may be an operating requirement, such as a hazardous waste federate limitation for metals and/or chlorine, and/or an emission limitation.","§63.1206(b)(9)(ii)",null,null,null,null,null,null,null,null,null,{"$f":"IF(Screening!$AB$9=\"No\", \"Ex\",\"\")","v":""},null,null,null,null,null,null,null,null,null,null,null,null,null,null,null,null,null,null,null,null,null,null,null,null,null,null,null,null,null,null,null,null,null,null,""]
[320,"2.E.3","The alternative standard must include a requirement to use MACT, or better, applicable to the standard for which the source is seeking relief, as defined in §63.1206(b)(9)(viii) and (ix) of this section.","§63.1206(b)(9)(iii)",null,null,null,null,null,null,null,null,null,{"$f":"IF(Screening!$AB$9=\"No\", \"Ex\",\"\")","v":""},null,null,null,null,null,null,null,null,null,null,null,null,null,null,null,null,null,null,null,null,null,null,null,null,null,null,null,null,null,null,null,null,null,null,""]
[321,"2.E.4","Documentation required.","§63.1206(b)(9)(iv)",null,null,null,null,null,null,null,null,null,{"$f":"IF(Screening!$AB$9=\"No\", \"Ex\",\"\")","v":""},null,null,null,null,null,null,null,null,null,null,null,null,null,null,null,null,null,null,null,null,null,null,null,null,null,null,null,null,null,null,null,null,null,null,{"$f":"IF(OR(I322=\"Ex\",J322=\"Ex\",K322=\"Ex\",L322=\"Ex\",M322=\"Ex\",N322=\"Ex\",O322=\"Ex\",P322=\"Ex\",Q322=\"Ex\",R322=\"Ex\",S322=\"Ex\",T322=\"Ex\",U322=\"Ex\",V322=\"Ex\",W322=\"Ex\",X322=\"Ex\",Y322=\"Ex\",Z322=\"Ex\",AA322=\"Ex\",AB322=\"Ex\",AC322=\"Ex\",AD322=\"Ex\",AE322=\"Ex\",AF322=\"Ex\",AG322=\"Ex\",AH322=\"Ex\",AI322=\"Ex\",AJ322=\"Ex\",AK322=\"Ex\",AL322=\"Ex\",AM322=\"Ex\",AN322=\"Ex\",AO322=\"Ex\",AP322=\"Ex\",AQ322=\"Ex\",AR322=\"Ex\",AS322=\"Ex\",AT322=\"Ex\",AU322=\"Ex\",AV322=\"Ex\"), \"Ex\",\"\")","v":""}]
[322,"2.E.4.a","The alternative standard petition the source submits under §63.1206(b)(9)(i)(A) must include data or information documenting that raw material contributions to emissions of the regulated metals or hydrochloric acid/chlorine gas prevent the source from complying with the emission standard even though it is using MACT, as defined in §§63.1206(b)(9)(viii) and (ix), for the standard for which the source is seeking relief.","§63.1206(b)(9)(iv)(A)",null,null,null,null,null,null,null,null,null,{"$f":"IF(Screening!$AB$9=\"No\", \"Ex\",\"\")","v":""},null,null,null,null,null,null,null,null,null,null,null,null,null,null,null,null,null,null,null,null,null,null,null,null,null,null,null,null,null,null,null,null,null,null,""]
[323,"2.E.4.b","Alternative standard petitions that the source submits under §63.1206(b)(9)(i)(B) must include data or information documenting that mercury is not present at detectable levels in raw materials.","§63.1206(b)(9)(iv)(B)",null,null,null,null,null,null,null,null,null,{"$f":"IF(Screening!$AB$9=\"No\", \"Ex\",\"\")","v":""},null,null,null,null,null,null,null,null,null,null,null,null,null,null,null,null,null,null,null,null,null,null,null,null,null,null,null,null,null,null,null,null,null,null,""]
[324,"2.E.5","The source must include data or information with semivolatile metal and low volatility metal alternative standard petitions that the source submits under §63.1206(b)(9)(i)(A) documenting that increased chlorine feedrates associated with the burning of hazardous waste, when compared to non-hazardous waste operations, do not significantly increase metal emissions attributable to raw materials.","§63.1206(b)(9)(v)",null,null,null,null,null,null,null,null,null,{"$f":"IF(Screening!$AB$9=\"No\", \"Ex\",\"\")","v":""},null,null,null,null,null,null,null,null,null,null,null,null,null,null,null,null,null,null,null,null,null,null,null,null,null,null,null,null,null,null,null,null,null,null,""]
[325,"2.E.6","The source must include data or information with semivolatile metal, low volatile metal, and hydrochloric acid/chlorine gas alternative standard petitions that the source submits under §63.1206(b)(9)(i)(A) documenting that semivolatile metal, low volatile metal, and hydrochloric acid/chlorine gas emissions attributable to the hazardous waste only will not exceed the emission standards in §§63.1205(a) and (b).Note:  §63.1206(b)(9)(vii) requires the source to not operate pursuant to the recommended alternative standards in lieu of emission standards specified in this subpart:  (A) Unless the Administrator approves the provisions of the alternative standard petition request or establishes other alternative standards; and (B) Until the source submits a revised Notification of Compliance that incorporates the revised standards.","§63.1206(b)(9)(vi)",null,null,null,null,null,null,null,null,null,{"$f":"IF(Screening!$AB$9=\"No\", \"Ex\",\"\")","v":""},null,null,null,null,null,null,null,null,null,null,null,null,null,null,null,null,null,null,null,null,null,null,null,null,null,null,null,null,null,null,null,null,null,null,""]
[326,"2.E.7","For purposes of this alternative standard provision, MACT for existing hazardous waste burning lightweight aggregate kilns is defined as:","§63.1206(b)(9)(viii)",null,null,null,null,null,null,null,null,null,{"$f":"IF(Screening!$AB$9=\"No\", \"Ex\",\"\")","v":""},null,null,null,null,null,null,null,null,null,null,null,null,null,null,null,null,null,null,null,null,null,null,null,null,null,null,null,null,null,null,null,null,null,null,""]
[327,"2.E.7.a","For mercury, a hazardous waste feedrate corresponding to an MTEC of 24 ug/dscm or less;","§63.1206(b)(9)(viii)(A)",null,null,null,null,null,null,null,null,null,{"$f":"IF(Screening!$AB$9=\"No\", \"Ex\",\"\")","v":""},null,null,null,null,null,null,null,null,null,null,null,null,null,null,null,null,null,null,null,null,null,null,null,null,null,null,null,null,null,null,null,null,null,null,""]
[328,"2.E.7.b","For semivolatile metals, a hazardous waste federate corresponding to an MTEC of 280,000 ug/dscm or less, and use of a particulate matter control device that achieves particulate matter emissions of 57 mg/dscm or less","§63.1206(b)(9)(viii)(B)",null,null,null,null,null,null,null,null,null,{"$f":"IF(Screening!$AB$9=\"No\", \"Ex\",\"\")","v":""},null,null,null,null,null,null,null,null,null,null,null,null,null,null,null,null,null,null,null,null,null,null,null,null,null,null,null,null,null,null,null,null,null,null,""]
[329,"2.E.7.c","For low volatile metals, a hazardous waste feedrate corresponding to an MTEC of 120,000 ug/dscm or less, and use of a particulate matter control device that achieves particulate matter emissions of 57 mg/dscm or less; and ","§63.1206(b)(9)(viii)(C)",null,null,null,null,null,null,null,null,null,{"$f":"IF(Screening!$AB$9=\"No\", \"Ex\",\"\")","v":""},null,null,null,null,null,null,null,null,null,null,null,null,null,null,null,null,null,null,null,null,null,null,null,null,null,null,null,null,null,null,null,null,null,null,""]
[330,"2.E.7.d","For hydrochloric acid/chlorine gas, a hazardous waste chlorine feedrate corresponding to an MTEC of 2,000,000 ug/dscm or less, and use of an air pollution control device with a hydrochloric acid/chlorine gas removal efficiency of 85 percent or greater.","§63.1206(b)(9)(viii)(D)",null,null,null,null,null,null,null,null,null,{"$f":"IF(Screening!$AB$9=\"No\", \"Ex\",\"\")","v":""},null,null,null,null,null,null,null,null,null,null,null,null,null,null,null,null,null,null,null,null,null,null,null,null,null,null,null,null,null,null,null,null,null,null,""]
[331,"2.E.8","For purposes of this alternative standard provision, MACT for new hazardous waste burning lightweight aggregate kilns is defined as:","§63.1206(b)(9)(ix)",null,null,null,null,null,null,null,null,null,{"$f":"IF(Screening!$AB$9=\"No\", \"Ex\",\"\")","v":""},null,null,null,null,null,null,null,null,null,null,null,null,null,null,null,null,null,null,null,null,null,null,null,null,null,null,null,null,null,null,null,null,null,null,""]
[332,"2.E.8.a","For mercury, a hazardous waste feedrate corresponding to an MTEC of 4 ug/dscm or less;","§63.1206(b)(9)(ix)(A)",null,null,null,null,null,null,null,null,null,{"$f":"IF(Screening!$AB$9=\"No\", \"Ex\",\"\")","v":""},null,null,null,null,null,null,null,null,null,null,null,null,null,null,null,null,null,null,null,null,null,null,null,null,null,null,null,null,null,null,null,null,null,null,""]
[333,"2.E.8.b","For semivolatile metals, a hazardous waste federate corresponding to an MTEC of 280,000 ug/dscm or less, and use of a particulate matter control device that achieves particulate matter emissions of 57 mg/dscm or less;","§63.1206(b)(9)(ix)(B)",null,null,null,null,null,null,null,null,null,{"$f":"IF(Screening!$AB$9=\"No\", \"Ex\",\"\")","v":""},null,null,null,null,null,null,null,null,null,null,null,null,null,null,null,null,null,null,null,null,null,null,null,null,null,null,null,null,null,null,null,null,null,null,""]
[334,"2.E.8.c","For low volatile metals, a hazardous waste federate corresponding to an MTEC of 46,000 ug/dscm or less, and use of a particulate matter control device that achieves particulate matter emissions of 57 mg/dscm or less;","§63.1206(b)(9)(ix)(C)",null,null,null,null,null,null,null,null,null,{"$f":"IF(Screening!$AB$9=\"No\", \"Ex\",\"\")","v":""},null,null,null,null,null,null,null,null,null,null,null,null,null,null,null,null,null,null,null,null,null,null,null,null,null,null,null,null,null,null,null,null,null,null,""]
[335,"2.E.8.d","For hydrochloric acid/chlorine gas, a hazardous waste chlorine feedrate corresponding to an MTEC of 14,000,000 ug/dscm or less, and use of a wet scrubber with a hydrochloric acid/chlorine gas removal efficiency of 99.6 percent or greater.","§63.1206(b)(9)(ix)(D)",null,null,null,null,null,null,null,null,null,{"$f":"IF(Screening!$AB$9=\"No\", \"Ex\",\"\")","v":""},null,null,null,null,null,null,null,null,null,null,null,null,null,null,null,null,null,null,null,null,null,null,null,null,null,null,null,null,null,null,null,null,null,null,""]
[336,"2.F","Alternative standards for existing or new hazardous waste burning cement kilns using MACT","§63.1206(b)(10)",null,null,null,null,null,null,null,null,{"$f":"IF(Screening!$AB$8=\"No\", \"Ex\",\"\")","v":""},null,null,null,null,null,null,null,null,null,null,null,null,null,null,null,null,null,null,null,null,null,null,null,null,null,null,null,null,null,null,null,null,null,null,null,""]
[337,"2.F.1","The source may petition the Administrator to recommend alternative semivolatile, low volatile metal, mercury, and/or hydrochloric acid/chlorine gas emission standards if:\nNote to 2.F.1 §63.1206(b)(10)(vii) The source must not operate pursuant to its recommended alternative standards in lieu of emission standards specified in §§63.1204(a) and (b) unless the Administrator approves the provisions of the alternative standard petition request or establishes other alternative standards; and until the source submits a revised Notification of Compliance that incorporates the revised standards.","§63.1206(b)(10)(i)",null,null,null,null,null,null,null,null,{"$f":"IF(Screening!$AB$8=\"No\", \"Ex\",\"\")","v":""},null,null,null,null,null,null,null,null,null,null,null,null,null,null,null,null,null,null,null,null,null,null,null,null,null,null,null,null,null,null,null,null,null,null,null,""]
[338,"2.F.1.a","The source cannot achieve one or more of these standards while using maximum achievable control technology (MACT) because of raw material contributions to emissions of the regulated metals or hydrochloric acid/chlorine gas; or","§63.1206(b)(10)(i)(A)",null,null,null,null,null,null,null,null,{"$f":"IF(Screening!$AB$8=\"No\", \"Ex\",\"\")","v":""},null,null,null,null,null,null,null,null,null,null,null,null,null,null,null,null,null,null,null,null,null,null,null,null,null,null,null,null,null,null,null,null,null,null,null,""]
[339,"2.F.1.b","The source determines that mercury is not present at detectable levels in its raw material.","§63.1206(b)(10)(i)(B)",null,null,null,null,null,null,null,null,{"$f":"IF(Screening!$AB$8=\"No\", \"Ex\",\"\")","v":""},null,null,null,null,null,null,null,null,null,null,null,null,null,null,null,null,null,null,null,null,null,null,null,null,null,null,null,null,null,null,null,null,null,null,null,""]
[340,"2.F.2","The alternative standard that the source recommends under §63.1206(b)(10)(i)(A) may be an operating requirement, such as a hazardous waste federate limitation for metals and/or chlorine, and/or an emission limitation.","§63.1206(b)(10)(ii)",null,null,null,null,null,null,null,null,{"$f":"IF(Screening!$AB$8=\"No\", \"Ex\",\"\")","v":""},null,null,null,null,null,null,null,null,null,null,null,null,null,null,null,null,null,null,null,null,null,null,null,null,null,null,null,null,null,null,null,null,null,null,null,""]
[341,"2.F.3","The alternative standard must include a requirement to use MACT, or better, applicable to the standard for which the source is seeking relief, as defined in §63.1206(b)(10)(viii) and (ix).","§63.1206(b)(10)(iii)",null,null,null,null,null,null,null,null,{"$f":"IF(Screening!$AB$8=\"No\", \"Ex\",\"\")","v":""},null,null,null,null,null,null,null,null,null,null,null,null,null,null,null,null,null,null,null,null,null,null,null,null,null,null,null,null,null,null,null,null,null,null,null,""]
[342,"2.F.4","Documentation required.","§63.1206(b)(10)(iv)",null,null,null,null,null,null,null,null,{"$f":"IF(Screening!$AB$8=\"No\", \"Ex\",\"\")","v":""},null,null,null,null,null,null,null,null,null,null,null,null,null,null,null,null,null,null,null,null,null,null,null,null,null,null,null,null,null,null,null,null,null,null,null,""]
[343,"2.F.4.a","The alternative standard petition the source submits under §63.1206(b)(10)(i)(A) must include data or information documenting that raw material contributions to emissions prevent the source from complying with the emission standard even though it is using MACT, as defined in §§63.1206(b)(10)(viii) and (ix), for the standard for which it is seeking relief.","§63.1206(b)(10)(iv)(A)",null,null,null,null,null,null,null,null,{"$f":"IF(Screening!$AB$8=\"No\", \"Ex\",\"\")","v":""},null,null,null,null,null,null,null,null,null,null,null,null,null,null,null,null,null,null,null,null,null,null,null,null,null,null,null,null,null,null,null,null,null,null,null,""]
[344,"2.F.4.b","Alternative standard petitions that the source submits under §63.1206(b)(10)(i)(B) must include data or information documenting that mercury is not present at detectable levels in raw materials.","§63.1206(b)(10)(iv)(B)",null,null,null,null,null,null,null,null,{"$f":"IF(Screening!$AB$8=\"No\", \"Ex\",\"\")","v":""},null,null,null,null,null,null,null,null,null,null,null,null,null,null,null,null,null,null,null,null,null,null,null,null,null,null,null,null,null,null,null,null,null,null,null,""]
[345,"2.F.5","The source must include data or information with semivolatile metal and low volatile metal alternative standard petitions that the source submits under §63.1206(b)(10)(i)(A) documenting that increased chlorine feedrates associated with the burning of hazardous waste, when compared to non-hazardous waste operations, do not significantly increase metal emissions attributable to raw materials. ","§63.1206(b)(10)(v)",null,null,null,null,null,null,null,null,{"$f":"IF(Screening!$AB$8=\"No\", \"Ex\",\"\")","v":""},null,null,null,null,null,null,null,null,null,null,null,null,null,null,null,null,null,null,null,null,null,null,null,null,null,null,null,null,null,null,null,null,null,null,null,""]
[346,"2.F.6","The source must include data or information with semivolatile metal, low volatile metal, and hydrochloric acid/chlorine gas alternative standard petitions that the source submits under §63.1206 (b)(10)(i)(A) of this section documenting that emissions of the regulated metals and hydrochloric acid/chlorine gas attributable to the hazardous waste only will not exceed the emission standards in §§63.1204(a) and (b).","§63.1206(b)(10)(vi)",null,null,null,null,null,null,null,null,{"$f":"IF(Screening!$AB$8=\"No\", \"Ex\",\"\")","v":""},null,null,null,null,null,null,null,null,null,null,null,null,null,null,null,null,null,null,null,null,null,null,null,null,null,null,null,null,null,null,null,null,null,null,null,""]
[347,"2.F.7","For purposes of this alternative standard provision, MACT for existing hazardous waste burning cement kilns is defined as:","§63.1206(b)(10)(viii)",null,null,null,null,null,null,null,null,{"$f":"IF(Screening!$AB$8=\"No\", \"Ex\",\"\")","v":""},null,null,null,null,null,null,null,null,null,null,null,null,null,null,null,null,null,null,null,null,null,null,null,null,null,null,null,null,null,null,null,null,null,null,null,""]
[348,"2.F.7.a","For mercury, a hazardous waste feedrate corresponding to an MTEC of 88 ug/dscm or less;","§63.1206(b)(10)(viii)(A)",null,null,null,null,null,null,null,null,{"$f":"IF(Screening!$AB$8=\"No\", \"Ex\",\"\")","v":""},null,null,null,null,null,null,null,null,null,null,null,null,null,null,null,null,null,null,null,null,null,null,null,null,null,null,null,null,null,null,null,null,null,null,null,""]
[349,"2.F.7.b","For semivolatile metals, a hazardous waste federate corresponding to an MTEC of 31,000 ug/dscm or less, and use of a particulate matter control device that achieves particulate matter emissions of 0.15 kg/Mg dry feed or less;","§63.1206(b)(10)(viii)(B)",null,null,null,null,null,null,null,null,{"$f":"IF(Screening!$AB$8=\"No\", \"Ex\",\"\")","v":""},null,null,null,null,null,null,null,null,null,null,null,null,null,null,null,null,null,null,null,null,null,null,null,null,null,null,null,null,null,null,null,null,null,null,null,""]
[350,"2.F.7.c","For low volatile metals, a hazardous waste federate corresponding to an MTEC of 54,000 ug/dscm or less, and use of a particulate matter control device that achieves particulate matter emissions of 0.15 kg/Mg dry feed or less; and","§63.1206(b)(10)(viii)(C)",null,null,null,null,null,null,null,null,{"$f":"IF(Screening!$AB$8=\"No\", \"Ex\",\"\")","v":""},null,null,null,null,null,null,null,null,null,null,null,null,null,null,null,null,null,null,null,null,null,null,null,null,null,null,null,null,null,null,null,null,null,null,null,""]
[351,"2.F.7.d","For hydrochloric acid/chlorine gas, a hazardous waste chlorine feedrate corresponding to an MTEC of 720,000 ug/dscm or less.","§63.1206(b)(10)(viii)(D)",null,null,null,null,null,null,null,null,{"$f":"IF(Screening!$AB$8=\"No\", \"Ex\",\"\")","v":""},null,null,null,null,null,null,null,null,null,null,null,null,null,null,null,null,null,null,null,null,null,null,null,null,null,null,null,null,null,null,null,null,null,null,null,""]
[352,"2.F.8","For purposes of this alternative standard provision, MACT for new hazardous waste burning cement kilns is defined as: ","§63.1206(b)(10)(ix)",null,null,null,null,null,null,null,null,{"$f":"IF(Screening!$AB$8=\"No\", \"Ex\",\"\")","v":""},null,null,null,null,null,null,null,null,null,null,null,null,null,null,null,null,null,null,null,null,null,null,null,null,null,null,null,null,null,null,null,null,null,null,null,""]
[353,"2.F.8.a","For mercury, a hazardous waste feedrate corresponding to an MTEC of 7 ug/dscm or less;","§63.1206(b)(10)(ix)(A)",null,null,null,null,null,null,null,null,{"$f":"IF(Screening!$AB$8=\"No\", \"Ex\",\"\")","v":""},null,null,null,null,null,null,null,null,null,null,null,null,null,null,null,null,null,null,null,null,null,null,null,null,null,null,null,null,null,null,null,null,null,null,null,""]
[354,"2.F.8.b","For semivolatile metals, a hazardous waste federate corresponding to an MTEC of 31,000 ug/dscm or less, and use of a particulate matter control device that achieves particulate matter emissions of 0.15 kg/Mg dry feed or less;","§63.1206(b)(10)(ix)(B)",null,null,null,null,null,null,null,null,{"$f":"IF(Screening!$AB$8=\"No\", \"Ex\",\"\")","v":""},null,null,null,null,null,null,null,null,null,null,null,null,null,null,null,null,null,null,null,null,null,null,null,null,null,null,null,null,null,null,null,null,null,null,null,""]
[355,"2.F.8.c","For low volatile metals, a hazardous waste federate corresponding to an MTEC of 15,000 ug/dscm or less, and use of a particulate matter control device that achieves particulate matter emissions of 0.15 kg/Mg dry feed or less;","§63.1206(b)(10)(ix)(C)",null,null,null,null,null,null,null,null,{"$f":"IF(Screening!$AB$8=\"No\", \"Ex\",\"\")","v":""},null,null,null,null,null,null,null,null,null,null,null,null,null,null,null,null,null,null,null,null,null,null,null,null,null,null,null,null,null,null,null,null,null,null,null,""]
[356,"2.F.8.d","For hydrochloric acid/chlorine gas, a hazardous waste chlorine feedrate corresponding to an MTEC of 420,000 ug/dscm or less.","§63.1206(b)(10)(ix)(D)",null,null,null,null,null,null,null,null,{"$f":"IF(Screening!$AB$8=\"No\", \"Ex\",\"\")","v":""},null,null,null,null,null,null,null,null,null,null,null,null,null,null,null,null,null,null,null,null,null,null,null,null,null,null,null,null,null,null,null,null,null,null,null,""]
[357,"2.G","Alternative to the particulate matter standard for incinerators.","§63.1206(b)(14)",null,null,null,"See 09/27/07 FR for Proposed Changes  (“Brick MACT” decision) ",{"$f":"IF(Screening!$AB$4=\"No\", \"Ex\",\"\")","v":""},null,null,null,null,null,null,null,null,null,null,null,null,null,null,null,null,null,null,null,null,null,null,null,null,null,null,null,null,null,null,null,null,null,null,null,null,null,null,null,""]
[358,"2.G.1","General. In lieu of complying with the particulate matter standards under §63.1203, the source may elect to comply with the following alternative metal emission control requirements:","§63.1206(b)(14)(i)  ",null,null,null,null,{"$f":"IF(Screening!$AB$4=\"No\", \"Ex\",\"\")","v":""},null,null,null,null,null,null,null,null,null,null,null,null,null,null,null,null,null,null,null,null,null,null,null,null,null,null,null,null,null,null,null,null,null,null,null,null,null,null,null,""]
[359,"2.G.2","Alternative metal emission control requirements for existing incinerators. ","§63.1206(b)(14)(ii)  ",null,null,null,null,{"$f":"IF(Screening!$AB$4=\"No\", \"Ex\",\"\")","v":""},null,null,null,null,null,null,null,null,null,null,null,null,null,null,null,null,null,null,null,null,null,null,null,null,null,null,null,null,null,null,null,null,null,null,null,null,null,null,null,""]
[360,"2.G.2.a","The source must not discharge or cause combustion gases to be emitted into the atmosphere that contain cadmium, lead, and selenium in excess of 240 µgm/dscm, combined emissions, corrected to 7 percent oxygen; and,","§63.1206(b)(14)(ii)(A)",null,null,null,null,{"$f":"IF(Screening!$AB$4=\"No\", \"Ex\",\"\")","v":""},null,null,null,null,null,null,null,null,null,null,null,null,null,null,null,null,null,null,null,null,null,null,null,null,null,null,null,null,null,null,null,null,null,null,null,null,null,null,null,""]
[361,"2.G.2.b","The source must not discharge or cause combustion gases to be emitted into the atmosphere that contain antimony, arsenic, beryllium, chromium, cobalt, manganese, and nickel in excess of 97 µgm/dscm, combined emissions, corrected to 7 percent oxygen.","§63.1206(b)(14)(ii)(B)",null,null,null,null,{"$f":"IF(Screening!$AB$4=\"No\", \"Ex\",\"\")","v":""},null,null,null,null,null,null,null,null,null,null,null,null,null,null,null,null,null,null,null,null,null,null,null,null,null,null,null,null,null,null,null,null,null,null,null,null,null,null,null,""]
[362,"2.G.3","Alternative metal emission control requirements for new incinerators. ","§63.1206(b)(14)(iii)",null,null,null,null,{"$f":"IF(Screening!$AB$4=\"No\", \"Ex\",\"\")","v":""},null,null,null,null,null,null,null,null,null,null,null,null,null,null,null,null,null,null,null,null,null,null,null,null,null,null,null,null,null,null,null,null,null,null,null,null,null,null,null,""]
[363,"2.G.3.a","The source must not discharge or cause combustion gases to be emitted into the atmosphere that contain cadmium, lead, and selenium in excess of 24 µgm/dscm, combined emissions, corrected to 7 percent oxygen; and,","§63.1206(b)(14)(iii)(A)",null,null,null,null,{"$f":"IF(Screening!$AB$4=\"No\", \"Ex\",\"\")","v":""},null,null,null,null,null,null,null,null,null,null,null,null,null,null,null,null,null,null,null,null,null,null,null,null,null,null,null,null,null,null,null,null,null,null,null,null,null,null,null,""]
[364,"2.G.3.b","The source must not discharge or cause combustion gases to be emitted into the atmosphere that contain antimony, arsenic, beryllium, chromium, cobalt, manganese, and nickel in excess of 97 µgm/dscm, combined emissions, corrected to 7 percent oxygen.","§63.1206(b)(14)(iii)(B)",null,null,null,null,{"$f":"IF(Screening!$AB$4=\"No\", \"Ex\",\"\")","v":""},null,null,null,null,null,null,null,null,null,null,null,null,null,null,null,null,null,null,null,null,null,null,null,null,null,null,null,null,null,null,null,null,null,null,null,null,null,null,null,""]
[365,"2.G.4","Operating limits. Semivolatile and low volatile metal operating parameter limits must be established to ensure compliance with the alternative emission limitations described in §§63.1206(b)(14(ii) and (b)(14)(iii) of this section pursuant to §63.1209(n), except that semivolatile metal feedrate limits apply to lead, cadmium, and selenium, combined, and low volatile metal feedrate limits apply to arsenic, beryllium, chromium, antimony, cobalt, manganese, and nickel, combined.","§63.1206(b)(14)(iv)(See 04/08/08 FR)",null,null,null,null,{"$f":"IF(Screening!$AB$4=\"No\", \"Ex\",\"\")","v":""},null,null,null,null,null,null,null,null,null,null,null,null,null,null,null,null,null,null,null,null,null,null,null,null,null,null,null,null,null,null,null,null,null,null,null,null,null,null,null,""]
[366,"2.G.5","Alternative to the interim standards for mercury for cement and lightweight aggregate kilns.","§63.1206(b)(15)",null,null,null,null,{"$f":"IF(Screening!$AB$4=\"No\", \"Ex\",\"\")","v":""},null,null,null,null,null,null,null,null,null,null,null,null,null,null,null,null,null,null,null,null,null,null,null,null,null,null,null,null,null,null,null,null,null,null,null,null,null,null,null,""]
[367,"2.G.5.a","General. In lieu of complying with the applicable mercury standards of §§63.1204(a)(2) and (b)(2) for existing and new cement kilns and §§63.1205(a)(2) and (b)(2) for existing and new lightweight aggregate kilns, the source may instead elect to comply with the alternative mercury standard described in §§63.1206(b)(15)(ii) through (b)(15)(v) of this section.","§63.1206(b)(15)(i)",null,null,null,null,{"$f":"IF(Screening!$AB$4=\"No\", \"Ex\",\"\")","v":""},null,null,null,null,null,null,null,null,null,null,null,null,null,null,null,null,null,null,null,null,null,null,null,null,null,null,null,null,null,null,null,null,null,null,null,null,null,null,null,""]
[368,"2.G.5.b","Operating requirement. The source must not exceed a hazardous waste feedrate corresponding to a maximum theoretical emission concentration (MTEC) of 120 µg/dscm on a twelve-hour rolling average.","§63.1206(b)(15)(ii)  ",null,null,null,null,{"$f":"IF(Screening!$AB$4=\"No\", \"Ex\",\"\")","v":""},null,null,null,null,null,null,null,null,null,null,null,null,null,null,null,null,null,null,null,null,null,null,null,null,null,null,null,null,null,null,null,null,null,null,null,null,null,null,null,""]
[369,"2.G.5.c","To document compliance with the operating requirement of §63.1206(b)(15)(ii) of this section, the source must:","§63.1206(b)(15)(iii)",null,null,null,null,{"$f":"IF(Screening!$AB$4=\"No\", \"Ex\",\"\")","v":""},null,null,null,null,null,null,null,null,null,null,null,null,null,null,null,null,null,null,null,null,null,null,null,null,null,null,null,null,null,null,null,null,null,null,null,null,null,null,null,""]
[370,"2.G.5.c.1","Monitor and record the feedrate of mercury for each hazardous waste feedstream according to §63.1209(c);","§63.1206(b)(15)(iii)(A)  ",null,null,null,null,{"$f":"IF(Screening!$AB$4=\"No\", \"Ex\",\"\")","v":""},null,null,null,null,null,null,null,null,null,null,null,null,null,null,null,null,null,null,null,null,null,null,null,null,null,null,null,null,null,null,null,null,null,null,null,null,null,null,null,""]
[371,"2.G.5.c.2","Monitor with a CMS and record in the operating record the gas flowrate (either directly or by monitoring a surrogate parameter that the source has correlated to gas flowrate);","§63.1206(b)(15)(iii)(B)  ",null,null,null,null,{"$f":"IF(Screening!$AB$4=\"No\", \"Ex\",\"\")","v":""},null,null,null,null,null,null,null,null,null,null,null,null,null,null,null,null,null,null,null,null,null,null,null,null,null,null,null,null,null,null,null,null,null,null,null,null,null,null,null,""]
[372,"2.G.5.c.3","Continuously calculate and record in the operating record a MTEC assuming mercury from all hazardous waste feedstreams is emitted;","§63.1206(b)(15)(iii)(C)  ",null,null,null,null,{"$f":"IF(Screening!$AB$4=\"No\", \"Ex\",\"\")","v":""},null,null,null,null,null,null,null,null,null,null,null,null,null,null,null,null,null,null,null,null,null,null,null,null,null,null,null,null,null,null,null,null,null,null,null,null,null,null,null,""]
[373,"2.G.5.c.4","Interlock the MTEC calculated in §63.1206(b)(15)(iii)(C) of this section to the AWFCO system to stop hazardous waste burning when the MTEC exceeds the operating requirement of §63.1206(b)(15)(ii) of this section.","§63.1206(b)(15)(iii)(D)  ",null,null,null,null,{"$f":"IF(Screening!$AB$4=\"No\", \"Ex\",\"\")","v":""},null,null,null,null,null,null,null,null,null,null,null,null,null,null,null,null,null,null,null,null,null,null,null,null,null,null,null,null,null,null,null,null,null,null,null,null,null,null,null,""]
[374,"2.G.5.d","In lieu of the requirement in §63.1206(b)(15)(iii) of this section, the source may:","§63.1206(b)(15)(iv)  ",null,null,null,null,{"$f":"IF(Screening!$AB$4=\"No\", \"Ex\",\"\")","v":""},null,null,null,null,null,null,null,null,null,null,null,null,null,null,null,null,null,null,null,null,null,null,null,null,null,null,null,null,null,null,null,null,null,null,null,null,null,null,null,""]
[375,"2.G.5.d.1","Identify in the Notification of Compliance a minimum gas flowrate limit and a maximum feedrate limit of mercury from all hazardous waste feedstreams that ensures the MTEC calculated in §63.1206(b)(15)(iii)(C) of this section is below the operating requirement of  §63.1206(b)(15)(ii) of this section; and","§63.1206(b)(15)(iv)(A)  ",null,null,null,null,{"$f":"IF(Screening!$AB$4=\"No\", \"Ex\",\"\")","v":""},null,null,null,null,null,null,null,null,null,null,null,null,null,null,null,null,null,null,null,null,null,null,null,null,null,null,null,null,null,null,null,null,null,null,null,null,null,null,null,""]
[376,"2.G.5.d.2","Interlock the minimum gas flowrate limit and maximum feedrate limits in §63.1206(b)(15)(iv)(A) of this section to the AWFCO system to stop hazardous waste burning when the gas flowrate or mercury feedrate exceeds the limits in §63.1206(b)(15)(iv)(A) of this section.","§63.1206(b)(15)(iv)(B)  ",null,null,null,null,{"$f":"IF(Screening!$AB$4=\"No\", \"Ex\",\"\")","v":""},null,null,null,null,null,null,null,null,null,null,null,null,null,null,null,null,null,null,null,null,null,null,null,null,null,null,null,null,null,null,null,null,null,null,null,null,null,null,null,""]
[377,"2.G.5.e","Notification requirement. The source must notify in writing the RCRA authority that the source intends to comply with the alternative standard.","§63.1206(b)(15)(v)  ",null,null,null,null,null,null,null,null,null,null,null,null,null,null,null,null,null,null,null,null,null,null,null,null,null,null,null,null,null,null,null,null,null,null,null,null,null,null,null,null,null,null,null,null,""]
[378,"2.G.6","Compliance with subcategory standards for liquid fuel boilers. The source must comply with the mercury, semivolatile, low volatile metal, and total chlorine standards for liquid fuel boilers under §63.1217 as follows:","§63.1206(b)(16)",null,null,null,null,null,{"$f":"IF(Screening!$AB$5=\"No\", \"Ex\",\"\")","v":""},null,null,null,null,null,null,null,null,null,null,null,null,null,null,null,null,null,null,null,null,null,null,null,null,null,null,null,null,null,null,null,null,null,null,null,null,null,null,""]
[379,"2.G.6","The source must determine the as-fired heating value of each batch of hazardous waste fired by each firing system of the boiler so that the source knows the mass-weighted heating value of the hazardous waste fired at all times.","§63.1206(b)(16)(i)",null,null,null,null,null,{"$f":"IF(Screening!$AB$5=\"No\", \"Ex\",\"\")","v":""},null,null,null,null,null,null,null,null,null,null,null,null,null,null,null,null,null,null,null,null,null,null,null,null,null,null,null,null,null,null,null,null,null,null,null,null,null,null,""]
[380,"2.G.6","If the as-fired heating value of the hazardous waste is 10,000 Btu per pound or greater, the source is subject to the thermal emission concentration standards (lb/million Btu) under §63.1217.","§63.1206(b)(16)(ii)",null,null,null,null,null,{"$f":"IF(Screening!$AB$5=\"No\", \"Ex\",\"\")","v":""},null,null,null,null,null,null,null,null,null,null,null,null,null,null,null,null,null,null,null,null,{"$f":"IF(Screening!$AB$26=\"No\", \"Ex\",\"\")","v":""},null,null,null,null,null,null,null,null,null,null,null,null,null,null,null,null,null,""]
[381,"2.G.6","If the as-fired heating value of the hazardous waste is less than 10,000 Btu/lb, the source is subject to the mass or volume emission concentration standards (µgm/dscm or ppmv) under §63.1217.","§63.1206(b)(16)(iii)",null,null,null,null,null,{"$f":"IF(Screening!$AB$5=\"No\", \"Ex\",\"\")","v":""},null,null,null,null,null,null,null,null,null,null,null,null,null,null,null,null,null,null,null,null,null,null,null,null,null,null,null,null,null,null,null,null,null,null,null,null,null,null,""]
[382,"2.G.6","If the as-fired heating value of hazardous wastes varies above and below 10,000 Btu/lb over time, the source is subject to the thermal concentration standards when the heating value is 10,000 Btu/lb or greater and the mass concentration standards when the heating value is less than 10,000 Btu/lb. The source may elect to comply at all times with the more stringent operating requirements that ensure compliance with both the thermal emission concentration standards and the mass or volume emission concentration standards.","§63.1206(b)(16)(iv)",null,null,null,null,null,{"$f":"IF(Screening!$AB$5=\"No\", \"Ex\",\"\")","v":""},null,null,null,null,null,null,null,null,null,null,null,null,null,null,null,null,null,null,null,null,null,null,null,null,null,null,null,null,null,null,null,null,null,null,null,null,null,null,""]
[383,"2.H","Use of an alternative test method","§63.7(f)",null,null,null,null,null,null,null,null,null,null,null,null,null,null,null,null,null,null,null,null,null,null,null,{"$f":"IF(Screening!$AB$23=\"No\", \"Ex\",\"\")","v":""},null,null,null,null,null,null,null,null,null,null,null,null,null,null,null,null,null,null,null,null,""]
[384,"2.H.1","The owner or operator of an affected source required to do performance testing by a relevant standard may use an alternative test method from that specified in the standard provided that the owner or operator:\nNote to 2.H.1: Under §§63.7(f)(3) and (4), the Administrator will determine whether the owner or operator’s validation of the proposed alternative test method is adequate and issue an approval or disapproval of the alternative test method. If the source intends to demonstrate compliance by using an alternative to any test method specified in the relevant standard, the source is authorized to conduct the performance test using an alternative test method after the Administrator approves the use of the alternative method. However, the source is authorized to conduct the performance test using an alternative method in the absence of notification of approval/disapproval 45 days after submission of the request to use an alternative test method and the request satisfies the requirements in §63.7(f)(2). The source or operator is authorized to conduct the performance test within 60 calendar days after he/she is authorized to demonstrate compliance using an alternative test method. Notwithstanding the requirements in the preceding three sentences, the source may proceed to conduct the performance test as required in this section (without the Administrator’s prior approval of the site-specific test plan) if he/she subsequently chooses to use the specified testing and monitoring methods instead of an alternative. See 67 FR 16603. If the Administrator finds reasonable grounds to dispute the results obtained by an alternative test method for the purposes of demonstrating compliance with a relevant standard, the Administrator may require the use of a test method specified in a relevant standard. Until permission to use an alternative test method has been granted by the Administrator under §63.7(f), the owner or operator of an affected source remains subject to the requirements of this section and the relevant standard.","§63.7(f)(2)",null,null,null,null,null,null,null,null,null,null,null,null,null,null,null,null,null,null,null,null,null,null,null,{"$f":"IF(Screening!$AB$23=\"No\", \"Ex\",\"\")","v":""},null,null,null,null,null,null,null,null,null,null,null,null,null,null,null,null,null,null,null,null,""]
[385,"2.H.1.a","Notifies the Administrator of his or her intention to use an alternative test method at least 60 days before the performance test is to begin.","§63.7(f)(2)(i)",null,null,null,null,null,null,null,null,null,null,null,null,null,null,null,null,null,null,null,null,null,null,null,{"$f":"IF(Screening!$AB$23=\"No\", \"Ex\",\"\")","v":""},null,null,null,null,null,null,null,null,null,null,null,null,null,null,null,null,null,null,null,null,{"$f":"IF(OR(I386=\"Ex\",J386=\"Ex\",K386=\"Ex\",L386=\"Ex\",M386=\"Ex\",N386=\"Ex\",O386=\"Ex\",P386=\"Ex\",Q386=\"Ex\",R386=\"Ex\",S386=\"Ex\",T386=\"Ex\",U386=\"Ex\",V386=\"Ex\",W386=\"Ex\",X386=\"Ex\",Y386=\"Ex\",Z386=\"Ex\",AA386=\"Ex\",AB386=\"Ex\",AC386=\"Ex\",AD386=\"Ex\",AE386=\"Ex\",AF386=\"Ex\",AG386=\"Ex\",AH386=\"Ex\",AI386=\"Ex\",AJ386=\"Ex\",AK386=\"Ex\",AL386=\"Ex\",AM386=\"Ex\",AN386=\"Ex\",AO386=\"Ex\",AP386=\"Ex\",AQ386=\"Ex\",AR386=\"Ex\",AS386=\"Ex\",AT386=\"Ex\",AU386=\"Ex\",AV386=\"Ex\"), \"Ex\",\"\")","v":""}]
[386,"2.H.1.b","Uses Method 301 in Appendix A of Part 63 to validate the alternative test method. This may include the use of specific procedures of Method 301 if use of such procedures are sufficient to validate the alternative test method and;","§63.7(f)(2)(ii)",null,null,null,null,null,null,null,null,null,null,null,null,null,null,null,null,null,null,null,null,null,null,null,{"$f":"IF(Screening!$AB$23=\"No\", \"Ex\",\"\")","v":""},null,null,null,null,null,null,null,null,null,null,null,null,null,null,null,null,null,null,null,null,""]
[387,"2.H.1.c","Submits the results of the Method 301 validation process along with the notification of intention and the justification for not using the specified test method. The owner or operator may submit the information required in this paragraph well in advance of the deadline specified in §63.7(f)(2)(i) of this section to ensure a timely review by the Administrator in order to meet the performance test date specified in this section or the Relevant standard.","§63.7(f)(2)(iii)",null,null,null,null,null,null,null,null,null,null,null,null,null,null,null,null,null,null,null,null,null,null,null,{"$f":"IF(Screening!$AB$23=\"No\", \"Ex\",\"\")","v":""},null,null,null,null,null,null,null,null,null,null,null,null,null,null,null,null,null,null,null,null,""]
[388,"2.I","Health-based compliance alternatives for total chlorine","§63.1215",null,null,null,null,null,null,null,null,null,null,null,null,null,null,null,null,{"$f":"IF(Screening!$AB$16=\"No\", \"Ex\",\"\")","v":""},null,null,null,null,null,null,null,null,null,null,null,null,null,null,null,null,null,null,null,null,null,null,null,null,null,null,null,""]
[389,"2.I.1","General","§63.1215(a)",null,null,null,null,null,null,null,null,null,null,null,null,null,null,null,null,{"$f":"IF(Screening!$AB$16=\"No\", \"Ex\",\"\")","v":""},null,null,null,null,null,null,null,null,null,null,null,null,null,null,null,null,null,null,null,null,null,null,null,null,null,null,null,""]
[390,"2.I.1.a","The source may establish and comply with the health-based compliance alternatives for total chlorine under the procedures prescribed in this section for hazardous waste combustors other than hydrochloric acid production furnaces. The source may comply with these health-based compliance alternatives in lieu of the emission standards for total chlorine provided under §§63.1216, 63.1217, 63.1219, 63.1220, and 63.1221. To identify and comply with the limits, the source must:","§63.1215(a)(1)",null,null,null,null,null,null,null,null,null,null,null,null,null,null,null,null,{"$f":"IF(Screening!$AB$16=\"No\", \"Ex\",\"\")","v":""},null,null,null,null,null,null,null,null,null,null,null,null,null,null,null,null,null,null,null,null,null,null,null,null,null,null,null,""]
[391,"2.I.1.a.1","Identify a total chlorine emission concentration (ppmv) expressed as chloride (Cl(−)) equivalent for each on site hazardous waste combustor. You may select total chlorine emission concentrations as you choose to demonstrate eligibility for the risk-based limits under this section, except as provided by paragraph (b)(7) of this section;","§63.1215(a)(1)(i)Rev. 4/8/08 FR",null,null,null,null,null,null,null,null,null,null,null,null,null,null,null,null,{"$f":"IF(Screening!$AB$16=\"No\", \"Ex\",\"\")","v":""},null,null,null,null,null,null,null,null,null,null,null,null,null,null,null,null,null,null,null,null,null,null,null,null,null,null,null,""]
[392,"2.I.1.a.2","Apportion the total chlorine emission concentration between HCl and Cl2according to paragraph (b)(6)(i) of this section, and calculate HCl and Cl2emission rates (lb/hr) using the gas flowrate and other parameters from the most recent regulatory compliance test.","§63.1215(a)(1)(ii)",null,null,null,null,null,null,null,null,null,null,null,null,null,null,null,null,{"$f":"IF(Screening!$AB$16=\"No\", \"Ex\",\"\")","v":""},null,null,null,null,null,null,null,null,null,null,null,null,null,null,null,null,null,null,null,null,null,null,null,null,null,null,null,""]
[393,"2.I.1.a.3","Calculate the annual average HCl-equivalent emission rate as prescribed in paragraph (b)(2) of this section.","§63.1215(a)(1)(iii)",null,null,null,null,null,null,null,null,null,null,null,null,null,null,null,null,{"$f":"IF(Screening!$AB$16=\"No\", \"Ex\",\"\")","v":""},null,null,null,null,null,null,null,null,null,null,null,null,null,null,null,null,null,null,null,null,null,null,null,null,null,null,null,""]
[394,"2.I.1.a.4","Perform an eligibility demonstration to determine if your HCl-equivalent emission rate meets the national exposure standard and thus is below the annual average HCl-equivalent emission rate limit, as prescribed by paragraph (c) of this section;","§63.1215(a)(1)(iv)",null,null,null,null,null,null,null,null,null,null,null,null,null,null,null,null,{"$f":"IF(Screening!$AB$16=\"No\", \"Ex\",\"\")","v":""},null,null,null,null,null,null,null,null,null,null,null,null,null,null,null,null,null,null,null,null,null,null,null,null,null,null,null,""]
[395,"2.I.1.a.5","Submit the eligibility demonstration for review and approval, as prescribed by paragraph (e) of this section, which must include information to ensure that the 1-hour average HCl-equivalent emission rate limit is not exceeded, as prescribed by paragraph (d) of this section;","§63.1215(a)(1)(v)",null,null,null,null,null,null,null,null,null,null,null,null,null,null,null,null,{"$f":"IF(Screening!$AB$16=\"No\", \"Ex\",\"\")","v":""},null,null,null,null,null,null,null,null,null,null,null,null,null,null,null,null,null,null,null,null,null,null,null,null,null,null,null,""]
[396,"2.I.1.a.6","Demonstrate compliance with the annual average HCl-equivalent emission rate limit during the comprehensive performance test, as prescribed by the testing and monitoring requirements under paragraph (e) of this section;","§63.1215(a)(1)(vi)",null,null,null,null,null,null,null,null,null,null,null,null,null,null,null,null,{"$f":"IF(Screening!$AB$16=\"No\", \"Ex\",\"\")","v":""},null,null,null,null,null,null,null,null,null,null,null,null,null,null,null,null,null,null,null,null,null,null,null,null,null,null,null,""]
[397,"2.I.1.a.7","Comply with compliance monitoring requirements, including establishing feedrate limits on total chlorine and chloride, and operating parameter limits on emission control equipment, as prescribed by paragraph (f) of this section; and","§63.1215(a)(1)(vii)",null,null,null,null,null,null,null,null,null,null,null,null,null,null,null,null,{"$f":"IF(Screening!$AB$16=\"No\", \"Ex\",\"\")","v":""},null,null,null,null,null,null,null,null,null,null,null,null,null,null,null,null,null,null,null,null,null,null,null,null,null,null,null,""]
[398,"2.I.1.a.8","Comply with the requirements for changes, as prescribed by paragraph (h) of this section.","§63.1215(a)(1)(viii)",null,null,null,null,null,null,null,null,null,null,null,null,null,null,null,null,{"$f":"IF(Screening!$AB$16=\"No\", \"Ex\",\"\")","v":""},null,null,null,null,null,null,null,null,null,null,null,null,null,null,null,null,null,null,null,null,null,null,null,null,null,null,null,""]
[399,"2.I.2","HCl-equivalent emission rates","§63.1215(b)",null,null,null,null,null,null,null,null,null,null,null,null,null,null,null,null,{"$f":"IF(Screening!$AB$16=\"No\", \"Ex\",\"\")","v":""},null,null,null,null,null,null,null,null,null,null,null,null,null,null,null,null,null,null,null,null,null,null,null,null,null,null,null,""]
[400,"2.I.2.a","The source must express total chlorine emission rates for each hazardous waste combustor as HCl-equivalent emission rates.","§63.1215(b)(1)",null,null,null,null,null,null,null,null,null,null,null,null,null,null,null,null,{"$f":"IF(Screening!$AB$16=\"No\", \"Ex\",\"\")","v":""},null,null,null,null,null,null,null,null,null,null,null,null,null,null,null,null,null,null,null,null,null,null,null,null,null,null,null,""]
[401,"2.I.2.b","Annual average rates. You must calculate annual average toxicity-weighted HCl-equivalent emission rates for each combustor as follows:\nERLTtw = ERHCl + ERCl2 × (RfCHCl/RfCCl2)\nWhere: ERLTtw is the annual average HCl toxicity-weighted emission rate (HCl-equivalent emission rate) considering long-term exposures in lbs/hr, ERHCl is the emission rate of HCl in lbs/hr, ERCl2 is the emission rate of chlorine in lbs/hr, RfCHCl is the reference concentration of HCl, and RfCCl2 is the reference concentration of chlorine","§63.1215(b)(2)Rev. 4/8/08 FR",null,null,null,null,null,null,null,null,null,null,null,null,null,null,null,null,{"$f":"IF(Screening!$AB$16=\"No\", \"Ex\",\"\")","v":""},null,null,null,null,null,null,null,null,null,null,null,null,null,null,null,null,null,null,null,null,null,null,null,null,null,null,null,""]
[402,"2.I.2.c","1-hour average rates. You must calculate 1-hour average toxicity-weighted HCl-equivalent emission rates for each combustor as follows:\nERSTtw = ERHCl + ERCl2 × (aRELHCl/aRELCl2)\nWhere: ERSTtw is the 1-hour average HCl-toxicity-weighted emission rate (HCl-equivalent emission rate) considering 1-hour (short-term) exposures in lbs/hr, ERHCl is the emission rate of HCl in lbs/hr, ERCl2 is the emission rate of chlorine in lbs/hr, aRELHCl is the aREL for HCl, and aRELCl2 is the aREL for chlorine","§63.1215(b)(3)Rev. 4/8/08 FR",null,null,null,null,null,null,null,null,null,null,null,null,null,null,null,null,{"$f":"IF(Screening!$AB$16=\"No\", \"Ex\",\"\")","v":""},null,null,null,null,null,null,null,null,null,null,null,null,null,null,null,null,null,null,null,null,null,null,null,null,null,null,null,""]
[403,"2.I.2.d","The source must use the RfC values for hydrogen chloride and chlorine found at http://epa.gov/ttn/atw/toxsource/ summary.html.","§63.1215(b)(4)",null,null,null,null,null,null,null,null,null,null,null,null,null,null,null,null,{"$f":"IF(Screening!$AB$16=\"No\", \"Ex\",\"\")","v":""},null,null,null,null,null,null,null,null,null,null,null,null,null,null,null,null,null,null,null,null,null,null,null,null,null,null,null,""]
[404,"2.I.2.e","The source must use the aREL values for hydrogen chloride and chlorine found at http://www.oehha.ca.gov/air/ acute_rels/acuterel.html.","§63.1215(b)(5)",null,null,null,null,null,null,null,null,null,null,null,null,null,null,null,null,{"$f":"IF(Screening!$AB$16=\"No\", \"Ex\",\"\")","v":""},null,null,null,null,null,null,null,null,null,null,null,null,null,null,null,null,null,null,null,null,null,null,null,null,null,null,null,""]
[405,"2.I.2.f","Cl2/HCl ratios","§63.1215(b)(6)",null,null,null,null,null,null,null,null,null,null,null,null,null,null,null,null,{"$f":"IF(Screening!$AB$16=\"No\", \"Ex\",\"\")","v":""},null,null,null,null,null,null,null,null,null,null,null,null,null,null,null,null,null,null,null,null,null,null,null,null,null,null,null,""]
[406,"2.I.2.f.1","Ratio for calculating annual average HCl-equivalent emission rates.","§63.1215(b)(6)(i)",null,null,null,null,null,null,null,null,null,null,null,null,null,null,null,null,{"$f":"IF(Screening!$AB$16=\"No\", \"Ex\",\"\")","v":""},null,null,null,null,null,null,null,null,null,null,null,null,null,null,null,null,null,null,null,null,null,null,null,null,null,null,null,""]
[407,"2.I.2.f.1.a","To calculate the annual average HCl-equivalent emission rate (lb/hr) for each combustor, the source must apportion the total chlorine emission concentration (ppmv chloride (Cl(-)) equivalent) between HCl and chlorine according to the historical average Cl2/HCl volumetric ratio for all regulatory compliance tests.","§63.1215(b)(6)(i)(A)",null,null,null,null,null,null,null,null,null,null,null,null,null,null,null,null,{"$f":"IF(Screening!$AB$16=\"No\", \"Ex\",\"\")","v":""},null,null,null,null,null,null,null,null,null,null,null,null,null,null,null,null,null,null,null,null,null,null,null,null,null,null,null,""]
[408,"2.I.2.f.1.b","The source must calculate HCl and Cl2emission rates (lb/hr) using the apportioned emission concentrations and the gas flowrate and other parameters from the most recent regulatory compliance test.","§63.1215(b)(6)(i)(B)",null,null,null,null,null,null,null,null,null,null,null,null,null,null,null,null,{"$f":"IF(Screening!$AB$16=\"No\", \"Ex\",\"\")","v":""},null,null,null,null,null,null,null,null,null,null,null,null,null,null,null,null,null,null,null,null,null,null,null,null,null,null,null,""]
[409,"2.I.2.f.1.c","The source must calculate the annual average HCl-equivalent emission rate using these HCl and Cl2emission rates and the equation in paragraph (b)(2) of this section.","§63.1215(b)(6)(i)(C)",null,null,null,null,null,null,null,null,null,null,null,null,null,null,null,null,{"$f":"IF(Screening!$AB$16=\"No\", \"Ex\",\"\")","v":""},null,null,null,null,null,null,null,null,null,null,null,null,null,null,null,null,null,null,null,null,null,null,null,null,null,null,null,""]
[410,"2.I.2.f.2","Ratio for calculating 1-hour average HCl-equivalent emission rates.","§63.1215(b)(6)(ii)",null,null,null,null,null,null,null,null,null,null,null,null,null,null,null,null,{"$f":"IF(Screening!$AB$16=\"No\", \"Ex\",\"\")","v":""},null,null,null,null,null,null,null,null,null,null,null,null,null,null,null,null,null,null,null,null,null,null,null,null,null,null,null,""]
[411,"2.I.2.f.2.a","To calculate the 1-hour average HCl-equivalent emission rate for each combustor as a criterion for the source to determine under paragraph (d) of this section if an hourly rolling average feedrate limit on total chlorine and chloride may be waived, the source must apportion the total chlorine emission concentration (ppmv chloride (Cl(-)) equivalent) between HCl and chlorine according to the historical highest Cl2/HCl volumetric ratio for all regulatory compliance tests.","§63.1215(b)(6)(ii)(A)",null,null,null,null,null,null,null,null,null,null,null,null,null,null,null,null,{"$f":"IF(Screening!$AB$16=\"No\", \"Ex\",\"\")","v":""},null,null,null,null,null,null,null,null,null,null,null,null,null,null,null,null,null,null,null,null,null,null,null,null,null,null,null,""]
[412,"2.I.2.f.2.b","The source must calculate HCl and Cl2emission rates (lb/hr) using the apportioned emission concentrations and the gas flowrate and other parameters from the most recent regulatory compliance test.","§63.1215(b)(6)(ii)(B)",null,null,null,null,null,null,null,null,null,null,null,null,null,null,null,null,{"$f":"IF(Screening!$AB$16=\"No\", \"Ex\",\"\")","v":""},null,null,null,null,null,null,null,null,null,null,null,null,null,null,null,null,null,null,null,null,null,null,null,null,null,null,null,""]
[413,"2.I.2.f.2.c","You must calculate the 1-hour average HCl-equivalent emission rate using these HCl and Cl2emission rates and the equation in paragraph (b)(3) of this section.","§63.1215(b)(6)(ii)(C)Rev. 4/8/08 FR",null,null,null,null,null,null,null,null,null,null,null,null,null,null,null,null,{"$f":"IF(Screening!$AB$16=\"No\", \"Ex\",\"\")","v":""},null,null,null,null,null,null,null,null,null,null,null,null,null,null,null,null,null,null,null,null,null,null,null,null,null,null,null,""]
[414,"2.I.2.f.3","Ratios for new sources .","§63.1215(b)(6)(iii)",null,null,null,null,null,null,null,null,null,null,null,null,null,null,null,null,{"$f":"IF(Screening!$AB$16=\"No\", \"Ex\",\"\")","v":""},null,null,null,null,null,null,null,null,null,null,null,null,null,null,null,null,null,null,null,null,null,null,null,null,null,null,null,""]
[415,"2.I.2.f.3.a","The source must use engineering information to estimate the Cl2/HCl volumetric ratio for a new source for the initial eligibility demonstration.","§63.1215(b)(6)(iii)(A)",null,null,null,null,null,null,null,null,null,null,null,null,null,null,null,null,{"$f":"IF(Screening!$AB$16=\"No\", \"Ex\",\"\")","v":""},null,null,null,null,null,null,null,null,null,null,null,null,null,null,null,null,null,null,null,null,null,null,null,null,null,null,null,""]
[416,"2.I.2.f.3.b","The source must use the Cl2/HCl volumetric ratio demonstrated during the initial comprehensive performance test to demonstrate in the Notification of Compliance that the HCl-equivalent emission rate does not exceed your HCl-equivalent emission rate limit.","§63.1215(b)(6)(iii)(B)",null,null,null,null,null,null,null,null,null,null,null,null,null,null,null,null,{"$f":"IF(Screening!$AB$16=\"No\", \"Ex\",\"\")","v":""},null,null,null,null,null,null,null,null,null,null,null,null,null,null,null,null,null,null,null,null,null,null,null,null,null,null,null,""]
[417,"2.I.2.f.3.c","When approving the test plan for the initial comprehensive performance test, the permitting authority will establish a periodic testing requirement, such as every 3 months for 1 year, to establish a record of representative Cl2/HCl volumetric ratios.","§63.1215(b)(6)(iii)(C)",null,null,null,null,null,null,null,null,null,null,null,null,null,null,null,null,{"$f":"IF(Screening!$AB$16=\"No\", \"Ex\",\"\")","v":""},null,null,null,null,null,null,null,null,null,null,null,null,null,null,null,null,null,null,null,null,null,null,null,null,null,null,null,""]
[418,"2.I.2.f.3.c.1","The source must revise your HCl-equivalent emission rates and HCl-equivalent emission rate limits after each such test using the procedures prescribed in paragraphs (b)(6)(i) and (ii) of this section.","§63.1215(b)(6)(iii)(C)(1)",null,null,null,null,null,null,null,null,null,null,null,null,null,null,null,null,{"$f":"IF(Screening!$AB$16=\"No\", \"Ex\",\"\")","v":""},null,null,null,null,null,null,null,null,null,null,null,null,null,null,null,null,null,null,null,null,null,null,null,null,null,null,null,""]
[419,"2.I.2.f.3.c.2","If the source is no longer eligible for the health-based compliance alternative, the source must notify the permitting authority immediately and either:","§63.1215(b)(6)(iii)(C)(2)",null,null,null,null,null,null,null,null,null,null,null,null,null,null,null,null,{"$f":"IF(Screening!$AB$16=\"No\", \"Ex\",\"\")","v":""},null,null,null,null,null,null,null,null,null,null,null,null,null,null,null,null,null,null,null,null,null,null,null,null,null,null,null,""]
[420,"2.I.2.f.3.c.2.a","Submit a revised eligibility demonstration requesting lower HCl-equivalent emission rate limits, establishing lower HCl-equivalent emission rates, and establishing by downward extrapolation lower feedrate limits for total chlorine and chloride; or","§63.1215(b)(6)(iii)(C)(2)(i)",null,null,null,null,null,null,null,null,null,null,null,null,null,null,null,null,{"$f":"IF(Screening!$AB$16=\"No\", \"Ex\",\"\")","v":""},null,null,null,null,null,null,null,null,null,null,null,null,null,null,null,null,null,null,null,null,null,null,null,null,null,null,null,""]
[421,"2.I.2.f.3.c.2.b","Request a compliance schedule of up to three years to demonstrate compliance with the emission standards under §§63.1216, 63.1217, 63.1219, 63.1220, and 63.1221.","§63.1215(b)(6)(iii)(C)(2)(ii)",null,null,null,null,null,null,null,null,null,null,null,null,null,null,null,null,{"$f":"IF(Screening!$AB$16=\"No\", \"Ex\",\"\")","v":""},null,null,null,null,null,null,null,null,null,null,null,null,null,null,null,null,null,null,null,null,null,null,null,null,null,null,null,""]
[422,"2.I.2.f.4","Unrepresentative or inadequate historical Cl2/HCl volumetric ratios.","§63.1215(b)(6)(iv)",null,null,null,null,null,null,null,null,null,null,null,null,null,null,null,null,{"$f":"IF(Screening!$AB$16=\"No\", \"Ex\",\"\")","v":""},null,null,null,null,null,null,null,null,null,null,null,null,null,null,null,null,null,null,null,null,null,null,null,null,null,null,null,""]
[423,"2.I.2.f.4.a","If the source believes that the Cl2/HCl volumetric ratio for one or more historical regulatory compliance tests is not representative of the current ratio, the source may request that the permitting authority allow the source to screen those ratios from the analysis of historical ratios.","§63.1215(b)(6)(iv)(A)",null,null,null,null,null,null,null,null,null,null,null,null,null,null,null,null,{"$f":"IF(Screening!$AB$16=\"No\", \"Ex\",\"\")","v":""},null,null,null,null,null,null,null,null,null,null,null,null,null,null,null,null,null,null,null,null,null,null,null,null,null,null,null,""]
[424,"2.I.2.f.4.b","If the permitting authority believes that too few historical ratios are available to calculate a representative average ratio or establish a maximum ratio, the permitting authority may require the source to conduct periodic testing to establish representative ratios.","§63.1215(b)(6)(iv)(B)",null,null,null,null,null,null,null,null,null,null,null,null,null,null,null,null,{"$f":"IF(Screening!$AB$16=\"No\", \"Ex\",\"\")","v":""},null,null,null,null,null,null,null,null,null,null,null,null,null,null,null,null,null,null,null,null,null,null,null,null,null,null,null,""]
[425,"2.I.2.f.5","Updating Cl2/HCl ratios.  The source must include the Cl2/HCl volumetric ratio demonstrated during each performance test in your data base of historical Cl2/HCl ratios to update the ratios you establish under paragraphs (b)(6)(i) and (ii) of this section for subsequent calculations of the annual average and 1-hour average HCl-equivalent emission rates.","§63.1215(b)(6)(v)",null,null,null,null,null,null,null,null,null,null,null,null,null,null,null,null,{"$f":"IF(Screening!$AB$16=\"No\", \"Ex\",\"\")","v":""},null,null,null,null,null,null,null,null,null,null,null,null,null,null,null,null,null,null,null,null,null,null,null,null,null,null,null,""]
[426,"2.I.2.g","Emission rates are capped.  The hydrogen chloride and chlorine emission rates you use to calculate the HCl-equivalent emission rate limit for incinerators, cement kilns, and lightweight aggregate kilns must not result in total chlorine emission concentrations exceeding:","§63.1215(b)(7)",null,null,null,null,null,null,null,null,null,null,null,null,null,null,null,null,{"$f":"IF(Screening!$AB$16=\"No\", \"Ex\",\"\")","v":""},null,null,null,null,null,null,null,null,null,null,null,null,null,null,null,null,null,null,null,null,null,null,null,null,null,null,null,""]
[427,"2.I.2.g.1","For incinerators that were existing sources on April 19, 1996: 77 parts per million by volume, combined emissions, expressed as chloride (Cl(-)) equivalent, dry basis and corrected to 7 percent oxygen;","§63.1215(b)(7)(i)",null,null,null,null,null,null,null,null,null,null,null,null,null,null,null,null,{"$f":"IF(Screening!$AB$16=\"No\", \"Ex\",\"\")","v":""},null,null,null,null,null,null,null,null,null,null,null,null,null,null,null,null,null,null,null,null,null,null,null,null,null,null,null,""]
[428,"2.I.2.g.2","For incinerators that are new or reconstructed sources after April 19, 1996: 21 parts per million by volume, combined emissions, expressed as chloride (Cl(-)) equivalent, dry basis and corrected to 7 percent oxygen;","§63.1215(b)(7)(ii)",null,null,null,null,null,null,null,null,null,null,null,null,null,null,null,null,{"$f":"IF(Screening!$AB$16=\"No\", \"Ex\",\"\")","v":""},null,null,null,null,null,null,null,null,null,null,null,null,null,null,null,null,null,null,null,null,null,null,null,null,null,null,null,""]
[429,"2.I.2.g.3","For cement kilns that were existing sources on April 19, 1996: 130 parts per million by volume, combined emissions, expressed as chloride (Cl(-)) equivalent, dry basis and corrected to 7 percent oxygen;","§63.1215(b)(7)(iii)",null,null,null,null,null,null,null,null,null,null,null,null,null,null,null,null,{"$f":"IF(Screening!$AB$16=\"No\", \"Ex\",\"\")","v":""},null,null,null,null,null,null,null,null,null,null,null,null,null,null,null,null,null,null,null,null,null,null,null,null,null,null,null,""]
[430,"2.I.2.g.4","For cement kilns that are new or reconstructed sources after April 19, 1996: 86 parts per million by volume, combined emissions, expressed as chloride (Cl(-)) equivalent, dry basis and corrected to 7 percent oxygen;","§63.1215(b)(7)(iv)",null,null,null,null,null,null,null,null,null,null,null,null,null,null,null,null,{"$f":"IF(Screening!$AB$16=\"No\", \"Ex\",\"\")","v":""},null,null,null,null,null,null,null,null,null,null,null,null,null,null,null,null,null,null,null,null,null,null,null,null,null,null,null,""]
[431,"2.I.2.g.5","For lightweight aggregate kilns that were existing sources on April 19, 1996: 600 parts per million by volume, combined emissions, expressed as chloride (Cl(-)) equivalent, dry basis and corrected to 7 percent oxygen;","§63.1215(b)(7)(v)",null,null,null,null,null,null,null,null,null,null,null,null,null,null,null,null,{"$f":"IF(Screening!$AB$16=\"No\", \"Ex\",\"\")","v":""},null,null,null,null,null,null,null,null,null,null,null,null,null,null,null,null,null,null,null,null,null,null,null,null,null,null,null,""]
[432,"2.I.2.g.6","For lightweight aggregate kilns that are new or reconstructed sources after April 19, 1996: 600 parts per million by volume, combined emissions, expressed as chloride (Cl(-)) equivalent, dry basis and corrected to 7 percent oxygen","§63.1215(b)(7)(vi)",null,null,null,null,null,null,null,null,null,null,null,null,null,null,null,null,{"$f":"IF(Screening!$AB$16=\"No\", \"Ex\",\"\")","v":""},null,null,null,null,null,null,null,null,null,null,null,null,null,null,null,null,null,null,null,null,null,null,null,null,null,null,null,""]
[433,"2.I.3","Eligibility demonstration","§63.1215(c)",null,null,null,null,null,null,null,null,null,null,null,null,null,null,null,null,{"$f":"IF(Screening!$AB$16=\"No\", \"Ex\",\"\")","v":""},null,null,null,null,null,null,null,null,null,null,null,null,null,null,null,null,null,null,null,null,null,null,null,null,null,null,null,""]
[434,"2.I.3.a","General.","§63.1215(c)(1)",null,null,null,null,null,null,null,null,null,null,null,null,null,null,null,null,{"$f":"IF(Screening!$AB$16=\"No\", \"Ex\",\"\")","v":""},null,null,null,null,null,null,null,null,null,null,null,null,null,null,null,null,null,null,null,null,null,null,null,null,null,null,null,""]
[435,"2.I.3.a.1","The source must perform an eligibility demonstration to determine whether the total chlorine emission rates the source selects for each on-site hazardous waste combustor meet the national exposure standards using either a look-up table analysis prescribed by paragraph (c)(3) of this section, or a site-specific compliance demonstration prescribed by paragraph (c)(4) of this section.","§63.1215(c)(1)(i)",null,null,null,null,null,null,null,null,null,null,null,null,null,null,null,null,{"$f":"IF(Screening!$AB$16=\"No\", \"Ex\",\"\")","v":""},null,null,null,null,null,null,null,null,null,null,null,null,null,null,null,null,null,null,null,null,null,null,null,null,null,null,null,""]
[436,"2.I.3.a.2","The source must also determine in the eligibility demonstration whether each combustor may exceed the 1-hour HCl-equivalent emission rate limit absent an hourly rolling average limit on the feedrate of total chlorine and chloride, as provided by paragraph (d) of this section.","§63.1215(c)(1)(ii)",null,null,null,null,null,null,null,null,null,null,null,null,null,null,null,null,{"$f":"IF(Screening!$AB$16=\"No\", \"Ex\",\"\")","v":""},null,null,null,null,null,null,null,null,null,null,null,null,null,null,null,null,null,null,null,null,null,null,null,null,null,null,null,""]
[437,"2.I.3.b","Definition of eligibility.","§63.1215(c)(2)",null,null,null,null,null,null,null,null,null,null,null,null,null,null,null,null,{"$f":"IF(Screening!$AB$16=\"No\", \"Ex\",\"\")","v":""},null,null,null,null,null,null,null,null,null,null,null,null,null,null,null,null,null,null,null,null,null,null,null,null,null,null,null,""]
[438,"2.I.3.b.1","Eligibility for the risk-based total chlorine standard is determined by comparing the annual average HCl-equivalent emission rate for the total chlorine emission rate the source selects for each combustor to the annual average HCl-equivalent emission rate limit.","§63.1215(c)(2)(i)",null,null,null,null,null,null,null,null,null,null,null,null,null,null,null,null,{"$f":"IF(Screening!$AB$16=\"No\", \"Ex\",\"\")","v":""},null,null,null,null,null,null,null,null,null,null,null,null,null,null,null,null,null,null,null,null,null,null,null,null,null,null,null,""]
[439,"2.I.3.b.2","The annual average HCl-equivalent emission rate limit ensures that the Hazard Index for chronic exposure from HCl and chlorine emissions from all on-site hazardous waste combustors is less than or equal to 1.0, rounded to the nearest tenths decimal place (0.1), for the actual individual most exposed to the facility's emissions, considering off-site locations where people reside and where people congregate for work, school, or recreation.","§63.1215(c)(2)(ii)",null,null,null,null,null,null,null,null,null,null,null,null,null,null,null,null,{"$f":"IF(Screening!$AB$16=\"No\", \"Ex\",\"\")","v":""},null,null,null,null,null,null,null,null,null,null,null,null,null,null,null,null,null,null,null,null,null,null,null,null,null,null,null,""]
[440,"2.I.3.b.3","The facility is eligible for the health-based compliance alternative for total chlorine if either:","§63.1215(c)(2)(iii)",null,null,null,null,null,null,null,null,null,null,null,null,null,null,null,null,{"$f":"IF(Screening!$AB$16=\"No\", \"Ex\",\"\")","v":""},null,null,null,null,null,null,null,null,null,null,null,null,null,null,null,null,null,null,null,null,null,null,null,null,null,null,null,""]
[441,"2.I.3.b.3.a","The annual average HCl-equivalent emission rate for each on-site hazardous waste combustor is below the appropriate value in the look-up table determined under paragraph (c)(3) of this section; or","§63.1215(c)(2)(iii)(A)",null,null,null,null,null,null,null,null,null,null,null,null,null,null,null,null,{"$f":"IF(Screening!$AB$16=\"No\", \"Ex\",\"\")","v":""},null,null,null,null,null,null,null,null,null,null,null,null,null,null,null,null,null,null,null,null,null,null,null,null,null,null,null,""]
[442,"2.I.3.b.3.b","The annual average HCl-equivalent emission rate for each on-site hazardous waste combustor is below the annual average HCl-equivalent emission rate limit you calculate based on a site-specific compliance demonstration under paragraph (c)(4) of this section.","§63.1215(c)(2)(iii)(B)",null,null,null,null,null,null,null,null,null,null,null,null,null,null,null,null,{"$f":"IF(Screening!$AB$16=\"No\", \"Ex\",\"\")","v":""},null,null,null,null,null,null,null,null,null,null,null,null,null,null,null,null,null,null,null,null,null,null,null,null,null,null,null,""]
[443,"2.I.3.c","Look-up table analysis. Look-up tables for the eligibility demonstration are provided as Tables 1 and 2 to this section.","§63.1215(c)(3)",null,null,null,null,null,null,null,null,null,null,null,null,null,null,null,null,{"$f":"IF(Screening!$AB$16=\"No\", \"Ex\",\"\")","v":""},null,null,null,null,null,null,null,null,null,null,null,null,null,null,null,null,null,null,null,null,null,null,null,null,null,null,null,""]
[444,"2.I.3.c.1","Table 1 presents annual average HCl-equivalent emission rate limits for sources located in flat terrain. For purposes of this analysis, flat terrain is terrain that rises to a level not exceeding one half the stack height within a distance of 50 stack heights.","§63.1215(c)(3)(i)",null,null,null,null,null,null,null,null,null,null,null,null,null,null,null,null,{"$f":"IF(Screening!$AB$16=\"No\", \"Ex\",\"\")","v":""},null,null,null,null,null,null,null,null,null,null,null,null,null,null,null,null,null,null,null,null,null,null,null,null,null,null,null,""]
[445,"2.I.3.c.2","Table 2 presents annual average HCl-equivalent emission rate limits for sources located in simple elevated terrain. For purposes of this analysis, simple elevated terrain is terrain that rises to a level exceeding one half the stack height, but that does not exceed the stack height, within a distance of 50 stack heights.","§63.1215(c)(3)(ii)",null,null,null,null,null,null,null,null,null,null,null,null,null,null,null,null,{"$f":"IF(Screening!$AB$16=\"No\", \"Ex\",\"\")","v":""},null,null,null,null,null,null,null,null,null,null,null,null,null,null,null,null,null,null,null,null,null,null,null,null,null,null,null,""]
[446,"2.I.3.c.3","To determine the annual average HCl-equivalent emission rate limit for a source from the look-up table, the source must use the stack height and stack diameter for your hazardous waste combustors and the distance between the stack and the property boundary.","§63.1215(c)(3)(iii)",null,null,null,null,null,null,null,null,null,null,null,null,null,null,null,null,{"$f":"IF(Screening!$AB$16=\"No\", \"Ex\",\"\")","v":""},null,null,null,null,null,null,null,null,null,null,null,null,null,null,null,null,null,null,null,null,null,null,null,null,null,null,null,""]
[447,"2.I.3.c.4","If any of these values for stack height, stack diameter, and distance to nearest property boundary do not match the exact values in the look-up table, the source must use the next lowest table value.","§63.1215(c)(3)(iv)",null,null,null,null,null,null,null,null,null,null,null,null,null,null,null,null,{"$f":"IF(Screening!$AB$16=\"No\", \"Ex\",\"\")","v":""},null,null,null,null,null,null,null,null,null,null,null,null,null,null,null,null,null,null,null,null,null,null,null,null,null,null,null,""]
[448,"2.I.3.c.5","Adjusted HCl-equivalent emission rate limit for multiple on-site combustors.","§63.1215(c)(3)(v)",null,null,null,null,null,null,null,null,null,null,null,null,null,null,null,null,{"$f":"IF(Screening!$AB$16=\"No\", \"Ex\",\"\")","v":""},null,null,null,null,null,null,null,null,null,null,null,null,null,null,null,null,null,null,null,null,null,null,null,null,null,null,null,""]
[449,"2.I.3.c.5.a","If the source has more than one hazardous waste combustor on site, the sum across all hazardous waste combustors of the ratio of the adjusted HCl-equivalent emission rate limit to the HCl-equivalent emission rate limit provided by Tables 1 or 2 cannot exceed 1.0, according to the following equation:\n\n∑(i-1)^n〖(HCl-Equation Emission Rate Limited Adjustedi)/(HCl-Equation Emission Rate Limit Tablei)≤1.0〗\n\nWhere: i = number of on-site hazardous waste combustors, HCl-Equivalent Emission Rate Limit Adjustedi means the apportioned, allowable HCl-equivalent emission rate limit for combustori, andHCl-Equivalent Emission Rate Limit Tablei means the HCl-equivalent emission rate limit from Table 1 or 2 to §63.1215 for combustori.","§63.1215(c)(3)(v)(A)",null,null,null,null,null,null,null,null,null,null,null,null,null,null,null,null,{"$f":"IF(Screening!$AB$16=\"No\", \"Ex\",\"\")","v":""},null,null,null,null,null,null,null,null,null,null,null,null,null,null,null,null,null,null,null,null,null,null,null,null,null,null,null,{"$f":"IF(OR(I450=\"Ex\",J450=\"Ex\",K450=\"Ex\",L450=\"Ex\",M450=\"Ex\",N450=\"Ex\",O450=\"Ex\",P450=\"Ex\",Q450=\"Ex\",R450=\"Ex\",S450=\"Ex\",T450=\"Ex\",U450=\"Ex\",V450=\"Ex\",W450=\"Ex\",X450=\"Ex\",Y450=\"Ex\",Z450=\"Ex\",AA450=\"Ex\",AB450=\"Ex\",AC450=\"Ex\",AD450=\"Ex\",AE450=\"Ex\",AF450=\"Ex\",AG450=\"Ex\",AH450=\"Ex\",AI450=\"Ex\",AJ450=\"Ex\",AK450=\"Ex\",AL450=\"Ex\",AM450=\"Ex\",AN450=\"Ex\",AO450=\"Ex\",AP450=\"Ex\",AQ450=\"Ex\",AR450=\"Ex\",AS450=\"Ex\",AT450=\"Ex\",AU450=\"Ex\",AV450=\"Ex\"), \"Ex\",\"\")","v":""}]
[450,"2.I.3.c.5.b","The adjusted HCl-equivalent emission rate limit becomes the HCl-equivalent emission rate limit.","§63.1215(c)(3)(v)(B)",null,null,null,null,null,null,null,null,null,null,null,null,null,null,null,null,{"$f":"IF(Screening!$AB$16=\"No\", \"Ex\",\"\")","v":""},null,null,null,null,null,null,null,null,null,null,null,null,null,null,null,null,null,null,null,null,null,null,null,null,null,null,null,""]
[451,"2.I.3.d","Site-specific compliance demonstration.","§63.1215(c)(4)",null,null,null,null,null,null,null,null,null,null,null,null,null,null,null,null,{"$f":"IF(Screening!$AB$16=\"No\", \"Ex\",\"\")","v":""},null,null,null,null,null,null,null,null,null,null,null,null,null,null,null,null,null,null,null,null,null,null,null,null,null,null,null,""]
[452,"2.I.3.d.1","The source may use any scientifically-accepted peer-reviewed risk assessment methodology for your site-specific compliance demonstration to calculate an annual average HCl-equivalent emission rate limit for each on-site hazardous waste combustor. An example of one approach for performing the demonstration for air toxics can be found in the EPA's “Air Toxics Risk Assessment Reference Library, Volume 2, Site-Specific Risk Assessment Technical Resource Document,” which may be obtained through the EPA's Air Toxics Web site at http://www.epa.gov/ttn/fera/risk_atra_main.html.","§63.1215(c)(4)(i)",null,null,null,null,null,null,null,null,null,null,null,null,null,null,null,null,{"$f":"IF(Screening!$AB$16=\"No\", \"Ex\",\"\")","v":""},null,null,null,null,null,null,null,null,null,null,null,null,null,null,null,null,null,null,null,null,null,null,null,null,null,null,null,""]
[453,"2.I.3.d.2","The annual average HCl-equivalent emission rate limit is the HCl-equivalent emission rate that ensures that the Hazard Index associated with maximum annual average exposures is not greater than 1.0 rounded to the nearest tenths decimal place (0.1).","§63.1215(c)(4)(ii)",null,null,null,null,null,null,null,null,null,null,null,null,null,null,null,null,{"$f":"IF(Screening!$AB$16=\"No\", \"Ex\",\"\")","v":""},null,null,null,null,null,null,null,null,null,null,null,null,null,null,null,null,null,null,null,null,null,null,null,null,null,null,null,""]
[454,"2.I.3.d.3","To determine the annual average HCl-equivalent emission rate limit, your site-specific compliance demonstration must, at a minimum:","§63.1215(c)(4)(iii)",null,null,null,null,null,null,null,null,null,null,null,null,null,null,null,null,{"$f":"IF(Screening!$AB$16=\"No\", \"Ex\",\"\")","v":""},null,null,null,null,null,null,null,null,null,null,null,null,null,null,null,null,null,null,null,null,null,null,null,null,null,null,null,""]
[455,"2.I.3.d.3.a","Estimate long-term inhalation exposures through the estimation of annual or multi-year average ambient concentrations;","§63.1215(c)(4)(iii)(A)",null,null,null,null,null,null,null,null,null,null,null,null,null,null,null,null,{"$f":"IF(Screening!$AB$16=\"No\", \"Ex\",\"\")","v":""},null,null,null,null,null,null,null,null,null,null,null,null,null,null,null,null,null,null,null,null,null,null,null,null,null,null,null,""]
[456,"2.I.3.d.3.b","Estimate the inhalation exposure for the actual individual most exposed to the facility's emissions from hazardous waste combustors, considering off-site locations where people reside and where people congregate for work, school, or recreation;","§63.1215(c)(4)(iii)(B)",null,null,null,null,null,null,null,null,null,null,null,null,null,null,null,null,{"$f":"IF(Screening!$AB$16=\"No\", \"Ex\",\"\")","v":""},null,null,null,null,null,null,null,null,null,null,null,null,null,null,null,null,null,null,null,null,null,null,null,null,null,null,null,""]
[457,"2.I.3.d.3.c","Use site-specific, quality-assured data wherever possible;","§63.1215(c)(4)(iii)(C)",null,null,null,null,null,null,null,null,null,null,null,null,null,null,null,null,{"$f":"IF(Screening!$AB$16=\"No\", \"Ex\",\"\")","v":""},null,null,null,null,null,null,null,null,null,null,null,null,null,null,null,null,null,null,null,null,null,null,null,null,null,null,null,""]
[458,"2.I.3.d.3.d","Use health-protective default assumptions wherever site-specific data are not available, and:","§63.1215(c)(4)(iii)(D)",null,null,null,null,null,null,null,null,null,null,null,null,null,null,null,null,{"$f":"IF(Screening!$AB$16=\"No\", \"Ex\",\"\")","v":""},null,null,null,null,null,null,null,null,null,null,null,null,null,null,null,null,null,null,null,null,null,null,null,null,null,null,null,""]
[459,"2.I.3.d.3.e","Contain adequate documentation of the data and methods used for the assessment so that it is transparent and can be reproduced by an experienced risk assessor and emissions measurement expert.","§63.1215(c)(4)(iii)(E)",null,null,null,null,null,null,null,null,null,null,null,null,null,null,null,null,{"$f":"IF(Screening!$AB$16=\"No\", \"Ex\",\"\")","v":""},null,null,null,null,null,null,null,null,null,null,null,null,null,null,null,null,null,null,null,null,null,null,null,null,null,null,null,""]
[460,"2.I.3.d.4","The site-specific compliance demonstration need not:","§63.1215(c)(4)(iv)",null,null,null,null,null,null,null,null,null,null,null,null,null,null,null,null,{"$f":"IF(Screening!$AB$16=\"No\", \"Ex\",\"\")","v":""},null,null,null,null,null,null,null,null,null,null,null,null,null,null,null,null,null,null,null,null,null,null,null,null,null,null,null,""]
[461,"2.I.3.d.4.a","Assume any attenuation of exposure concentrations due to the penetration of outdoor pollutants into indoor exposure areas;","§63.1215(c)(4)(iv)(A)",null,null,null,null,null,null,null,null,null,null,null,null,null,null,null,null,{"$f":"IF(Screening!$AB$16=\"No\", \"Ex\",\"\")","v":""},null,null,null,null,null,null,null,null,null,null,null,null,null,null,null,null,null,null,null,null,null,null,null,null,null,null,null,""]
[462,"2.I.3.d.4.b","Assume any reaction or deposition of the emitted pollutants during transport from the emission point to the point of exposure.","§63.1215(c)(4)(iv)(B)",null,null,null,null,null,null,null,null,null,null,null,null,null,null,null,null,{"$f":"IF(Screening!$AB$16=\"No\", \"Ex\",\"\")","v":""},null,null,null,null,null,null,null,null,null,null,null,null,null,null,null,null,null,null,null,null,null,null,null,null,null,null,null,""]
[463,"2.I.4","Assurance that the 1-hour HCl-equivalent emission rate limit will not be exceeded. To ensure that the 1-hour HCl-equivalent emission rate limit will not be exceeded when complying with the annual average HCl-equivalent emission rate limit, the source must establish a 1-hour average HCl-equivalent emission rate for each combustor, establish a 1-hour average HCl-equivalent emission rate limit for each combustor, and consider site-specific factors including prescribed criteria to determine if the 1-hour average HCl-equivalent emission rate limit may be exceeded absent an hourly rolling average limit on the feedrate of total chlorine and chloride. If the 1-hour average HCl-equivalent emission rate limit may be exceeded, the source must establish an hourly rolling average feedrate limit on total chlorine as provided by paragraph (f)(3) of this section.","§63.1215(d)",null,null,null,null,null,null,null,null,null,null,null,null,null,null,null,null,{"$f":"IF(Screening!$AB$16=\"No\", \"Ex\",\"\")","v":""},null,null,null,null,null,null,null,null,null,null,null,null,null,null,null,null,null,null,null,null,null,null,null,null,null,null,null,""]
[464,"2.I.4.a","1-hour average HCl-equivalent emission rate. The source must calculate the 1-hour average HCl-equivalent emission rate from the total chlorine emission concentration you select for each source as prescribed in paragraph (b)(6)(ii)(C) of this section.","§63.1215(d)(1)",null,null,null,null,null,null,null,null,null,null,null,null,null,null,null,null,{"$f":"IF(Screening!$AB$16=\"No\", \"Ex\",\"\")","v":""},null,null,null,null,null,null,null,null,null,null,null,null,null,null,null,null,null,null,null,null,null,null,null,null,null,null,null,""]
[465,"2.I.4.b","1-hour average HCl-equivalent emission rate limit.  The source must establish the 1-hour average HCl-equivalent emission rate limit for each affected source using either a look-up table analysis or site-specific analysis:","§63.1215(d)(2)",null,null,null,null,null,null,null,null,null,null,null,null,null,null,null,null,{"$f":"IF(Screening!$AB$16=\"No\", \"Ex\",\"\")","v":""},null,null,null,null,null,null,null,null,null,null,null,null,null,null,null,null,null,null,null,null,null,null,null,null,null,null,null,""]
[466,"2.I.4.b.1","Look-up table analysis. Look-up tables are provided for 1-hour average HCl-equivalent emission rate limits as Table 3 and Table 4 to this section. Table 3 provides limits for facilities located in flat terrain. Table 4 provides limits for facilities located in simple elevated terrain. You must use the Tables to establish 1-hour average HCl-equivalent emission rate limits as prescribed in paragraphs (c)(3)(iii) through (c)(3)(v) of this section for annual average HCl-equivalent emission rate limits.","§63.1215(d)(2)(i)",null,null,null,null,null,null,null,null,null,null,null,null,null,null,null,null,{"$f":"IF(Screening!$AB$16=\"No\", \"Ex\",\"\")","v":""},null,null,null,null,null,null,null,null,null,null,null,null,null,null,null,null,null,null,null,null,null,null,null,null,null,null,null,""]
[467,"2.I.4.b.2","Site-specific analysis. The 1-hour average HCl-equivalent emission rate limit is the HCl-equivalent emission rate that ensures that the Hazard Index associated with maximum 1-hour average exposures is not greater than 1.0 rounded to the nearest tenths decimal place (0.1).  The source must follow the risk assessment procedures under paragraph (c)(4) of this section to estimate short-term inhalation exposures through the estimation of maximum 1-hour average ambient concentrations.","§63.1215(d)(2)(ii)",null,null,null,null,null,null,null,null,null,null,null,null,null,null,null,null,{"$f":"IF(Screening!$AB$16=\"No\", \"Ex\",\"\")","v":""},null,null,null,null,null,null,null,null,null,null,null,null,null,null,null,null,null,null,null,null,null,null,null,null,null,null,null,""]
[468,"2.I.4.c","Criteria for determining whether the 1-hour HCl-equivalent emission rate may be exceeded absent an hourly rolling average limit on the feedrate of total chlorine and chloride. An hourly rolling average feedrate limit on total chlorine and chloride is waived if you determine considering the criteria listed below that the long-term feedrate limit (and averaging period) established under paragraph (c)(4)(i) of this section will also ensure that the 1-hour average HCl-equivalent emission rate will not exceed the 1-hour average HCl-equivalent emission rate limit the source calculates for each combustor.","§63.1215(d)(3)",null,null,null,null,null,null,null,null,null,null,null,null,null,null,null,null,{"$f":"IF(Screening!$AB$16=\"No\", \"Ex\",\"\")","v":""},null,null,null,null,null,null,null,null,null,null,null,null,null,null,null,null,null,null,null,null,null,null,null,null,null,null,null,""]
[469,"2.I.4.c.1","The ratio of the 1-hour average HCl-equivalent emission rate based on the total chlorine emission rate the source selects for each hazardous waste combustor to the 1-hour average HCl-equivalent emission rate limit for the combustor; and","§63.1215(d)(3)(i)",null,null,null,null,null,null,null,null,null,null,null,null,null,null,null,null,{"$f":"IF(Screening!$AB$16=\"No\", \"Ex\",\"\")","v":""},null,null,null,null,null,null,null,null,null,null,null,null,null,null,null,null,null,null,null,null,null,null,null,null,null,null,null,""]
[470,"2.I.4.c.2","The potential for the source to vary total chlorine and chloride feedrates substantially over the averaging period for the feedrate limit established under paragraph (c)(4)(i) of this section.","§63.1215(d)(3)(ii)",null,null,null,null,null,null,null,null,null,null,null,null,null,null,null,null,{"$f":"IF(Screening!$AB$16=\"No\", \"Ex\",\"\")","v":""},null,null,null,null,null,null,null,null,null,null,null,null,null,null,null,null,null,null,null,null,null,null,null,null,null,null,null,""]
[471,"2.I.5","Review and approval of eligibility demonstrations.","§63.1215(e)",null,null,null,null,null,null,null,null,null,null,null,null,null,null,null,null,{"$f":"IF(Screening!$AB$16=\"No\", \"Ex\",\"\")","v":""},null,null,null,null,null,null,null,null,null,null,null,null,null,null,null,null,null,null,null,null,null,null,null,null,null,null,null,""]
[472,"2.I.5.a","Content of the eligibility demonstration","§63.1215(e)(1)",null,null,null,null,null,null,null,null,null,null,null,null,null,null,null,null,{"$f":"IF(Screening!$AB$16=\"No\", \"Ex\",\"\")","v":""},null,null,null,null,null,null,null,null,null,null,null,null,null,null,null,null,null,null,null,null,null,null,null,null,null,null,null,""]
[473,"2.I.5.a.1","General. The eligibility demonstration must include the following information, at a minimum:","§63.1215(e)(1)(i)",null,null,null,null,null,null,null,null,null,null,null,null,null,null,null,null,{"$f":"IF(Screening!$AB$16=\"No\", \"Ex\",\"\")","v":""},null,null,null,null,null,null,null,null,null,null,null,null,null,null,null,null,null,null,null,null,null,null,null,null,null,null,null,""]
[474,"2.I.5.a.1.a","Identification of each hazardous waste combustor combustion gas emission point (e.g., generally, the flue gas stack);","§63.1215(e)(1)(i)(A)",null,null,null,null,null,null,null,null,null,null,null,null,null,null,null,null,{"$f":"IF(Screening!$AB$16=\"No\", \"Ex\",\"\")","v":""},null,null,null,null,null,null,null,null,null,null,null,null,null,null,null,null,null,null,null,null,null,null,null,null,null,null,null,""]
[475,"2.I.5.a.1.b","The maximum and average capacity at which each combustor will operate, and the maximum rated capacity for each combustor, using the metric of stack gas volume (under both actual and standard conditions) emitted per unit of time, as well as any other metric that is appropriate for the combustor (e.g., million Btu/hr heat input for boilers; tons of dry raw material feed/hour for cement kilns);","§63.1215(e)(1)(i)(B)",null,null,null,null,null,null,null,null,null,null,null,null,null,null,null,null,{"$f":"IF(Screening!$AB$16=\"No\", \"Ex\",\"\")","v":""},null,null,null,null,null,null,null,null,null,null,null,null,null,null,null,null,null,null,null,null,null,null,null,null,null,null,null,""]
[476,"2.I.5.a.1.c","Stack parameters for each combustor, including, but not limited to stack height, stack diameter, stack gas temperature, and stack gas exit velocity;","§63.1215(e)(1)(i)(C)",null,null,null,null,null,null,null,null,null,null,null,null,null,null,null,null,{"$f":"IF(Screening!$AB$16=\"No\", \"Ex\",\"\")","v":""},null,null,null,null,null,null,null,null,null,null,null,null,null,null,null,null,null,null,null,null,null,null,null,null,null,null,null,""]
[477,"2.I.5.a.1.d","Plot plan showing all stack emission points, nearby residences and property boundary line;","§63.1215(e)(1)(i)(D)",null,null,null,null,null,null,null,null,null,null,null,null,null,null,null,null,{"$f":"IF(Screening!$AB$16=\"No\", \"Ex\",\"\")","v":""},null,null,null,null,null,null,null,null,null,null,null,null,null,null,null,null,null,null,null,null,null,null,null,null,null,null,null,""]
[478,"2.I.5.a.1.e","Identification of any stack gas control devices used to reduce emissions from each combustor;","§63.1215(e)(1)(i)(E)",null,null,null,null,null,null,null,null,null,null,null,null,null,null,null,null,{"$f":"IF(Screening!$AB$16=\"No\", \"Ex\",\"\")","v":""},null,null,null,null,null,null,null,null,null,null,null,null,null,null,null,null,null,null,null,null,null,null,null,null,null,null,null,""]
[479,"2.I.5.a.1.f","Identification of the RfC values used to calculate annual average HCl-equivalent emission rates and the aREL values used to calculate 1-hour average HCl-equivalent emission rates;","§63.1215(e)(1)(i)(F)",null,null,null,null,null,null,null,null,null,null,null,null,null,null,null,null,{"$f":"IF(Screening!$AB$16=\"No\", \"Ex\",\"\")","v":""},null,null,null,null,null,null,null,null,null,null,null,null,null,null,null,null,null,null,null,null,null,null,null,null,null,null,null,""]
[480,"2.I.5.a.1.g","Calculations used to determine the annual average and 1-hour average HCl-equivalent emission rates and rate limits, including calculation of the Cl2/HCl ratios as prescribed by paragraph (b)(6) of this section;","§63.1215(e)(1)(i)(G)",null,null,null,null,null,null,null,null,null,null,null,null,null,null,null,null,{"$f":"IF(Screening!$AB$16=\"No\", \"Ex\",\"\")","v":""},null,null,null,null,null,null,null,null,null,null,null,null,null,null,null,null,null,null,null,null,null,null,null,null,null,null,null,""]
[481,"2.I.5.a.2","Additional content to implement the annual average HCl-equivalent emission rate limit. The source must include the following in your eligibility demonstration to implement the annual average HCl-equivalent emission rate limit:","§63.1215(e)(1)(ii)",null,null,null,null,null,null,null,null,null,null,null,null,null,null,null,null,{"$f":"IF(Screening!$AB$16=\"No\", \"Ex\",\"\")","v":""},null,null,null,null,null,null,null,null,null,null,null,null,null,null,null,null,null,null,null,null,null,null,null,null,null,null,null,""]
[482,"2.I.5.a.2.a","For incinerators, cement kilns, and lightweight aggregate kilns, calculations to confirm that the annual average HCl-equivalent emission rate that you calculate from the total chlorine emission rate the source selects for each combustor does not exceed the limits provided by paragraph (b)(7) of this section;","§63.1215(e)(1)(ii)(A)",null,null,null,null,null,null,null,null,null,null,null,null,null,null,null,null,{"$f":"IF(Screening!$AB$16=\"No\", \"Ex\",\"\")","v":""},null,null,null,null,null,null,null,null,null,null,null,null,null,null,null,null,null,null,null,null,null,null,null,null,null,null,null,""]
[483,"2.I.5.a.2.b","Comparison of the annual average HCl-equivalent emission rate limit for each combustor to the annual average HCl-equivalent emission rate for the total chlorine emission rate the source selects for each combustor;","§63.1215(e)(1)(ii)(B)",null,null,null,null,null,null,null,null,null,null,null,null,null,null,null,null,{"$f":"IF(Screening!$AB$16=\"No\", \"Ex\",\"\")","v":""},null,null,null,null,null,null,null,null,null,null,null,null,null,null,null,null,null,null,null,null,null,null,null,null,null,null,null,""]
[484,"2.I.5.a.2.c","The annual average HCl-equivalent emission rate limit for each hazardous waste combustor, and the limits on operating parameters required under paragraph (g)(1) of this section;","§63.1215(e)(1)(ii)(C)",null,null,null,null,null,null,null,null,null,null,null,null,null,null,null,null,{"$f":"IF(Screening!$AB$16=\"No\", \"Ex\",\"\")","v":""},null,null,null,null,null,null,null,null,null,null,null,null,null,null,null,null,null,null,null,null,null,null,null,null,null,null,null,""]
[485,"2.I.5.a.2.d","Determination of the long-term chlorine feedrate limit, including the total chlorine system removal efficiency for sources that establish an (up to) annual rolling average feedrate limit under paragraph (g)(2)(ii) of this section;","§63.1215(e)(1)(ii)(D)",null,null,null,null,null,null,null,null,null,null,null,null,null,null,null,null,{"$f":"IF(Screening!$AB$16=\"No\", \"Ex\",\"\")","v":""},null,null,null,null,null,null,null,null,null,null,null,null,null,null,null,null,null,null,null,null,null,null,null,null,null,null,null,""]
[486,"2.I.5.a.3","Additional content to implement the 1-hour average HCl-equivalent emission rate limit. The source must include the following in your eligibility demonstration to implement the 1-hour average HCl-equivalent emission rate limit:","§63.1215(e)(1)(iii)",null,null,null,null,null,null,null,null,null,null,null,null,null,null,null,null,{"$f":"IF(Screening!$AB$16=\"No\", \"Ex\",\"\")","v":""},null,null,null,null,null,null,null,null,null,null,null,null,null,null,null,null,null,null,null,null,null,null,null,null,null,null,null,""]
[487,"2.I.5.a.3.a","Determination of whether the combustor may exceed the 1-hour HCl-equivalent emission rate limit absent an hourly rolling average chlorine feedrate limit, including:","§63.1215(e)(1)(iii)(A)",null,null,null,null,null,null,null,null,null,null,null,null,null,null,null,null,{"$f":"IF(Screening!$AB$16=\"No\", \"Ex\",\"\")","v":""},null,null,null,null,null,null,null,null,null,null,null,null,null,null,null,null,null,null,null,null,null,null,null,null,null,null,null,""]
[488,"2.I.5.a.3.a.1","Determination of the 1-hour average HCl-equivalent emission rate from the total chlorine emission rate the source selects for the combustor;","§63.1215(e)(1)(iii)(A)(1)",null,null,null,null,null,null,null,null,null,null,null,null,null,null,null,null,{"$f":"IF(Screening!$AB$16=\"No\", \"Ex\",\"\")","v":""},null,null,null,null,null,null,null,null,null,null,null,null,null,null,null,null,null,null,null,null,null,null,null,null,null,null,null,""]
[489,"2.I.5.a.3.a.2","Determination of the 1-hour average HCl-equivalent emission rate limit using either look-up Tables 3 and 4 to this section or site-specific risk analysis;","§63.1215(e)(1)(iii)(A)(2)",null,null,null,null,null,null,null,null,null,null,null,null,null,null,null,null,{"$f":"IF(Screening!$AB$16=\"No\", \"Ex\",\"\")","v":""},null,null,null,null,null,null,null,null,null,null,null,null,null,null,null,null,null,null,null,null,null,null,null,null,null,null,null,""]
[490,"2.I.5.a.3.a.3","Determination of the ratio of the 1-hour average HCl-equivalent emission rate to the 1-hour average HCl-equivalent emission rate limit for the combustor; and","§63.1215(e)(1)(iii)(A)(3)",null,null,null,null,null,null,null,null,null,null,null,null,null,null,null,null,{"$f":"IF(Screening!$AB$16=\"No\", \"Ex\",\"\")","v":""},null,null,null,null,null,null,null,null,null,null,null,null,null,null,null,null,null,null,null,null,null,null,null,null,null,null,null,""]
[491,"2.I.5.a.3.a.4","The potential for the source to vary total chlorine and chloride feedrates substantially over the averaging period for the long-term feedrate limit established under paragraphs (g)(2)(i) and (g)(2)(ii) of this section; and","§63.1215(e)(1)(iii)(A)(4)",null,null,null,null,null,null,null,null,null,null,null,null,null,null,null,null,{"$f":"IF(Screening!$AB$16=\"No\", \"Ex\",\"\")","v":""},null,null,null,null,null,null,null,null,null,null,null,null,null,null,null,null,null,null,null,null,null,null,null,null,null,null,null,""]
[492,"2.I.5.a.3.b","Determination of the hourly rolling average chlorine feedrate limit, including the total chlorine system removal efficiency.","§63.1215(e)(1)(iii)(B)",null,null,null,null,null,null,null,null,null,null,null,null,null,null,null,null,{"$f":"IF(Screening!$AB$16=\"No\", \"Ex\",\"\")","v":""},null,null,null,null,null,null,null,null,null,null,null,null,null,null,null,null,null,null,null,null,null,null,null,null,null,null,null,""]
[493,"2.I.5.a.4","Additional content of a look-up table demonstration. If you use the look-up table analysis to establish HCl-equivalent emission rate limits, your eligibility demonstration must also contain, at a minimum, the following:","§63.1215(e)(1)(iv)",null,null,null,null,null,null,null,null,null,null,null,null,null,null,null,null,{"$f":"IF(Screening!$AB$16=\"No\", \"Ex\",\"\")","v":""},null,null,null,null,null,null,null,null,null,null,null,null,null,null,null,null,null,null,null,null,null,null,null,null,null,null,null,""]
[494,"2.I.5.a.4.a","Documentation that the facility is located in either flat or simple elevated terrain; and","§63.1215(e)(1)(iv)(A)",null,null,null,null,null,null,null,null,null,null,null,null,null,null,null,null,{"$f":"IF(Screening!$AB$16=\"No\", \"Ex\",\"\")","v":""},null,null,null,null,null,null,null,null,null,null,null,null,null,null,null,null,null,null,null,null,null,null,null,null,null,null,null,""]
[495,"2.I.5.a.4.b","For facilities with more than one on-site hazardous waste combustor, documentation that the sum of the ratios for all such combustors of the HCl-equivalent emission rate to the HCl-equivalent emission rate limit does not exceed 1.0.","§63.1215(e)(1)(iv)(B)",null,null,null,null,null,null,null,null,null,null,null,null,null,null,null,null,{"$f":"IF(Screening!$AB$16=\"No\", \"Ex\",\"\")","v":""},null,null,null,null,null,null,null,null,null,null,null,null,null,null,null,null,null,null,null,null,null,null,null,null,null,null,null,""]
[496,"2.I.5.a.5","Additional content of a site-specific compliance demonstration. If the source uses a site-specific compliance demonstration, the eligibility demonstration must also contain, at a minimum, the following information to support your determination of the annual average HCl-equivalent emission rate limit for each combustor","§63.1215(e)(1)(v)",null,null,null,null,null,null,null,null,null,null,null,null,null,null,null,null,{"$f":"IF(Screening!$AB$16=\"No\", \"Ex\",\"\")","v":""},null,null,null,null,null,null,null,null,null,null,null,null,null,null,null,null,null,null,null,null,null,null,null,null,null,null,null,""]
[497,"2.I.5.a.5.a","Identification of the risk assessment methodology used;","§63.1215(e)(1)(v)(A)",null,null,null,null,null,null,null,null,null,null,null,null,null,null,null,null,{"$f":"IF(Screening!$AB$16=\"No\", \"Ex\",\"\")","v":""},null,null,null,null,null,null,null,null,null,null,null,null,null,null,null,null,null,null,null,null,null,null,null,null,null,null,null,""]
[498,"2.I.5.a.5.b","Documentation of the fate and transport model used;","§63.1215(e)(1)(v)(B)",null,null,null,null,null,null,null,null,null,null,null,null,null,null,null,null,{"$f":"IF(Screening!$AB$16=\"No\", \"Ex\",\"\")","v":""},null,null,null,null,null,null,null,null,null,null,null,null,null,null,null,null,null,null,null,null,null,null,null,null,null,null,null,""]
[499,"2.I.5.a.5.c","Documentation of the fate and transport model inputs, including the stack parameters listed in paragraph (d)(1)(i)(C) of this section converted to the dimensions required for the model;","§63.1215(e)(1)(v)(C)",null,null,null,null,null,null,null,null,null,null,null,null,null,null,null,null,{"$f":"IF(Screening!$AB$16=\"No\", \"Ex\",\"\")","v":""},null,null,null,null,null,null,null,null,null,null,null,null,null,null,null,null,null,null,null,null,null,null,null,null,null,null,null,""]
[500,"2.I.5.a.5.d","As applicable:","§63.1215(e)(1)(v)(D)",null,null,null,null,null,null,null,null,null,null,null,null,null,null,null,null,{"$f":"IF(Screening!$AB$16=\"No\", \"Ex\",\"\")","v":""},null,null,null,null,null,null,null,null,null,null,null,null,null,null,null,null,null,null,null,null,null,null,null,null,null,null,null,""]
[501,"2.I.5.a.5.d.1","Meteorological data;","§63.1215(e)(1)(v)(D)(1)",null,null,null,null,null,null,null,null,null,null,null,null,null,null,null,null,{"$f":"IF(Screening!$AB$16=\"No\", \"Ex\",\"\")","v":""},null,null,null,null,null,null,null,null,null,null,null,null,null,null,null,null,null,null,null,null,null,null,null,null,null,null,null,""]
[502,"2.I.5.a.5.d.2","Building, land use, and terrain data;","§63.1215(e)(1)(v)(D)(2)",null,null,null,null,null,null,null,null,null,null,null,null,null,null,null,null,{"$f":"IF(Screening!$AB$16=\"No\", \"Ex\",\"\")","v":""},null,null,null,null,null,null,null,null,null,null,null,null,null,null,null,null,null,null,null,null,null,null,null,null,null,null,null,""]
[503,"2.I.5.a.5.d.3","Receptor locations and population data, including areas where people congregate for work, school, or recreation; and","§63.1215(e)(1)(v)(D)(3)",null,null,null,null,null,null,null,null,null,null,null,null,null,null,null,null,{"$f":"IF(Screening!$AB$16=\"No\", \"Ex\",\"\")","v":""},null,null,null,null,null,null,null,null,null,null,null,null,null,null,null,null,null,null,null,null,null,null,null,null,null,null,null,""]
[504,"2.I.5.a.5.d.4","Other facility-specific parameters input into the model;","§63.1215(e)(1)(v)(D)(4)",null,null,null,null,null,null,null,null,null,null,null,null,null,null,null,null,{"$f":"IF(Screening!$AB$16=\"No\", \"Ex\",\"\")","v":""},null,null,null,null,null,null,null,null,null,null,null,null,null,null,null,null,null,null,null,null,null,null,null,null,null,null,null,""]
[505,"2.I.5.a.5.e","Documentation of the fate and transport model outputs; and","§63.1215(e)(1)(v)(E)",null,null,null,null,null,null,null,null,null,null,null,null,null,null,null,null,{"$f":"IF(Screening!$AB$16=\"No\", \"Ex\",\"\")","v":""},null,null,null,null,null,null,null,null,null,null,null,null,null,null,null,null,null,null,null,null,null,null,null,null,null,null,null,""]
[506,"2.I.5.a.5.f","Documentation of any exposure assessment and risk characterization calculations.","§63.1215(e)(1)(v)(F)",null,null,null,null,null,null,null,null,null,null,null,null,null,null,null,null,{"$f":"IF(Screening!$AB$16=\"No\", \"Ex\",\"\")","v":""},null,null,null,null,null,null,null,null,null,null,null,null,null,null,null,null,null,null,null,null,null,null,null,null,null,null,null,""]
[507,"2.I.5.b","Review and approval","§63.1215(e)(2)",null,null,null,null,null,null,null,null,null,null,null,null,null,null,null,null,{"$f":"IF(Screening!$AB$16=\"No\", \"Ex\",\"\")","v":""},null,null,null,null,null,null,null,null,null,null,null,null,null,null,null,null,null,null,null,null,null,null,null,null,null,null,null,""]
[508,"2.I.5.b.1","Existing sources.","§63.1215(e)(2)(i)",null,null,null,null,null,null,null,null,null,null,null,null,null,null,null,null,{"$f":"IF(Screening!$AB$16=\"No\", \"Ex\",\"\")","v":""},null,null,null,null,null,null,null,null,null,null,null,null,null,null,null,null,null,null,null,null,null,null,null,null,null,null,null,""]
[509,"2.I.5.b.1.a","If the source operates an existing source, you must submit the eligibility demonstration to the permitting authority for review and approval not later than 12 months prior to the compliance date. The source must also submit a separate copy of the eligibility demonstration to: U.S. EPA, Risk and Exposure Assessment Group, Emission Standards Division (C404–01), Attn: Group Leader, Research Triangle Park, North Carolina 27711, electronic mail address REAG@epa.gov.","§63.1215(e)(2)(i)(A)",null,null,null,null,null,null,null,null,null,null,null,null,null,null,null,null,{"$f":"IF(Screening!$AB$16=\"No\", \"Ex\",\"\")","v":""},null,null,null,null,null,null,null,null,null,null,null,null,null,null,null,null,null,null,null,null,null,null,null,null,null,null,null,""]
[510,"2.I.5.b.1.b","The permitting authority should notify the source of approval or intent to disapprove the eligibility demonstration within 6 months after receipt of the original demonstration, and within 3 months after receipt of any supplemental information that is submitted.  A notice of intent to disapprove the eligibility demonstration, whether before or after the compliance date, will identify incomplete or inaccurate information or noncompliance with prescribed procedures and specify how much time the source will have to submit additional information or to achieve the MACT standards for total chlorine under §§63.1216, 63.1217, 63.1219, 63.1220, and 63.1221. If the eligibility demonstration is disapproved, the permitting authority may extend the compliance date of the total chlorine standards to allow the source to make changes to the design or operation of the combustor or related systems as quickly as practicable to enable the source to achieve compliance with the MACT total chlorine standards.","§63.1215(e)(2)(i)(B)",null,null,null,null,null,null,null,null,null,null,null,null,null,null,null,null,{"$f":"IF(Screening!$AB$16=\"No\", \"Ex\",\"\")","v":""},null,null,null,null,null,null,null,null,null,null,null,null,null,null,null,null,null,null,null,null,null,null,null,null,null,null,null,""]
[511,"2.I.5.b.1.c","If the permitting authority has not approved the eligibility demonstration by the compliance date, and has not issued a notice of intent to disapprove the demonstration, the source may nonetheless begin complying, on the compliance date, with the HCl-equivalent emission rate limits presented in the eligibility demonstration.","§63.1215(e)(2)(i)(C)",null,null,null,null,null,null,null,null,null,null,null,null,null,null,null,null,{"$f":"IF(Screening!$AB$16=\"No\", \"Ex\",\"\")","v":""},null,null,null,null,null,null,null,null,null,null,null,null,null,null,null,null,null,null,null,null,null,null,null,null,null,null,null,""]
[512,"2.I.5.b.1.d","If the permitting authority issues a notice of intent to disapprove the eligibility demonstration after the compliance date, the authority will identify the basis for that notice and specify how much time the source will have to submit additional information or to comply with the MACT standards for total chlorine under §§63.1216, 63.1217, 63.1219, 63.1220, and 63.1221. The permitting authority may extend the compliance date of the total chlorine standards to allow the source to make changes to the design or operation of the combustor or related systems as quickly as practicable to enable you to achieve compliance with the MACT standards for total chlorine.","§63.1215(e)(2)(i)(D)",null,null,null,null,null,null,null,null,null,null,null,null,null,null,null,null,{"$f":"IF(Screening!$AB$16=\"No\", \"Ex\",\"\")","v":""},null,null,null,null,null,null,null,null,null,null,null,null,null,null,null,null,null,null,null,null,null,null,null,null,null,null,null,""]
[513,"2.I.5.b.2","New or reconstructed sources.","§63.1215(e)(2)(ii)",null,null,null,null,null,null,null,null,null,null,null,null,null,null,null,null,{"$f":"IF(Screening!$AB$16=\"No\", \"Ex\",\"\")","v":""},null,null,null,null,null,null,null,null,null,null,null,null,null,null,null,null,null,null,null,null,null,null,null,null,null,null,null,{"$f":"IF(OR(I514=\"Ex\",J514=\"Ex\",K514=\"Ex\",L514=\"Ex\",M514=\"Ex\",N514=\"Ex\",O514=\"Ex\",P514=\"Ex\",Q514=\"Ex\",R514=\"Ex\",S514=\"Ex\",T514=\"Ex\",U514=\"Ex\",V514=\"Ex\",W514=\"Ex\",X514=\"Ex\",Y514=\"Ex\",Z514=\"Ex\",AA514=\"Ex\",AB514=\"Ex\",AC514=\"Ex\",AD514=\"Ex\",AE514=\"Ex\",AF514=\"Ex\",AG514=\"Ex\",AH514=\"Ex\",AI514=\"Ex\",AJ514=\"Ex\",AK514=\"Ex\",AL514=\"Ex\",AM514=\"Ex\",AN514=\"Ex\",AO514=\"Ex\",AP514=\"Ex\",AQ514=\"Ex\",AR514=\"Ex\",AS514=\"Ex\",AT514=\"Ex\",AU514=\"Ex\",AV514=\"Ex\"), \"Ex\",\"\")","v":""}]
[514,"2.I.5.b.2.a","General. The procedures for review and approval of eligibility demonstrations applicable to existing sources under paragraph (e)(2)(i) of this section also apply to new or reconstructed sources, except that the date the source must submit the eligibility demonstration is as prescribed in this paragraph (e)(2)(ii).","§63.1215(e)(2)(ii)(A)",null,null,null,null,null,null,null,null,null,null,null,null,null,null,null,null,{"$f":"IF(Screening!$AB$16=\"No\", \"Ex\",\"\")","v":""},null,null,null,null,null,null,null,null,null,null,null,null,null,null,null,null,null,null,null,null,null,null,null,null,null,null,null,""]
[515,"2.I.5.b.2.b","If the source operates a new or reconstructed source that starts up before April 12, 2007, or a solid fuel boiler or liquid fuel boiler that is an area source that increases its emissions or its potential to emit such that it becomes a major source of HAP before April 12, 2007, the source must either:","§63.1215(e)(2)(ii)(B)",null,null,null,null,null,null,null,null,null,null,null,null,null,null,null,null,{"$f":"IF(Screening!$AB$16=\"No\", \"Ex\",\"\")","v":""},null,null,null,null,null,null,null,null,null,null,null,null,null,null,null,null,null,null,null,null,null,null,null,null,null,null,null,""]
[516,"2.I.5.b.2.b.1","Comply with the final total chlorine emission standards under §§63.1216, 63.1217, 63.1219, 63.1220, and 63.1221, by October 12, 2005, or upon startup, whichever is later, except for a standard that is more stringent than the standard proposed on April 20, 2004 for your source. If a final standard is more stringent than the proposed standard, the source may comply with the proposed standard until October 14, 2008, after which the source must comply with the final standard; or","§63.1215(e)(2)(ii)(B)(1)",null,null,null,null,null,null,null,null,null,null,null,null,null,null,null,null,{"$f":"IF(Screening!$AB$16=\"No\", \"Ex\",\"\")","v":""},null,null,null,null,null,null,null,null,null,null,null,null,null,null,null,null,null,null,null,null,null,null,null,null,null,null,null,""]
[517,"2.I.5.b.2.b.2","Submit an eligibility demonstration for review and approval under this section by April 12, 2006, and comply with the HCl-equivalent emission rate limits and operating requirements you establish in the eligibility demonstration.","§63.1215(e)(2)(ii)(B)(2)",null,null,null,null,null,null,null,null,null,null,null,null,null,null,null,null,{"$f":"IF(Screening!$AB$16=\"No\", \"Ex\",\"\")","v":""},null,null,null,null,null,null,null,null,null,null,null,null,null,null,null,null,null,null,null,null,null,null,null,null,null,null,null,""]
[518,"2.I.5.b.2.c","If the source operates a new or reconstructed source that starts up on or after April 12, 2007, or a solid fuel boiler or liquid fuel boiler that is an area source that increases its emissions or its potential to emit such that it becomes a major source of HAP on or after April 12, 2007, the must either:","§63.1215(e)(2)(ii)(C)",null,null,null,null,null,null,null,null,null,null,null,null,null,null,null,null,{"$f":"IF(Screening!$AB$16=\"No\", \"Ex\",\"\")","v":""},null,null,null,null,null,null,null,null,null,null,null,null,null,null,null,null,null,null,null,null,null,null,null,null,null,null,null,""]
[519,"2.I.5.b.2.c.1","Comply with the final total chlorine emission standards under §§63.1216, 63.1217, 63.1219, 63.1220, and 63.1221 upon startup. If the final standard is more stringent than the standard proposed for the source on April 20, 2004, however, and if the source starts operations before October 14, 2008, the source may comply with the proposed standard until October 14, 2008, after which the source must comply with the final standard; or","§63.1215(e)(2)(ii)(C)(1)",null,null,null,null,null,null,null,null,null,null,null,null,null,null,null,null,{"$f":"IF(Screening!$AB$16=\"No\", \"Ex\",\"\")","v":""},null,null,null,null,null,null,null,null,null,null,null,null,null,null,null,null,null,null,null,null,null,null,null,null,null,null,null,""]
[520,"2.I.5.b.2.c.2","Submit an eligibility demonstration for review and approval under this section 12 months prior to startup.","§63.1215(e)(2)(ii)(C)(2)",null,null,null,null,null,null,null,null,null,null,null,null,null,null,null,null,{"$f":"IF(Screening!$AB$16=\"No\", \"Ex\",\"\")","v":""},null,null,null,null,null,null,null,null,null,null,null,null,null,null,null,null,null,null,null,null,null,null,null,null,null,null,null,""]
[521,"2.I.6","Testing requirements. ","§63.1215(f)",null,null,null,null,null,null,null,null,null,null,null,null,null,null,null,null,{"$f":"IF(Screening!$AB$16=\"No\", \"Ex\",\"\")","v":""},null,null,null,null,null,null,null,null,null,null,null,null,null,null,null,null,null,null,null,null,null,null,null,null,null,null,null,""]
[522,"2.I.6.a","General. You must comply with the requirements for comprehensive performance testing under §63.1207.","§63.1215(f)(1)",null,null,null,null,null,null,null,null,null,null,null,null,null,null,null,null,{"$f":"IF(Screening!$AB$16=\"No\", \"Ex\",\"\")","v":""},null,null,null,null,null,null,null,null,null,null,null,null,null,null,null,null,null,null,null,null,null,null,null,null,null,null,null,""]
[523,"2.I.6.b","System removal efficiency.","§63.1215(f)(2)",null,null,null,null,null,null,null,null,null,null,null,null,null,null,null,null,{"$f":"IF(Screening!$AB$16=\"No\", \"Ex\",\"\")","v":""},null,null,null,null,null,null,null,null,null,null,null,null,null,null,null,null,null,null,null,null,null,null,null,null,null,null,null,""]
[524,"2.I.6.b.1","The source must calculate the total chlorine removal efficiency of the combustor during each run of the comprehensive performance test.","§63.1215(f)(2)(i)",null,null,null,null,null,null,null,null,null,null,null,null,null,null,null,null,{"$f":"IF(Screening!$AB$16=\"No\", \"Ex\",\"\")","v":""},null,null,null,null,null,null,null,null,null,null,null,null,null,null,null,null,null,null,null,null,null,null,null,null,null,null,null,""]
[525,"2.I.6.b.2","The source must calculate the average system removal efficiency as the average of the test run averages.","§63.1215(f)(2)(ii)",null,null,null,null,null,null,null,null,null,null,null,null,null,null,null,null,{"$f":"IF(Screening!$AB$16=\"No\", \"Ex\",\"\")","v":""},null,null,null,null,null,null,null,null,null,null,null,null,null,null,null,null,null,null,null,null,null,null,null,null,null,null,null,""]
[526,"2.I.6.b.3","If the source does not control emissions of total chlorine, you must assume zero system removal efficiency.","§63.1215(f)(2)(iii)",null,null,null,null,null,null,null,null,null,null,null,null,null,null,null,null,{"$f":"IF(Screening!$AB$16=\"No\", \"Ex\",\"\")","v":""},null,null,null,null,null,null,null,null,null,null,null,null,null,null,null,null,null,null,null,null,null,null,null,null,null,null,null,""]
[527,"2.I.6.c","Annual average HCl-equivalent emission rate limit. If emissions during the comprehensive performance test exceed the annual average HCl-equivalent emission rate limit, eligibility for emission limits under this section is not affected. This emission rate limit is an annual average limit even though compliance is based on a 12-hour or (up to) an annual rolling average feedrate limit on total chlorine and chloride because the feedrate limit is also used for compliance assurance for the semivolatile metal emission standard","§63.1215(f)(3)",null,null,null,null,null,null,null,null,null,null,null,null,null,null,null,null,{"$f":"IF(Screening!$AB$16=\"No\", \"Ex\",\"\")","v":""},null,null,null,null,null,null,null,null,null,null,null,null,null,null,null,null,null,null,null,null,null,null,null,null,null,null,null,""]
[528,"2.I.6.d","1-hour average HCl-equivalent emission rate limit. Total chlorine emissions during each run of the comprehensive performance test cannot exceed the 1-hour average HCl-equivalent emission rate limit.","§63.1215(f)(4)",null,null,null,null,null,null,null,null,null,null,null,null,null,null,null,null,{"$f":"IF(Screening!$AB$16=\"No\", \"Ex\",\"\")","v":""},null,null,null,null,null,null,null,null,null,null,null,null,null,null,null,null,null,null,null,null,null,null,null,null,null,null,null,""]
[529,"2.I.6.e","Test methods. ","§63.1215(f)(5)",null,null,null,null,null,null,null,null,null,null,null,null,null,null,null,null,{"$f":"IF(Screening!$AB$16=\"No\", \"Ex\",\"\")","v":""},null,null,null,null,null,null,null,null,null,null,null,null,null,null,null,null,null,null,null,null,null,null,null,null,null,null,null,""]
[530,"2.I.6.e.1","If the source operates a cement kiln or a combustor equipped with a dry acid gas scrubber, the source must use EPA Method 320/321 or ASTM D 6735–01, or an equivalent method, to measure hydrogen chloride, and the back-half (caustic impingers) of Method 26/26A, or an equivalent method, to measure chlorine gas.","§63.1215(f)(5)(i)",null,null,null,null,null,null,null,null,null,null,null,null,null,null,null,null,{"$f":"IF(Screening!$AB$16=\"No\", \"Ex\",\"\")","v":""},null,null,null,null,null,null,null,null,null,null,null,null,null,null,null,null,null,null,null,null,null,null,null,null,null,null,null,""]
[531,"2.I.6.e.2","Bromine and sulfur considerations. If the source operates an incinerator, boiler, or lightweight aggregate kiln and the feedstreams contain bromine or sulfur during the comprehensive performance test at levels specified under paragraph (e)(2)(ii)(B) of this section, the source must use EPA Method 320/321 or ASTM D 6735–01, or an equivalent method, to measure hydrogen chloride, and Method 26/26A, or an equivalent method, to measure chlorine and hydrogen chloride, and determine your chlorine emissions as follows:","§63.1215(f)(5)(ii)",null,null,null,null,null,null,null,null,null,null,null,null,null,null,null,null,{"$f":"IF(Screening!$AB$16=\"No\", \"Ex\",\"\")","v":""},null,null,null,null,null,null,null,null,null,null,null,null,null,null,null,null,null,null,null,null,null,null,null,null,null,null,null,""]
[532,"2.I.6.e.2.a","You must determine your chlorine emissions to be the higher of the value measured by Method 26/26A as provided in appendix A-8, part 60 of this chapter, or an equivalent method, or the value calculated by the difference between the combined hydrogen chloride and chlorine levels measured by Method 26/26A as provided in appendix A-8, part 60 of this chapter, or an equivalent method, and the hydrogen chloride measurement from EPA Method 320/321 as provided in appendix A, part 63 of this chapter, or ASTM D 6735-01 as described under §63.1208(b)(5)(i)(C), or an equivalent method.","§63.1215(f)(5)(ii)(A)Rev. 4/8/08 FR",null,null,null,null,null,null,null,null,null,null,null,null,null,null,null,null,{"$f":"IF(Screening!$AB$16=\"No\", \"Ex\",\"\")","v":""},null,null,null,null,null,null,null,null,null,null,null,null,null,null,null,null,null,null,null,null,null,null,null,null,null,null,null,""]
[533,"2.I.6.e.2.b","The procedures under paragraph (f)(2)(ii) of this section for determining hydrogen chloride and chlorine emissions apply if you feed bromine or sulfur during the performance test at the levels specified in this paragraph (f)(5)(ii)(B):","§63.1215(f)(5)(ii)(B)",null,null,null,null,null,null,null,null,null,null,null,null,null,null,null,null,{"$f":"IF(Screening!$AB$16=\"No\", \"Ex\",\"\")","v":""},null,null,null,null,null,null,null,null,null,null,null,null,null,null,null,null,null,null,null,null,null,null,null,null,null,null,null,""]
[534,"2.I.6.e.2.b.1","If the bromine/chlorine ratio in feedstreams is greater than 5 percent by mass; or","§63.1215(f)(5)(ii)(B)(1)",null,null,null,null,null,null,null,null,null,null,null,null,null,null,null,null,{"$f":"IF(Screening!$AB$16=\"No\", \"Ex\",\"\")","v":""},null,null,null,null,null,null,null,null,null,null,null,null,null,null,null,null,null,null,null,null,null,null,null,null,null,null,null,""]
[535,"2.I.6.e.2.b.2","If the sulfur/chlorine ratio in feedstreams is greater than 50 percent by mass.","§63.1215(f)(5)(ii)(B)(2)",null,null,null,null,null,null,null,null,null,null,null,null,null,null,null,null,{"$f":"IF(Screening!$AB$16=\"No\", \"Ex\",\"\")","v":""},null,null,null,null,null,null,null,null,null,null,null,null,null,null,null,null,null,null,null,null,null,null,null,null,null,null,null,""]
[536,"2.I.7","Monitoring requirements.","§63.1215(g)",null,null,null,null,null,null,null,null,null,null,null,null,null,null,null,null,{"$f":"IF(Screening!$AB$16=\"No\", \"Ex\",\"\")","v":""},null,null,null,null,null,null,null,null,null,null,null,null,null,null,null,null,null,null,null,null,null,null,null,null,null,null,null,""]
[537,"2.I.7.a","General.  The source must establish and comply with limits on the same operating parameters that apply to sources complying with the MACT standard for total chlorine under §63.1209(o), except that feedrate limits on total chlorine and chloride must be established according to paragraphs (g)(2) and (g)(3) of this section:","§63.1215(g)(1)",null,null,null,null,null,null,null,null,null,null,null,null,null,null,null,null,{"$f":"IF(Screening!$AB$16=\"No\", \"Ex\",\"\")","v":""},null,null,null,null,null,null,null,null,null,null,null,null,null,null,null,null,null,null,null,null,null,null,null,null,null,null,null,""]
[538,"2.I.7.b","Feedrate limit to ensure compliance with the annual average HCl-equivalent emission rate limit. ","§63.1215(g)(2)",null,null,null,null,null,null,null,null,null,null,null,null,null,null,null,null,{"$f":"IF(Screening!$AB$16=\"No\", \"Ex\",\"\")","v":""},null,null,null,null,null,null,null,null,null,null,null,null,null,null,null,null,null,null,null,null,null,null,null,null,null,null,null,""]
[539,"2.I.7.b.1","For sources subject to the feedrate limit for total chlorine and chloride under §63.1209(n)(4) to ensure compliance with the semivolatile metals standard:","§63.1215(g)(2)(i)",null,null,null,null,null,null,null,null,null,null,null,null,null,null,null,null,{"$f":"IF(Screening!$AB$16=\"No\", \"Ex\",\"\")","v":""},null,null,null,null,null,null,null,null,null,null,null,null,null,null,null,null,null,null,null,null,null,null,null,null,null,null,null,""]
[540,"2.I.7.b.1.a","The feedrate limit (and averaging period) for total chlorine and chloride to ensure compliance with the annual average HCl-equivalent emission rate limit is the same as required by §63.1209(n)(4), except as provided by paragraph (g)(2)(i)(B) of this section.","§63.1215(g)(2)(i)(A)",null,null,null,null,null,null,null,null,null,null,null,null,null,null,null,null,{"$f":"IF(Screening!$AB$16=\"No\", \"Ex\",\"\")","v":""},null,null,null,null,null,null,null,null,null,null,null,null,null,null,null,null,null,null,null,null,null,null,null,null,null,null,null,""]
[541,"2.I.7.b.1.b","The numerical value of the total chlorine and chloride feedrate limit ( i.e. , not considering the averaging period) you establish under §63.1209(n)(4) must not exceed the value the source calculates as the annual average HCl-equivalent emission rate limit (lb/hr) divided by [1 − system removal efficiency], where the system removal efficiency is calculated as prescribed by paragraph (f)(2) of this section.","§63.1215(g)(2)(i)(B)",null,null,null,null,null,null,null,null,null,null,null,null,null,null,null,null,{"$f":"IF(Screening!$AB$16=\"No\", \"Ex\",\"\")","v":""},null,null,null,null,null,null,null,null,null,null,null,null,null,null,null,null,null,null,null,null,null,null,null,null,null,null,null,""]
[542,"2.I.7.b.2","For sources exempt from the feedrate limit for total chlorine and chloride under §63.1209(n)(4) because they comply with §63.1207(m)(2), the feedrate limit for total chlorine and chloride to ensure compliance with the annual average HCl-equivalent emission rate must be established as follows:","§63.1215(g)(2)(ii)",null,null,null,null,null,null,null,null,null,null,null,null,null,null,null,null,{"$f":"IF(Screening!$AB$16=\"No\", \"Ex\",\"\")","v":""},null,null,null,null,null,null,null,null,null,null,null,null,null,null,null,null,null,null,null,null,null,null,null,null,null,null,null,""]
[543,"2.I.7.b.2.a","The source must establish an average period for the feedrate limit that does not exceed an annual rolling average;","§63.1215(g)(2)(ii)(A)",null,null,null,null,null,null,null,null,null,null,null,null,null,null,null,null,{"$f":"IF(Screening!$AB$16=\"No\", \"Ex\",\"\")","v":""},null,null,null,null,null,null,null,null,null,null,null,null,null,null,null,null,null,null,null,null,null,null,null,null,null,null,null,""]
[544,"2.I.7.b.2.b","The numerical value of the total chlorine and chloride feedrate limit ( i.e. , not considering the averaging period) must not exceed the value you calculate as the annual average HCl-equivalent emission rate limit (lb/hr) divided by [1 − system removal efficiency], where the system removal efficiency is calculated as prescribed by paragraph (f)(2) of this section.","§63.1215(g)(2)(ii)(B)",null,null,null,null,null,null,null,null,null,null,null,null,null,null,null,null,{"$f":"IF(Screening!$AB$16=\"No\", \"Ex\",\"\")","v":""},null,null,null,null,null,null,null,null,null,null,null,null,null,null,null,null,null,null,null,null,null,null,null,null,null,null,null,""]
[545,"2.I.7.b.2.c","The source must calculate the initial rolling average as though you had selected a 12-hour rolling average, as provided by paragraph (b)(5)(i) of this section. The source must calculate rolling averages thereafter as the average of the available one-minute values until enough one-minute values are available to calculate the rolling average period you select. At that time and thereafter, the source updates the rolling average feedrate each hour with a 60-minute average feedrate.","§63.1215(g)(2)(ii)(C)",null,null,null,null,null,null,null,null,null,null,null,null,null,null,null,null,{"$f":"IF(Screening!$AB$16=\"No\", \"Ex\",\"\")","v":""},null,null,null,null,null,null,null,null,null,null,null,null,null,null,null,null,null,null,null,null,null,null,null,null,null,null,null,""]
[546,"2.I.7.c","Feedrate limit to ensure compliance with the 1-hour average HCl-equivalent emission rate limit.","§63.1215(g)(3)",null,null,null,null,null,null,null,null,null,null,null,null,null,null,null,null,{"$f":"IF(Screening!$AB$16=\"No\", \"Ex\",\"\")","v":""},null,null,null,null,null,null,null,null,null,null,null,null,null,null,null,null,null,null,null,null,null,null,null,null,null,null,null,""]
[547,"2.I.7.c.1","The source must establish an hourly rolling average feedrate limit on total chlorine and chloride to ensure compliance with the 1-hour average HCl-equivalent emission rate limit unless the source determines that the hourly rolling average feedrate limit is waived under paragraph (d) of this section.","§63.1215(g)(3)(i)",null,null,null,null,null,null,null,null,null,null,null,null,null,null,null,null,{"$f":"IF(Screening!$AB$16=\"No\", \"Ex\",\"\")","v":""},null,null,null,null,null,null,null,null,null,null,null,null,null,null,null,null,null,null,null,null,null,null,null,null,null,null,null,""]
[548,"2.I.7.c.2","The source must calculate the hourly rolling average feedrate limit for total chlorine and chloride as the 1-hour average HCl-equivalent emission rate limit (lb/hr) divided by [1 − system removal efficiency], where the system removal efficiency is calculated as prescribed by paragraph (f)(2)(ii) of this section.","§63.1215(g)(3)(ii)",null,null,null,null,null,null,null,null,null,null,null,null,null,null,null,null,{"$f":"IF(Screening!$AB$16=\"No\", \"Ex\",\"\")","v":""},null,null,null,null,null,null,null,null,null,null,null,null,null,null,null,null,null,null,null,null,null,null,null,null,null,null,null,""]
[549,"2.I.8","Changes ","§63.1215(h)",null,null,null,null,null,null,null,null,null,null,null,null,null,null,null,null,{"$f":"IF(Screening!$AB$16=\"No\", \"Ex\",\"\")","v":""},null,null,null,null,null,null,null,null,null,null,null,null,null,null,null,null,null,null,null,null,null,null,null,null,null,null,null,""]
[550,"2.I.8.a","Changes over which you have control. ","§63.1215(h)(1)",null,null,null,null,null,null,null,null,null,null,null,null,null,null,null,null,{"$f":"IF(Screening!$AB$16=\"No\", \"Ex\",\"\")","v":""},null,null,null,null,null,null,null,null,null,null,null,null,null,null,null,null,null,null,null,null,null,null,null,null,null,null,null,""]
[551,"2.I.8.a.1","Changes that would affect the HCl-equivalent emission rate limit.","§63.1215(h)(1)(i)",null,null,null,null,null,null,null,null,null,null,null,null,null,null,null,null,{"$f":"IF(Screening!$AB$16=\"No\", \"Ex\",\"\")","v":""},null,null,null,null,null,null,null,null,null,null,null,null,null,null,null,null,null,null,null,null,null,null,null,null,null,null,null,""]
[552,"2.I.8.a.1.a","If the source plans to change the design, operation, or maintenance of the facility in a manner than would decrease the annual average or 1-hour average HCl-equivalent emission rate limit, the source must submit to the permitting authority prior to the change a revised eligibility demonstration documenting the lower emission rate limits and calculations of reduced total chlorine and chloride feedrate limits.","§63.1215(h)(1)(i)(A)",null,null,null,null,null,null,null,null,null,null,null,null,null,null,null,null,{"$f":"IF(Screening!$AB$16=\"No\", \"Ex\",\"\")","v":""},null,null,null,null,null,null,null,null,null,null,null,null,null,null,null,null,null,null,null,null,null,null,null,null,null,null,null,""]
[553,"2.I.8.a.1.b","If the source plans to change the design, operation, or maintenance of the facility in a manner than would increase the annual average or 1-hour average HCl-equivalent emission rate limit, and the source elects to increase your total chlorine and chloride feedrate limits. The source must also submit to the permitting authority prior to the change a revised eligibility demonstration documenting the increased emission rate limits and calculations of the increased feedrate limits prior to the change.","§63.1215(h)(1)(i)(B)",null,null,null,null,null,null,null,null,null,null,null,null,null,null,null,null,{"$f":"IF(Screening!$AB$16=\"No\", \"Ex\",\"\")","v":""},null,null,null,null,null,null,null,null,null,null,null,null,null,null,null,null,null,null,null,null,null,null,null,null,null,null,null,""]
[554,"2.I.8.a.2","Changes that could affect system removal efficiency. ","§63.1215(h)(1)(ii)",null,null,null,null,null,null,null,null,null,null,null,null,null,null,null,null,{"$f":"IF(Screening!$AB$16=\"No\", \"Ex\",\"\")","v":""},null,null,null,null,null,null,null,null,null,null,null,null,null,null,null,null,null,null,null,null,null,null,null,null,null,null,null,""]
[555,"2.I.8.a.2.a","If the source plans to change the design, operation, or maintenance of the combustor in a manner than could decrease the system removal efficiency, the source is subject to the requirements of §63.1206(b)(5) for conducting a performance test to reestablish the combustor's system removal efficiency and you must submit a revised eligibility demonstration documenting the lower system removal efficiency and the reduced feedrate limits on total chlorine and chloride.","§63.1215(h)(1)(ii)(A)",null,null,null,null,null,null,null,null,null,null,null,null,null,null,null,null,{"$f":"IF(Screening!$AB$16=\"No\", \"Ex\",\"\")","v":""},null,null,null,null,null,null,null,null,null,null,null,null,null,null,null,null,null,null,null,null,null,null,null,null,null,null,null,""]
[556,"2.I.8.a.2.b","If the source plans to change the design, operation, or maintenance of the combustor in a manner than could increase the system removal efficiency, and the source elects to document the increased system removal efficiency to establish higher feedrate limits on total chlorine and chloride, the source is subject to the requirements of §63.1206(b)(5) for conducting a performance test to reestablish the combustor's system removal efficiency. The source must also submit to the permitting authority a revised eligibility demonstration documenting the higher system removal efficiency and the increased feedrate limits on total chlorine and chloride.","§63.1215(h)(1)(ii)(B)",null,null,null,null,null,null,null,null,null,null,null,null,null,null,null,null,{"$f":"IF(Screening!$AB$16=\"No\", \"Ex\",\"\")","v":""},null,null,null,null,null,null,null,null,null,null,null,null,null,null,null,null,null,null,null,null,null,null,null,null,null,null,null,""]
[557,"2.I.8.b","Changes over which you do not have control that may decrease the HCl-equivalent emission rate limits. These requirements apply if you use a site-specific risk assessment under paragraph (c)(4) of this section to demonstrate eligibility for the health-based limits.","§63.1215(h)(2)",null,null,null,null,null,null,null,null,null,null,null,null,null,null,null,null,{"$f":"IF(Screening!$AB$16=\"No\", \"Ex\",\"\")","v":""},null,null,null,null,null,null,null,null,null,null,null,null,null,null,null,null,null,null,null,null,null,null,null,null,null,null,null,""]
[558,"2.I.8.b.1","Proactive review. You must submit for review and approval with each comprehensive performance test plan either a certification that the information used in your eligibility demonstration has not changed in a manner that would decrease the annual average or 1-hour average HCl-equivalent emission rate limit, or a revised eligibility demonstration.","§63.1215(h)(2)(i)Rev. 4/8/08 FR",null,null,null,null,null,null,null,null,null,null,null,null,null,null,null,null,{"$f":"IF(Screening!$AB$16=\"No\", \"Ex\",\"\")","v":""},null,null,null,null,null,null,null,null,null,null,null,null,null,null,null,null,null,null,null,null,null,null,null,null,null,null,null,""]
[559,"2.I.8.b.2","Reactive review. If in the interim between the comprehensive performance tests the source has reason to know of changes that would decrease the annual average or 1-hour average HCl-equivalent emission rate limit, the source must submit a revised eligibility demonstration as soon as practicable but not more frequently than annually.","§63.1215(h)(2)(ii)",null,null,null,null,null,null,null,null,null,null,null,null,null,null,null,null,{"$f":"IF(Screening!$AB$16=\"No\", \"Ex\",\"\")","v":""},null,null,null,null,null,null,null,null,null,null,null,null,null,null,null,null,null,null,null,null,null,null,null,null,null,null,null,""]
[560,"2.I.8.b.3","Compliance schedule. If the source determines that the source cannot demonstrate compliance with a lower annual average HCl-equivalent emission rate limit during the comprehensive performance test because the source needes additional time to complete changes to the design or operation of the source, the source may request that the permitting authority grant the source additional time to make those changes as quickly as practicable","§63.1215(h)(2)(iii)",null,null,null,null,null,null,null,null,null,null,null,null,null,null,null,null,{"$f":"IF(Screening!$AB$16=\"No\", \"Ex\",\"\")","v":""},null,null,null,null,null,null,null,null,null,null,null,null,null,null,null,null,null,null,null,null,null,null,null,null,null,null,null,""]
[561,null,"The checklist items below this bar do not require review based on the screening information provided.",null,null,null,null,null,null,null,null,null,null,null,null,null,null,null,null,null,null,null,null,null,null,null,null,null,null,null,null,null,null,null,null,null,null,null,null,null,null,null,null,null,null,null,null,null,"a"]

{"sheet":"Tables","index":3,"n_rows":0,"n_cols":0,"rows_kept":0,"cut":false,"hidden":false,"merged":[]}

{"sheet":"Figures","index":4,"n_rows":0,"n_cols":0,"rows_kept":0,"cut":false,"hidden":false,"merged":[]}

{"sheet":"Other Resources","index":5,"n_rows":6,"n_cols":2,"rows_kept":6,"cut":false,"hidden":false,"merged":[]}
[]
[null,"Other Useful References for Developing or Reviewing a Comprehensive Performance Test Plan:"]
[null,"Because CPT Plan requirements are generally similar to those for RCRA hazardous waste incinerator trial burns and BIF Certification of Compliance testing, guidance for those tests might be useful in developing or reviewing the CPT Plan. Important guidance on those RCRA tests can be found in:"]
[null,"• U.S. EPA, “Hazardous Waste Combustion Unit Permitting Manual, Component 1, How to Review a Trial Burn Plan,” Center for Combustion Science and Engineering, MultiMedia Planning and Permitting Division, EPA Region 6, December 1997."]
[null,"• U.S. EPA, “Technical Implementation Document for EPA’s Boiler and Industrial Furnace Regulations,” EPA/530/R-92/011, PB 92-154947, March 1992."]
[null,"• U.S. EPA, “Handbook: Guidance on Setting Permit Conditions and Reporting Trial Burn Results, Volume II of the Hazardous Waste Incineration Guidance Series,” EPA/625/6-89/019, January 1989."]

{"sheet":"NOD","index":6,"n_rows":0,"n_cols":0,"rows_kept":0,"cut":false,"hidden":true,"merged":[]}